Workbook

Sheet ES(23)
B2: Excel Business Statistical Analysis:
B8: Discrete Probability Distributions Terms & Definitions
B12: Excel Business Statistics 23
B17: Excel Statistical Analysis 7: Cross Tabulation, Visualizations, AND Logical Tests, Simpson’s Paradox
B18: =LEN(B17) -> 100
C19: =LEN(C18) -> 0
H23: Microsoft 365 Excel

Sheet ES(24)
B2: Excel Business Statistical Analysis:
B8: Using Formulas to Build Discrete Probability Distributions to Help Make Business Decisions
B12: Excel Business Statistics 24
B17: Excel Statistical Analysis 24: Build Discrete Probability Distribution, Expected Value, S. Deviation
B18: =LEN(B17) -> 100
C19: =LEN(C18) -> 0
H23: Microsoft 365 Excel

Sheet ES(25)
B2: Excel Business Statistical Analysis:
B8: Power Query to Import Excel Data to Build PivotTable Discrete Probability Distribution
B12: Excel Business Statistics 25
B17: Excel Statistical Analysis 24: Build Discrete Probability Distribution, Expected Value, S. Deviation
B18: =LEN(B17) -> 100
C19: =LEN(C18) -> 0
H23: Microsoft 365 Excel

Sheet ES(26)
B2: Excel Business Statistical Analysis:
B8: Accounting & Finance Discrete Probability Distribution Examples
B12: Excel Business Statistics 26
B17: Excel Statistical Analysis 24: Build Discrete Probability Distribution, Expected Value, S. Deviation
B18: =LEN(B17) -> 100
C19: =LEN(C18) -> 0
H23: Microsoft 365 Excel

Sheet ES(27)
B2: Excel Business Statistical Analysis:
B8: Binomial Probability Distributions & Amazing BINOM.DIST.RANGE Function
B12: Excel Business Statistics 27
B17: Excel Statistical Analysis 24: Build Discrete Probability Distribution, Expected Value, S. Deviation
B18: =LEN(B17) -> 100
C19: =LEN(C18) -> 0
H23: Microsoft 365 Excel

Sheet ES(28)
B2: Excel Business Statistical Analysis:
B8: Poisson Discrete Proabability Distribution and POISSON.DIST Function
B12: Excel Business Statistics 28
B17: Excel Statistical Analysis 24: Build Discrete Probability Distribution, Expected Value, S. Deviation
B18: =LEN(B17) -> 100
C19: =LEN(C18) -> 0
H23: Microsoft 365 Excel

Sheet ES(29)
B2: Excel Business Statistical Analysis:
B8: HYPGEOM.DIST Function and Hypergeometric Distribution
B12: Excel Business Statistics 29
B17: Excel Statistical Analysis 24: Build Discrete Probability Distribution, Expected Value, S. Deviation
B18: =LEN(B17) -> 100
C19: =LEN(C18) -> 0
H23: Microsoft 365 Excel

Sheet Print Notes From Excel File
A1: Notes from Excel Workbook File "Ch05-ESA.xlsm":
A3: Chapter 4 Terms:
A4: Probability
A5: E = Event, P = Probability, then P(E) = A Number between 0 and 1, inclusive.
A6: Estimate of the unknown future
A7: Random Experiment:
A8: 1) Well Defined Outcomes
A9: 2) Any single Trial only one outcome can occur
A10: 3) Outcome occurs by chance
A11: Multi-Step Experiment:
A12: Random Experiment with more than 1 Step/Trial
A13: Sample Point
A14: Sample Point = Experimental Outcome
A15: Sample Space
A16: List of all Possible Sample Points/Experimental Outcomes
A17: {Total Number Sample Points} for Multi-Step Experiment:
A18: k = Number of Steps
A19: nk = Outcomes for particular Step
A20: {Total Number Sample Points} = n1 + n2 + … nk
A21: If number of outcomes is same for each Step, {Total Number Sample Points} = n^k
A22: Assigning Probability
A23: Classical = All Sample Points are equally likely
A24: Relative Frequency = Data from past is Relative Frequency Table that has categories which are:
A25: Mutually Exclusive (no item fits into more than one category) and Collectively Exhaustive (enough categories to count everything).
A26: Subjective = Outcomes not equally likely, Little past data, Use best information you can find but it will be your personal belief
A27: Requirements for Assigning Probabilities:
A28: 1) All Sample Points must have a probability between 0 and 1, inclusive
A29: 2) Sum of all Sample Point Probabilities = 1
A30: Event
A31: Collection of 1 or more Sample Points
A32: Probability of an Event
A33: Sum of the probabilities of the Sample Points in the Event
A35: Chapter 5:
A36: Random Variables
A37: A numerical description of the outcome of an experiment
A38: Discrete Random Variables
A39: May assume either: a finite number of values like: 1, 2, 3 or an infinite sequence of numbers like 1, 2, 3… (Gaps between numbers)
A40: Continuous Random Variables
A41: May assume any numerical value in an interval or collection of intervals. Depends on measuring instrument
A42: Many possible numbers between 1 & 2. "No Gaps"
A43: Probability Distributions
A44: A description/Presentation of how the probabilities are distributed over the values of the random variable.
A45: Models
A46: Random Variables and Probability Distributions are models for populations of data that we can use to estimate the unknown future.
A47: Discrete Probability Distributions
A48: A description/Presentation of how the probabilities are distributed over the values of a discrete random variable.
A49: Discrete Probability Function
A50: A probability function, f(x) or P(x), that provides the probability for each value that the discrete random variable can assume.
A51: Requirements for f(x) or P(x)
A52: f(x) = P(x) >= 0 AND ∑f(x) = ∑P(x) = 1
A53: Methods for creating Discrete Probability Distributions:
A54: Classical, Relative Frequency (for large data sets it is called Empirical Discrete Distribution) and Subjective
A55: Advantage of Probability Distributions?
A56: Once you have the table, it is easy to calculate probabilities for a variety of Events!!!
A57: Steps for building a Discrete Probability Distribution:
A58: 1) Define Random Variable
A59: 2) Build Frequency Distribution
A60: 3) Calculate Relative Frequency - P(x) = f(x)
A61: 4) Check Requirement #1: f(x) >= 0 , Check Requirement #2: Σf(x) = 1
A62: 5) Create a Column Chart for a Discrete Variable (Columns do not touch)
A63: 6) Make predictions
A64: Expected Value for a Discrete Random Variables
A65: E(x) = µ = Weighted Average = ∑x*f(x) = ∑x*P(x), use: =SUMPRODUCT(XRange,P(x)Range)
A66: Variance and Standard Deviation for a Discrete Random Variables
A67: Var = ∑(x-E(x))^2*P(x), use: =SUMPRODUCT((Xrange-E(x))^2,P(x)Range)
A68: SD = SQRT(∑(x-E(x))^2*P(x)), use: =SQRT(SUMPRODUCT((Xrange-E(x))^2,P(x)Range))
A69: Binomial Experiment
A70: Requirements:
A71: 1) Fixed Number of Trials, n = # Trials
A72: 2) Each Trial can only result in two outcomes: Success or Failure
A73: 3) Probability of success is the same for each trial
A74: 4) Trials are independent (one does not affect the next)
A75: Binomial Probability Function
A76: f(x) = P(x) = n!/(x!*(n-x)!)*p^x*(1-p)^(n-x)
A77: In Excel use: BINOM.DIST(x,n,p,cumulative)
A78: x = Number of Successes = Discrete Random Variable = number_s
A79: n = Total Steps/Trials = trials
A80: p = Probability of Success = probability_s
A81: cumulative = FALSE = 0 = probability mass function. Use to calculate exactly x or height of column in Column Chart
A82: OR
A83: cumulative = TRUE = 1 = probability mass function. Use to calculate <= x (everything from smallest up to and including x)
A84: In Excel use: BINOM.DIST.RANGE(n,p,x_low,x_high)
A85: n = Total Steps/Trials = trials
A86: p = Probability of Success = probability_s
A87: x_low = Number of Successes for first x = Discrete Random Variable = number_s. If you use this argument and NOT the [number2] argument, the function will calculate the probability for the x value, which is also the height of the column if you plot all x vales in a Column Chart.
A88: x_high = Number of Successes for second x = Discrete Random Variable = [number_s2]. If you use this argument and the number_s argument, the function calculates the total probability between the first x and second x, inclusive.
A89: Expected Value and Variance and Standard Deviation for a Binomial Distribution
A90: E(x) = µ = mean n*p
A91: Standard Deviation = s = SQRT(n*p*(1-p))
A92: Poisson Distribution
A93: Poisson Probability Distribution can be used to estimate the number of occurrences over a specified interval of time or space
A94: Discrete Random Variable = x = Number of occurrences over a specified interval of time or space.
A95: Good for number of arrivals in waiting line situations over a certain time period (like 15 mins)
A96: Good for number of repairs needed over a distance of road or pipe
A97: Properties (Requirements) of a Poisson Experiment:
A98: 1) The probability of an occurrence is the same for any two intervals of equal length
A99: 2) The occurrence or nonoccurrence in any interval is independent of the occurrence or nonoccurrence in any other interval
A100: 3) Mean = Variance (observed from calculations made off of source data)
A101: f(x) = P(x) = the probability of x occurrences in an interval = height of column when you plot column chart.
A102: Discrete Random Variable = x = Number of occurrences over a specified interval of time or space.
A103: No upper limit for X: 0,1,2,3… , but as x increases past the mean, the probability decreases and gest quite small.
A104: Mean = µ = Calculated from past data
A105: e = constant = 2.71828 = =EXP(1) in Excel
A106: In Excel use: POISSON.DIST(x,mean,cumulative)
A107: x = Number of occurrences over a specified interval of time or space = Discrete Random Variable
A108: mean = µ = Calculated from past data
A109: cumulative = 0 for exactly x OR 1 for less than or equal to x
A110: Hypergeometric Distribution
A111: Similar to Binomial Distribution except: 1) the trails are not independent AND 2) the probability of success changes from trial to trial.
A112: In Excel use: HYPGEOM.DIST(x,n,population_s,number_pop,cumulative)
A113: x = Number of Successes in Sample = Discrete Random Variable = sample_s
A114: n = Trials/Steps in Experiment = Sample Size = number_sample
A115: Number Successes in Pop. = population_s
A116: Population Size = number_pop
A117: cumulative = FALSE = 0 = probability mass function. Use to calculate exactly x
A118: OR
A119: cumulative = TRUE = 1 = probability mass function. Use to calculate <= x (everything from smallest up to and including x)

Sheet Print B
A1: Binomial Example in Excel:
A2: An insurance agent has appointments with 4 clients tomorrow.
A3: From past data, the chance of making a sale is 1 in 5. What is likelihood that she will sell 3 policies in 4 tries?
A4: Binomial Experiment?
A5: 1 | B5: Fixed # of Identical Trials = n | E5: Yes
A6: 2 | B6: Each trial only results in S or F | E6: Yes
A7: 3 | B7: p remains the same for each trial | E7: Yes
A8: 4 | B8: All events are independent | E8: Yes
A10: n = # of Fixed Trials = Appointments | E10: 4
A11: p = Prob of Success = | E11: 0.2
A12: ="Random Discrete Variable = x = # Sales in "&E10&" Tries" -> Random Discrete Variable = x = # Sales in 4 Tries
A13: Mean = µ = E(x) = Expected Value = | E13: =SUMPRODUCT(A25:A29,B25:B29) -> 0.8 | G13: =_xlfn.IFNA(ADDRESS(ROW(E13:E16),COLUMN(E13:E16),4)&": "&_xlfn.FORMULATEXT(E13:E16),"") -> E13: =SUMPRODUCT(A25:A29,B25:B29)
A14: Mean = µ = E(x) = Expected Value = | E14: =E10*E11 -> 0.8 | G14: E14: =E10*E11
A15: Standard Deviation = s = | E15: =SQRT(SUMPRODUCT((A25:A29-E13)^2,B25:B29)) -> 0.8 | G15: E15: =SQRT(SUMPRODUCT((A25:A29-E13)^2,B25:B29))
A16: Standard Deviation = s = | E16: =SQRT(E10*E11*(1-E11)) -> 0.8 | G16: E16: =SQRT(E10*E11*(1-E11))
C21: X | D21: P(X) | E21: P(X)
A22: Math Formula > | C22: 3 | D22: ="P(x = "&C22&")" -> P(x = 3) | E22: =COMBIN(E10,C22)*E11^C22*(1-E11)^(E10-C22) -> 0.0256 | G22: =_xlfn.IFNA(ADDRESS(ROW(E22),COLUMN(E22),4)&": "&_xlfn.FORMULATEXT(E22),"") -> E22: =COMBIN(E10,C22)*E11^C22*(1-E11)^(E10-C22)
A24: X | B24: P(x) = f(x)
A25: 0 | B25: =_xlfn.BINOM.DIST.RANGE(E10,E11,A25:A29) -> 0.4096 | D25: =_xlfn.IFNA(ADDRESS(ROW(B25),COLUMN(B25),4)&": "&_xlfn.FORMULATEXT(B25),"") -> B25: =BINOM.DIST.RANGE(E10,E11,A25:A29)
A26: 1 | B26: 0.4096
A27: 2 | B27: 0.1536
A28: 3 | B28: 0.0256
A29: 4 | B29: 0.0016
A30: Total | B30: =SUM(B25:B29) -> 1
A32: P(X) | B32: SUM | C32: P(X) | D32: X Lower | E32: X Upper
A33: ="P(x = "&D33&")" -> P(x = 3) | B33: =SUM(B28) -> 0.0256 | C33: =_xlfn.BINOM.DIST.RANGE(E10,E11,D33:D37,E33:E37) -> 0.0256 | D33: 3 | E33: 3 | G33: =_xlfn.IFNA(ADDRESS(ROW(B33:B38),COLUMN(B33:B38),4)&": "&_xlfn.FORMULATEXT(B33:B38),"") -> B33: =SUM(B28) | I33: =_xlfn.IFNA(ADDRESS(ROW(C33),COLUMN(C33),4)&": "&_xlfn.FORMULATEXT(C33),"") -> C33: =BINOM.DIST.RANGE(E10,E11,D33:D37,E33:E37)
A34: ="P(x <= "&D34&")" -> P(x <= 0) | B34: =SUM(B25:B28) -> 0.9984 | C34: 0.9984 | D34: 0 | E34: 3 | G34: B34: =SUM(B25:B28)
A35: ="P(x > "&D35&")" -> P(x > 4) | B35: =SUM(B29) -> 0.0016 | C35: 0.0016 | D35: 4 | E35: 4 | G35: B35: =SUM(B29)
A36: ="P(x >= "&D36&")" -> P(x >= 3) | B36: =SUM(B28:B29) -> 0.0272 | C36: 0.0272 | D36: 3 | E36: 4 | G36: B36: =SUM(B28:B29)
A37: ="P(x < "&D37&")" -> P(x < 0) | B37: =SUM(B25:B27) -> 0.9728 | C37: 0.9728 | D37: 0 | E37: 2 | G37: B37: =SUM(B25:B27)
A38: ="P(x <= "&D38&")" -> P(x <= 3) | B38: =SUM(B25:B28) -> 0.9984 | C38: =_xlfn.BINOM.DIST(D38,E10,E11,1) -> 0.9984 | D38: 3 | G38: B38: =SUM(B25:B28) | I38: =_xlfn.IFNA(ADDRESS(ROW(C38),COLUMN(C38),4)&": "&_xlfn.FORMULATEXT(C38),"") -> C38: =BINOM.DIST(D38,E10,E11,1)

Sheet Print P
A1: Poisson Excel in Excel:
A2: ="Arrivals to Dick's Hamburgers at 45th Ave in Seattle at Saturday noon lunch during a 1-minute period. Mean = "&ROUND(B4,2) -> Arrivals to Dick's Hamburgers at 45th Ave in Seattle at Saturday noon lunch during a 1-minute period. Mean = 3.88
A4: Mean | B4: 3.879693487
A5: Variance | B5: 3.754687023
A7: X = Arrivals During 1 min | B7: Poisson P(X)
A8: 0 | B8: =_xlfn.POISSON.DIST(A8:A23,B4,0) -> 0.02065715591 | D8: =_xlfn.IFNA(_xlfn.FORMULATEXT(B8:B24),"") -> =POISSON.DIST(A8:A23,B4,0)
A9: 1 | B9: 0.08014343322
A10: 2 | B10: 0.1554659779
A11: 3 | B11: 0.2010534473
A12: 4 | B12: 0.1950064375
A13: 5 | B13: 0.1513130411
A14: 6 | B14: 0.09784136999
A15: 7 | B15: 0.05422778941
A16: 8 | B16: 0.02629840017
A17: 9 | B17: 0.01133663687
A18: 10 | B18: 0.004398267623
A19: 11 | B19: 0.001551266386
A20: 12 | B20: 0.000501536508
A21: 13 | B21: 0.0001496775326
A22: 14 | B22: 4.147878201e-05
A23: 15 | B23: 1.072833069e-05
A24: Total | B24: =SUM(B8:B23) -> 0.9999966446 | D24: =SUM(B8:B23)
A26: Low X | B26: High X | E26: SUM | F26: POISSON | G26: Formula
B27: 0 | D27: ="P("&B27&")" -> P(0) | E27: =SUM(B8) -> 0.02065715591 | F27: =_xlfn.POISSON.DIST(B27,B4,0) -> 0.02065715591 | G27: =B4^B27*EXP(1)^-B4/FACT(B27) -> 0.02065715591 | I27: =IF(_xlfn.ISFORMULA(E27),_xlfn.FORMULATEXT(E27),"") -> =SUM(B8) | K27: =IF(_xlfn.ISFORMULA(F27),_xlfn.FORMULATEXT(F27),"") -> =POISSON.DIST(B27,B4,0) | N27: =IF(_xlfn.ISFORMULA(G27),_xlfn.FORMULATEXT(G27),"") -> =B4^B27*EXP(1)^-B4/FACT(B27)
A28: 3 | B28: 5 | D28: ="P("&A28&" <= No. Arvls. <= "&B28&")" -> P(3 <= No. Arvls. <= 5) | E28: =SUM(B11:B13) -> 0.5473729259 | F28: =_xlfn.POISSON.DIST(B28,B4,1)-_xlfn.POISSON.DIST(A28-1,B4,1) -> 0.5473729259 | I28: =IF(_xlfn.ISFORMULA(E28),_xlfn.FORMULATEXT(E28),"") -> =SUM(B11:B13) | K28: =IF(_xlfn.ISFORMULA(F28),_xlfn.FORMULATEXT(F28),"") -> =POISSON.DIST(B28,B4,1)-POISSON.DIST(A28-1,B4,1)
A29: 2 | D29: ="P( No. Arvls > "&A29&")" -> P( No. Arvls > 2) | E29: =SUM(B11:B23) -> 0.7437300775 | F29: =1-_xlfn.POISSON.DIST(A29,B4,1) -> 0.7437334329 | I29: =IF(_xlfn.ISFORMULA(E29),_xlfn.FORMULATEXT(E29),"") -> =SUM(B11:B23) | K29: =IF(_xlfn.ISFORMULA(F29),_xlfn.FORMULATEXT(F29),"") -> =1-POISSON.DIST(A29,B4,1)

Sheet Print HG
B2: Hypergeometric Distribution
B3: Similar to Binomial Distribution except: 1) the trails are not independent AND 2) the probability of success changes from trial to trial.
B4: In Excel use: HYPGEOM.DIST(x,n,population_s,number_pop,cumulative)
B5: x = Number of Successes in Sample = Discrete Random Variable = sample_s
B6: n = Trials/Steps in Experiment = Sample Size = number_sample
B7: Number Successes in Pop. = population_s
B8: Population Size = number_pop
B9: cumulative = FALSE = 0 = probability mass function. Use to calculate exactly x
B10: OR
B11: cumulative = TRUE = 1 = probability mass function. Use to calculate <= x (everything from smallest up to and including x)
B13: Example 1:
B25: Goal: Calculate the probability that you can pull 2 straight Queens from a deck of cards (without replacement)?
B27: Experiment variables:
B28: Population size = # of cards in deck = number_pop = | M28: 52
B29: Successes in population = # of Queen cards in population = population_s = | M29: 4
B30: n = Fixed number of trials = sample size = # of cards pulled = number_sample = | M30: 2
B31: X = Random Discrete Variable that counts successes in sample = # of Queen cards selected in sample = sample_s = | M31: 2
B33: Goal: P(Pull 2 straight Queens from deck of cards without replacement) =
C35: This means the sample space will change and the events are not independent.
C36: We will have to use Conditional Probability and the probability of success is NOT the same for each trial.
C38: Because there is only one sample point, we can manually calculate it this way:
C40: Sample Points = | G40: =COMBIN(M30,M31) -> 1 | K40: =_xlfn.IFNA(_xlfn.FORMULATEXT(G40:G43),"") -> =COMBIN(M30,M31)
C41: P(Q2 AND Q1) = P(Q1)* P(Q2 | Q1) = | G41: =4/52*(4-1)/(52-1) -> 0.004524886878 | K41: =4/52*(4-1)/(52-1)
C42: P(Q2 AND Q1) = P(Q1)* P(Q2 | Q1) = | G42: =M29/M28*(M29-1)/(M28-1) -> 0.004524886878 | K42: =M29/M28*(M29-1)/(M28-1)
C43: P(Q2 AND Q1) = | G43: =_xlfn.HYPGEOM.DIST(M31,M30,M29,M28,0) -> 0.004524886878 | K43: =HYPGEOM.DIST(M31,M30,M29,M28,0)
B46: Example 2:
B58: Goal: Calculate the probability that you can pull 2 Face Cards in 5 tries from a deck of cards (without replacement)?
B60: Experiment variables:
B61: Population size = # of cards in deck = number_pop = | M61: 52
B62: Successes in population = # of Queen cards in population = population_s = | M62: 12
B63: n = Fixed number of trials = sample size = # of cards pulled = number_sample = | M63: 5
B64: X = Random Discrete Variable that counts successes in sample = # of Queen cards selected in sample = sample_s = | M64: 2
B66: Goal: P(Pull Queens in 5 tries from deck of cards without replacement) =
C68: Sample space will change and the events are not independent.
C69: Must use Conditional Probability. The probability of success is NOT the same for each trial.
C71: But this event has many sample points:
C73: Sample Points = | G73: =COMBIN(M63,M64) -> 10 | K73: =_xlfn.IFNA(_xlfn.FORMULATEXT(G73:G75),"") -> =COMBIN(M63,M64)
C74: P(2 Face Cards in 5 Tries) = | G74: =SUM(H78:H87) -> 0.2509003601 | K74: =SUM(H78:H87)
C75: P(2 Face Cards in 5 Tries) = | G75: =_xlfn.HYPGEOM.DIST(M64,M63,M62,M61,0) -> 0.2509003601 | K75: =HYPGEOM.DIST(M64,M63,M62,M61,0)
B77: Sample Point | C77: Step 1 | D77: Step 2 | E77: Step 3 | F77: Step 4 | G77: Step 5 | H77: Prob.
B78: =_xlfn.SEQUENCE(G73) -> 1 | C78: F | D78: F | E78: NF | F78: NF | G78: NF | H78: =12/52*11/51*(50-10)/50*(49-10)/49*(48-10)/48 -> 0.02509003601 | J78: =_xlfn.IFNA(_xlfn.FORMULATEXT(H78:H87),"") -> =12/52*11/51*(50-10)/50*(49-10)/49*(48-10)/48
B79: 2 | C79: F | D79: NF | E79: F | F79: NF | G79: NF | H79: =12/52*(51-11)/51*11/50*(49-10)/49*(48-10)/48 -> 0.02509003601 | J79: =12/52*(51-11)/51*11/50*(49-10)/49*(48-10)/48
B80: 3 | C80: F | D80: NF | E80: NF | F80: F | G80: NF | H80: =12/52*(51-11)/51*(50-11)/50*11/49*(48-10)/48 -> 0.02509003601 | J80: =12/52*(51-11)/51*(50-11)/50*11/49*(48-10)/48
B81: 4 | C81: F | D81: NF | E81: NF | F81: NF | G81: F | H81: =12/52*(51-11)/51*(50-11)/50*(49-11)/49*11/48 -> 0.02509003601 | J81: =12/52*(51-11)/51*(50-11)/50*(49-11)/49*11/48
B82: 5 | C82: NF | D82: F | E82: F | F82: NF | G82: NF | H82: =(52-12)/52*12/51*11/50*(49-10)/49*(48-10)/48 -> 0.02509003601 | J82: =(52-12)/52*12/51*11/50*(49-10)/49*(48-10)/48
B83: 6 | C83: NF | D83: F | E83: NF | F83: F | G83: NF | H83: =(52-12)/52*12/51*(50-11)/50*11/49*(48-10)/48 -> 0.02509003601 | J83: =(52-12)/52*12/51*(50-11)/50*11/49*(48-10)/48
B84: 7 | C84: NF | D84: F | E84: NF | F84: NF | G84: F | H84: =(52-12)/52*12/51*(50-11)/50*(49-11)/49*11/48 -> 0.02509003601 | J84: =(52-12)/52*12/51*(50-11)/50*(49-11)/49*11/48
B85: 8 | C85: NF | D85: NF | E85: F | F85: F | G85: NF | H85: =(52-12)/52*(51-12)/51*12/50*11/49*(48-10)/48 -> 0.02509003601 | J85: =(52-12)/52*(51-12)/51*12/50*11/49*(48-10)/48
B86: 9 | C86: NF | D86: NF | E86: F | F86: NF | G86: F | H86: =(52-12)/52*(51-12)/51*12/50*(49-11)/49*11/48 -> 0.02509003601 | J86: =(52-12)/52*(51-12)/51*12/50*(49-11)/49*11/48
B87: 10 | C87: NF | D87: NF | E87: NF | F87: F | G87: F | H87: =(52-12)/52*(51-12)/51*(50-12)/50*12/49*11/48 -> 0.02509003601 | J87: =(52-12)/52*(51-12)/51*(50-12)/50*12/49*11/48
B89: Example 3:
B90: For the experiment of pulling 5 cards from deck of cards without replacement, and the X Discrete Variable = # of Face Cards pulled, here are the probabilities for all possible X values:
B92: X = # Face Cards | C92: P(X) | E92: Experiment variables:
B93: =_xlfn.SEQUENCE(M63+1,,0) -> 0 | C93: =_xlfn.HYPGEOM.DIST(_xlfn.ANCHORARRAY(B93),M63,M62,M61,0) -> 0.2531812725 | E93: Population size = number_pop = | J93: 52 | L93: =_xlfn.IFNA(_xlfn.FORMULATEXT(C93),"") -> =HYPGEOM.DIST(B93#,M63,M62,M61,0)
B94: 1 | C94: 0.4219687875 | E94: Successes in population = population_s = | J94: 12
B95: 2 | C95: 0.2509003601 | E95: n = Fixed number of trials = number_sample = | J95: 5
B96: 3 | C96: 0.06602641056 | E96: X = counts successes in sample = sample_s = | J96: 2
B97: 4 | C97: 0.007618431988
B98: 5 | C98: 0.0003047372795
B99: Total | C99: =SUM(_xlfn.ANCHORARRAY(C93)) -> 1 | L99: =_xlfn.IFNA(_xlfn.FORMULATEXT(C99),"") -> =SUM(C93#)
B101: Example 4:
B102: Calculate the probability of getting 0 Face cards OR 1 face card OR 2 face cards in 5 tries:
B103: X | C103: P(X) | D103: ="P(x<="&B104&")" -> P(x<=2)
B104: 2 | C104: ="P(x<="&B104&")" -> P(x<=2) | D104: =SUM(C93:C95) -> 0.9260504202 | G104: =_xlfn.IFNA(_xlfn.FORMULATEXT(D104:D105),"") -> =SUM(C93:C95)
B105: 2 | C105: ="P(x<="&B105&")" -> P(x<=2) | D105: =_xlfn.HYPGEOM.DIST(J96,J95,J94,J93,1) -> 0.9260504202 | G105: =HYPGEOM.DIST(J96,J95,J94,J93,1)
B108: Example 5:
B109: During the financial crisis of 2008, of the ten biggest banks, only three increase lending after they were given TARP funds of about 2 Billion dolars were given out.
B110: ="If you took at random sample of "&G119&" of the ten biggest banks at that time, what is the probability that 1 of them would have increased lending, 3?" -> If you took at random sample of 4 of the ten biggest banks at that time, what is the probability that 1 of them would have increased lending, 3?
B112: Experiment = Asking 3 banks out of 10 without replacement, if they increased lending
B113: Success = Bank increase lending
B114: Discrete Variable = X = # of banks that increased lending
B116: Experiment variables: | J116: X | K116: P(X)
B117: Population size = number_pop = | G117: 10 | J117: =_xlfn.SEQUENCE(G119+1,,0) -> 0 | K117: =_xlfn.HYPGEOM.DIST(_xlfn.ANCHORARRAY(J117),G119,G118,G117,0) -> 0.1666666667 | M117: =_xlfn.IFNA(_xlfn.FORMULATEXT(K117),"") -> =HYPGEOM.DIST(J117#,G119,G118,G117,0)
B118: Successes in population = population_s = | G118: 3 | J118: 1 | K118: 0.5
B119: n = Fixed number of trials = number_sample = | G119: 4 | J119: 2 | K119: 0.3
B120: X1 = counts successes in sample = sample_s = | G120: 1 | J120: 3 | K120: 0.03333333333
B121: X2 = counts successes in sample = sample_s = | G121: 3 | J121: 4 | K121: 0
B123: Goals:
C124: Sample Points for 1 in 4 = | G124: =COMBIN(G119,G121) -> 4 | I124: =_xlfn.IFNA(_xlfn.FORMULATEXT(G124:G128),"") -> =COMBIN(G119,G121)
C125: P(1 of 4 banks increased lending) | G125: =3/10*(9-2)/9*(8-2)/8*(7-2)/7*G124 -> 0.5 | I125: =3/10*(9-2)/9*(8-2)/8*(7-2)/7*G124
C126: P(1 of 4 banks increased lending) | G126: =SUM(G131:G134) -> 0.5 | I126: =SUM(G131:G134)
C127: P(1 of 4 banks increased lending) | G127: =_xlfn.HYPGEOM.DIST(G120,G119,G118,G117,0) -> 0.5 | I127: =HYPGEOM.DIST(G120,G119,G118,G117,0)
C128: P(3 of 4 banks increased lending) | G128: =_xlfn.HYPGEOM.DIST(G121,G119,G118,G117,0) -> 0.03333333333 | I128: =HYPGEOM.DIST(G121,G119,G118,G117,0)
B130: Sample Point | C130: Step 1 | D130: Step 2 | E130: Step 3 | F130: Step 4 | G130: Prob.
B131: 1 | C131: Lend | D131: Not Lend | E131: Not Lend | F131: Not Lend | G131: =3/10*(9-2)/9*(8-2)/8*(7-2)/7 -> 0.125 | I131: =_xlfn.IFNA(_xlfn.FORMULATEXT(G131:G134),"") -> =3/10*(9-2)/9*(8-2)/8*(7-2)/7
B132: 2 | C132: Not Lend | D132: Lend | E132: Not Lend | F132: Not Lend | G132: =7/10*3/9*(8-2)/8*(7-2)/7 -> 0.125 | I132: =7/10*3/9*(8-2)/8*(7-2)/7
B133: 3 | C133: Not Lend | D133: Not Lend | E133: Lend | F133: Not Lend | G133: =7/10*(7-1)/9*3/8*(7-2)/7 -> 0.125 | I133: =7/10*(7-1)/9*3/8*(7-2)/7
B134: 4 | C134: Not Lend | D134: Not Lend | E134: Not Lend | F134: Lend | G134: =7/10*(7-1)/9*(7-2)/8*3/7 -> 0.125 | I134: =7/10*(7-1)/9*(7-2)/8*3/7

Sheet Topics
B2: Chapter 5
B4: Discrete Probability Distributions
B7: Video 23 | C7: Discrete Probability Distributions: Terms and Definitions
B8: Video 24 | C8: Build Discrete Probability Distributions with Worksheet Formulas
B9: Video 25 | C9: Import Excel data: Build PivotTable Discrete Probability Distribution
B10: Video 26 | C10: Accounting & Finance Discrete Probability Distribution Examples
B11: Video 27 | C11: Binomial Probability Distributions. BINOM.DIST.RANGE Function & Chart
B12: Video 28 | C12: Poisson Distribution and POISSON.DIST Function
B13: Video 29 | C13: Hypergeometric Distribution and HYPGEOM.DIST Function
B16: Excel Statistical Analysis 27: Binomial Probability Distributions. BINOM.DIST.RANGE Function & Chart
B17: =LEN(B16) -> 100

Sheet PD(1)
A1: Experiment of tossing coin three times
A2: Steps in Experiment | B2: 3
A3: Outcomes Step 1 | B3: 2
A4: Outcomes Step 2 | B4: 2
A5: Outcomes Step 3 | B5: 2 | F5: Success =
A6: Total Experimental Outcomes | B6: =PRODUCT(B3:B5) -> 8 | C6: (Sample Points) | F6: Tails
A7: P(for each) = | B7: =1/B6 -> 0.125 | C7: Classical | F7: ="Notation for "&F6&" is "&LEFT(F6,1) -> Notation for Tails is T
F8: =LEFT(F6,1) -> T
A9: # SP | B9: Toss 1 | C9: Toss 2 | D9: Toss 3 | E9: Sample Space | F9: Probability of Sample Point | G9: # of heads for sample points
A10: 1 | B10: H | C10: H | D10: H | E10: ="("&B10:B17&", "&C10:C17&", "&D10:D17&")" -> (H, H, H) | F10: =_xlfn.SEQUENCE(B6,,B7,0) -> 0.125 | G10: =COUNTIF(B10:D10,$F$8) -> 0
A11: 2 | B11: T | C11: H | D11: H | E11: (T, H, H) | F11: 0.125 | G11: 1
A12: 3 | B12: H | C12: T | D12: H | E12: (H, T, H) | F12: 0.125 | G12: 1
A13: 4 | B13: H | C13: H | D13: T | E13: (H, H, T) | F13: 0.125 | G13: 1
A14: 5 | B14: T | C14: T | D14: H | E14: (T, T, H) | F14: 0.125 | G14: 2
A15: 6 | B15: T | C15: H | D15: T | E15: (T, H, T) | F15: 0.125 | G15: 2
A16: 7 | B16: H | C16: T | D16: T | E16: (H, T, T) | F16: 0.125 | G16: 2
A17: 8 | B17: T | C17: T | D17: T | E17: (T, T, T) | F17: 0.125 | G17: 3
F18: =SUM(F10:F17) -> 1
A19: x = Discrete Random Variable = | B19: ="# of "&F6&" in 3 flips" -> # of Tails in 3 flips
E20: Steps: | F20: #1 | G20: Define Random Variable
A21: X | B21: Frequency | C21: P(X) = f(x) | F21: #2 | G21: Build Frequency Distribution
A22: 0 | B22: =COUNTIF(G10:G17,A22:A25) -> 1 | C22: =_xlfn.ANCHORARRAY(B22)/B26 -> 0.125 | F22: #3 | G22: Calculate Relative Frequency - P(x) = f(x)
A23: 1 | B23: 3 | C23: 0.375 | F23: #4 | G23: Check Requirement #1: f(x) >= 0
A24: 2 | B24: 3 | C24: 0.375 | F24: #5 | G24: Check Requirement #2: Σf(x) = 1
A25: 3 | B25: 1 | C25: 0.125 | F25: #6 | G25: Create a Column Chart for a Discrete Variable (Columns do not touch)
A26: Total | B26: =SUM(B22:B25) -> 8 | C26: =SUM(C22:C25) -> 1 | F26: #7 | G26: Make predictions
A28: P(X =1) | B28: =C22 -> 0.125
A29: P(X > = 2) | B29: =SUM(C24:C25) -> 0.5
A30: P(x = 0 or x = 3) | B30: =SUM(C22,C25) -> 0.25 | C30: =C22+C25 -> 0.25
A31: P(X not 2) | B31: =SUM(C22:C23,C25) -> 0.625 | C31: =1-C24 -> 0.625

Sheet PD(2)
A1: Steps to Build Discrete Probability Distribution:
A2: #1 | B2: Define Random Variable
A3: #2 | B3: Build Frequency Distribution
A4: #3 | B4: Calculate Relative Frequency = P(x) = f(x)
A5: #4 | B5: Check Requirement #1: f(x) >= 0 , Check Requirement #2: Σf(x) = 1
A6: #5 | B6: Create a Column Chart for a Discrete Variable (Columns do not touch)
A7: #6 | B7: Make predictions
A9: Worksheet formulas have two advantages over PivotTable: 1) Update instantly when source data changes and 2) You can select part of a report or the whole report and make a chart.
A11: Isaac's Italian Restaurant has 4 banquet rooms. | M11: Chart Title: | N11: Isaac's Italian Restaurant Discrete Prob. Distribution
A12: Isaac collected the below data over last 6 months. | D12: Define Variable: | E12: X = Random Discrete Variable = Number of Rooms Used for the Day
A13: They will get more data later. | D13: Number of Rooms | E13: 4
A15: Date | B15: RoomsUsed | D15: X = # Rooms Used | E15: Frequency | F15: P(X) | H15: Req. 1 | J15: X -E(X) | K15: (X - E(X))^2 | L15: (X - E(X))^2 * P(X)
A16: 2023-01-07 | B16: 1
A17: 2023-01-08 | B17: 2
A18: =A16+7 -> 2023-01-14 | B18: 4
A19: =A17+7 -> 2023-01-15 | B19: 3
A20: 2023-01-21 | B20: 3
A21: 2023-01-22 | B21: 2 | D21: Total | H21: <Req. 2
A22: 2023-01-28 | B22: 2
A23: 2023-01-29 | B23: 2 | K23: s^2
A24: 2023-02-04 | B24: 4 | D24: Mean = E(x) = µ | K24: s
A25: 2023-02-05 | B25: 1 | D25: Mean
A26: 2023-02-11 | B26: 2 | D26: SD = s | J26: Sum of Actual Deviations
A27: 2023-02-12 | B27: 2 | D27: Population SD
A28: 2023-02-18 | B28: 2
A29: 2023-02-19 | B29: 1 | D29: P(X <=1) | I29: Some conclusions:
A30: 2023-02-25 | B30: 1 | D30: P(X = 2 OR X = 3) | I30: People like the banquet rooms
A31: 2023-02-26 | B31: 2 | D31: P(X >0) | I31: Maybe we don't need 4 rooms
A32: 2023-03-04 | B32: 2 | I32: Staffing should anticipate 1-3 rooms being used
A33: 2023-03-05 | B33: 2 | I33: 42% of the days 2 rooms are used
A34: 2023-03-11 | B34: 4
A35: 2023-03-12 | B35: 2
A36: 2023-03-18 | B36: 3
A37: 2023-03-19 | B37: 2
A38: 2023-03-25 | B38: 3
A39: 2023-03-26 | B39: 3
A40: 2023-04-01 | B40: 2
A41: 2023-04-02 | B41: 2
A42: 2023-04-08 | B42: 2
A43: 2023-04-09 | B43: 2
A44: 2023-04-15 | B44: 3
A45: 2023-04-16 | B45: 3
A46: 2023-04-22 | B46: 1
A47: 2023-04-23 | B47: 1
A48: 2023-04-29 | B48: 3
A49: 2023-04-30 | B49: 3
A50: 2023-05-06 | B50: 1
A51: 2023-05-07 | B51: 3
A52: 2023-05-13 | B52: 2
A53: 2023-05-14 | B53: 3
A54: 2023-05-20 | B54: 1
A55: 2023-05-21 | B55: 1
A56: 2023-05-27 | B56: 2
A57: 2023-05-28 | B57: 1
A58: 2023-06-03 | B58: 1
A59: 2023-06-04 | B59: 4
A60: 2023-06-10 | B60: 3
A61: 2023-06-11 | B61: 1
A62: 2023-06-17 | B62: 3
A63: 2023-06-18 | B63: 2
A64: 2023-06-24 | B64: 2
A65: 2023-06-25 | B65: 2
D75: New Data:
D77: 2023-07-01 | E77: 2
D78: 2023-07-02 | E78: 3
D79: 2023-07-08 | E79: 3
D80: 2023-07-09 | E80: 2
D81: 2023-07-15 | E81: 2
D82: 2023-07-16 | E82: 2
D83: 2023-07-22 | E83: 1
D84: 2023-07-23 | E84: 2
D85: 2023-07-29 | E85: 2
D86: 2023-07-30 | E86: 3
D87: 2023-08-05 | E87: 0
D88: 2023-08-06 | E88: 3
D89: 2023-08-12 | E89: 4
D90: 2023-08-13 | E90: 3
D91: 2023-08-19 | E91: 1
D92: 2023-08-20 | E92: 2
D93: 2023-08-26 | E93: 2
D94: 2023-08-27 | E94: 1
D95: 2023-09-02 | E95: 2
D96: 2023-09-03 | E96: 3
D97: 2023-09-09 | E97: 2
D98: 2023-09-10 | E98: 2
D99: 2023-09-16 | E99: 3
D100: 2023-09-17 | E100: 3
D101: 2023-09-23 | E101: 1
D102: 2023-09-24 | E102: 1
D103: 2023-09-30 | E103: 2
D104: 2023-10-01 | E104: 1
D105: 2023-10-07 | E105: 3
D106: 2023-10-08 | E106: 3
D107: 2023-10-14 | E107: 2
D108: 2023-10-15 | E108: 2
D109: 2023-10-21 | E109: 2
D110: 2023-10-22 | E110: 2
D111: 2023-10-28 | E111: 1
D112: 2023-10-29 | E112: 2
D113: 2023-11-04 | E113: 4
D114: 2023-11-05 | E114: 0
D115: 2023-11-11 | E115: 4
D116: 2023-11-12 | E116: 2
D117: 2023-11-18 | E117: 1
D118: 2023-11-19 | E118: 3
D119: 2023-11-25 | E119: 4
D120: 2023-11-26 | E120: 3
D121: 2023-12-02 | E121: 3
D122: 2023-12-03 | E122: 2
D123: 2023-12-09 | E123: 1
D124: 2023-12-10 | E124: 3
D125: 2023-12-16 | E125: 2
D126: 2023-12-17 | E126: 2

Sheet PD(2an)
A1: Steps to Build Discrete Probability Distribution:
A2: #1 | B2: Define Random Variable
A3: #2 | B3: Build Frequency Distribution
A4: #3 | B4: Calculate Relative Frequency = P(x) = f(x)
A5: #4 | B5: Check Requirement #1: f(x) >= 0 , Check Requirement #2: Σf(x) = 1
A6: #5 | B6: Create a Column Chart for a Discrete Variable (Columns do not touch)
A7: #6 | B7: Make predictions
A9: Worksheet formulas have two advantages over PivotTable: 1) Update instantly when source data changes and 2) You can select part of a report or the whole report and make a chart.
A11: Isaac's Italian Restaurant has 4 banquet rooms. | M11: Chart Title: | N11: Isaac's Italian Restaurant Discrete Prob. Distribution
A12: Isaac collected the below data over last 6 months. | D12: Define Variable: | E12: X = Random Discrete Variable = Number of Rooms Used for the Day
A13: They will get more data later. | D13: Number of Rooms | E13: 4
A15: Date | B15: RoomsUsed | D15: X = # Rooms Used | E15: Frequency | F15: P(X) | H15: Req. 1 | J15: X -E(X) | K15: (X - E(X))^2 | L15: (X - E(X))^2 * P(X) | N15: Formulas Used:
A16: 2023-01-07 | B16: 1 | D16: =_xlfn.SEQUENCE(E13+1,,0) -> 0 | E16: =COUNTIFS(fRoomsAnswer[RoomsUsed],_xlfn.ANCHORARRAY(D16)) -> 2 | F16: =_xlfn.ANCHORARRAY(E16)/E21 -> 0.02 | H16: =_xlfn.ANCHORARRAY(F16)>=0 -> TRUE | J16: =_xlfn.ANCHORARRAY(D16)-E24 -> -2.18 | K16: =_xlfn.ANCHORARRAY(J16)^2 -> 4.7524 | L16: =_xlfn.ANCHORARRAY(F16)*_xlfn.ANCHORARRAY(K16) -> 0.095048 | N16: =_xlfn.IFNA(ADDRESS(ROW(D16),COLUMN(D16),4)&": "&_xlfn.FORMULATEXT(D16),"") -> D16: =SEQUENCE(E13+1,,0)
A17: 2023-01-08 | B17: 2 | D17: 1 | E17: 21 | F17: 0.21 | H17: TRUE | J17: -1.18 | K17: 1.3924 | L17: 0.292404 | N17: =_xlfn.IFNA(ADDRESS(ROW(E16),COLUMN(E16),4)&": "&_xlfn.FORMULATEXT(E16),"") -> E16: =COUNTIFS(fRoomsAnswer[RoomsUsed],D16#)
A18: =A16+7 -> 2023-01-14 | B18: 4 | D18: 2 | E18: 42 | F18: 0.42 | H18: TRUE | J18: -0.18 | K18: 0.0324 | L18: 0.013608 | N18: =_xlfn.IFNA(ADDRESS(ROW(F16),COLUMN(F16),4)&": "&_xlfn.FORMULATEXT(F16),"") -> F16: =E16#/E21
A19: =A17+7 -> 2023-01-15 | B19: 3 | D19: 3 | E19: 27 | F19: 0.27 | H19: TRUE | J19: 0.82 | K19: 0.6724 | L19: 0.181548
A20: 2023-01-21 | B20: 3 | D20: 4 | E20: 8 | F20: 0.08 | H20: TRUE | J20: 1.82 | K20: 3.3124 | L20: 0.264992 | N20: =_xlfn.IFNA(ADDRESS(ROW(E21),COLUMN(E21),4)&": "&_xlfn.FORMULATEXT(E21),"") -> E21: =SUM(E16#)
A21: 2023-01-22 | B21: 2 | D21: Total | E21: =SUM(_xlfn.ANCHORARRAY(E16)) -> 100 | F21: =SUM(_xlfn.ANCHORARRAY(F16)) -> 1 | H21: <Req. 2 | J21: =SUM(_xlfn.ANCHORARRAY(J16)) -> -0.9 | N21: =_xlfn.IFNA(ADDRESS(ROW(F21),COLUMN(F21),4)&": "&_xlfn.FORMULATEXT(F21),"") -> F21: =SUM(F16#)
A22: 2023-01-28 | B22: 2 | N22: =_xlfn.IFNA(ADDRESS(ROW(H16),COLUMN(H16),4)&": "&_xlfn.FORMULATEXT(H16),"") -> H16: =F16#>=0
A23: 2023-01-29 | B23: 2 | K23: s^2 | L23: =SUM(_xlfn.ANCHORARRAY(L16)) -> 0.8476
A24: 2023-02-04 | B24: 4 | D24: Mean = E(x) = µ | E24: =SUMPRODUCT(_xlfn.ANCHORARRAY(D16),_xlfn.ANCHORARRAY(F16)) -> 2.18 | K24: s | L24: =SQRT(L23) -> 0.9206519429 | N24: =_xlfn.IFNA(ADDRESS(ROW(J16),COLUMN(J16),4)&": "&_xlfn.FORMULATEXT(J16),"") -> J16: =D16#-E24
A25: 2023-02-05 | B25: 1 | D25: Mean | E25: =AVERAGE(fRoomsAnswer[RoomsUsed]) -> 2.18 | N25: =_xlfn.IFNA(ADDRESS(ROW(K16),COLUMN(K16),4)&": "&_xlfn.FORMULATEXT(K16),"") -> K16: =J16#^2
A26: 2023-02-11 | B26: 2 | D26: SD = s | E26: =SQRT(SUM((_xlfn.ANCHORARRAY(D16)-E24)^2*_xlfn.ANCHORARRAY(F16))) -> 0.9206519429 | J26: Sum of Actual Deviations | N26: =_xlfn.IFNA(ADDRESS(ROW(L16),COLUMN(L16),4)&": "&_xlfn.FORMULATEXT(L16),"") -> L16: =F16#*K16#
A27: 2023-02-12 | B27: 2 | D27: Population SD | E27: =_xlfn.STDEV.P(fRoomsAnswer[RoomsUsed]) -> 0.9206519429 | J27: =SUM(fRoomsAnswer[RoomsUsed]-E24) -> -1.598721155e-14
A28: 2023-02-18 | B28: 2 | N28: =_xlfn.IFNA(ADDRESS(ROW(E24),COLUMN(E24),4)&": "&_xlfn.FORMULATEXT(E24),"") -> E24: =SUMPRODUCT(D16#,F16#)
A29: 2023-02-19 | B29: 1 | D29: P(X <=1) | E29: =SUM(F16:F17) -> 0.23 | I29: Some conclusions: | N29: =_xlfn.IFNA(ADDRESS(ROW(E25),COLUMN(E25),4)&": "&_xlfn.FORMULATEXT(E25),"") -> E25: =AVERAGE(fRoomsAnswer[RoomsUsed])
A30: 2023-02-25 | B30: 1 | D30: P(X = 2 OR X = 3) | E30: =SUM(F18:F19) -> 0.69 | I30: People like the banquet rooms | N30: E26: =SQRT(SUM((D16#-E24)^2*F16#))
A31: 2023-02-26 | B31: 2 | D31: P(X >0) | E31: =SUM(F17:F20) -> 0.98 | I31: Maybe we don't need 4 rooms | N31: E27: =STDEV.P(fRoomsAnswer[RoomsUsed])
A32: 2023-03-04 | B32: 2 | I32: Staffing should anticipate 1-3 rooms being used
A33: 2023-03-05 | B33: 2 | I33: 42% of the days 2 rooms are used | N33: E29: =SUM(F16:F17)
A34: 2023-03-11 | B34: 4 | N34: E30: =SUM(F18:F19)
A35: 2023-03-12 | B35: 2 | N35: E31: =SUM(F17:F20)
A36: 2023-03-18 | B36: 3
A37: 2023-03-19 | B37: 2
A38: 2023-03-25 | B38: 3
A39: 2023-03-26 | B39: 3
A40: 2023-04-01 | B40: 2
A41: 2023-04-02 | B41: 2
A42: 2023-04-08 | B42: 2
A43: 2023-04-09 | B43: 2
A44: 2023-04-15 | B44: 3
A45: 2023-04-16 | B45: 3
A46: 2023-04-22 | B46: 1
A47: 2023-04-23 | B47: 1
A48: 2023-04-29 | B48: 3
A49: 2023-04-30 | B49: 3
A50: 2023-05-06 | B50: 1
A51: 2023-05-07 | B51: 3
A52: 2023-05-13 | B52: 2
A53: 2023-05-14 | B53: 3
A54: 2023-05-20 | B54: 1
A55: 2023-05-21 | B55: 1
A56: 2023-05-27 | B56: 2
A57: 2023-05-28 | B57: 1
A58: 2023-06-03 | B58: 1
A59: 2023-06-04 | B59: 4
A60: 2023-06-10 | B60: 3
A61: 2023-06-11 | B61: 1
A62: 2023-06-17 | B62: 3
A63: 2023-06-18 | B63: 2
A64: 2023-06-24 | B64: 2
A65: 2023-06-25 | B65: 2
A66: 2023-07-01 | B66: 2
A67: 2023-07-02 | B67: 3
A68: 2023-07-08 | B68: 3
A69: 2023-07-09 | B69: 2
A70: 2023-07-15 | B70: 2
A71: 2023-07-16 | B71: 2
A72: 2023-07-22 | B72: 1
A73: 2023-07-23 | B73: 2
A74: 2023-07-29 | B74: 2
A75: 2023-07-30 | B75: 3 | D75: New Data:
A76: 2023-08-05 | B76: 0
A77: 2023-08-06 | B77: 3 | D77: 2023-07-01 | E77: 2
A78: 2023-08-12 | B78: 4 | D78: 2023-07-02 | E78: 3
A79: 2023-08-13 | B79: 3 | D79: 2023-07-08 | E79: 3
A80: 2023-08-19 | B80: 1 | D80: 2023-07-09 | E80: 2
A81: 2023-08-20 | B81: 2 | D81: 2023-07-15 | E81: 2
A82: 2023-08-26 | B82: 2 | D82: 2023-07-16 | E82: 2
A83: 2023-08-27 | B83: 1 | D83: 2023-07-22 | E83: 1
A84: 2023-09-02 | B84: 2 | D84: 2023-07-23 | E84: 2
A85: 2023-09-03 | B85: 3 | D85: 2023-07-29 | E85: 2
A86: 2023-09-09 | B86: 2 | D86: 2023-07-30 | E86: 3
A87: 2023-09-10 | B87: 2 | D87: 2023-08-05 | E87: 0
A88: 2023-09-16 | B88: 3 | D88: 2023-08-06 | E88: 3
A89: 2023-09-17 | B89: 3 | D89: 2023-08-12 | E89: 4
A90: 2023-09-23 | B90: 1 | D90: 2023-08-13 | E90: 3
A91: 2023-09-24 | B91: 1 | D91: 2023-08-19 | E91: 1
A92: 2023-09-30 | B92: 2 | D92: 2023-08-20 | E92: 2
A93: 2023-10-01 | B93: 1 | D93: 2023-08-26 | E93: 2
A94: 2023-10-07 | B94: 3 | D94: 2023-08-27 | E94: 1
A95: 2023-10-08 | B95: 3 | D95: 2023-09-02 | E95: 2
A96: 2023-10-14 | B96: 2 | D96: 2023-09-03 | E96: 3
A97: 2023-10-15 | B97: 2 | D97: 2023-09-09 | E97: 2
A98: 2023-10-21 | B98: 2 | D98: 2023-09-10 | E98: 2
A99: 2023-10-22 | B99: 2 | D99: 2023-09-16 | E99: 3
A100: 2023-10-28 | B100: 1 | D100: 2023-09-17 | E100: 3
A101: 2023-10-29 | B101: 2 | D101: 2023-09-23 | E101: 1
A102: 2023-11-04 | B102: 4 | D102: 2023-09-24 | E102: 1
A103: 2023-11-05 | B103: 0 | D103: 2023-09-30 | E103: 2
A104: 2023-11-11 | B104: 4 | D104: 2023-10-01 | E104: 1
A105: 2023-11-12 | B105: 2 | D105: 2023-10-07 | E105: 3
A106: 2023-11-18 | B106: 1 | D106: 2023-10-08 | E106: 3
A107: 2023-11-19 | B107: 3 | D107: 2023-10-14 | E107: 2
A108: 2023-11-25 | B108: 4 | D108: 2023-10-15 | E108: 2
A109: 2023-11-26 | B109: 3 | D109: 2023-10-21 | E109: 2
A110: 2023-12-02 | B110: 3 | D110: 2023-10-22 | E110: 2
A111: 2023-12-03 | B111: 2 | D111: 2023-10-28 | E111: 1
A112: 2023-12-09 | B112: 1 | D112: 2023-10-29 | E112: 2
A113: 2023-12-10 | B113: 3 | D113: 2023-11-04 | E113: 4
A114: 2023-12-16 | B114: 2 | D114: 2023-11-05 | E114: 0
A115: 2023-12-17 | B115: 2 | D115: 2023-11-11 | E115: 4
D116: 2023-11-12 | E116: 2
D117: 2023-11-18 | E117: 1
D118: 2023-11-19 | E118: 3
D119: 2023-11-25 | E119: 4
D120: 2023-11-26 | E120: 3
D121: 2023-12-02 | E121: 3
D122: 2023-12-03 | E122: 2
D123: 2023-12-09 | E123: 1
D124: 2023-12-10 | E124: 3
D125: 2023-12-16 | E125: 2
D126: 2023-12-17 | E126: 2

Sheet PD(3)
A1: Steps to Build Discrete Probability Distribution:
A2: #1 | B2: Define Random Variable
A3: #2 | B3: Build Frequency Distribution
A4: #3 | B4: Calculate Relative Frequency = P(x) = f(x)
A5: #4 | B5: Check Requirement #1: f(x) >= 0 , Check Requirement #2: Σf(x) = 1
A6: #5 | B6: Create a Column Chart for a Discrete Variable (Columns do not touch)
A7: #6 | B7: Make predictions
A9: Data collected: Number of Arrivals to Dick's Hamburgers at 45th Ave in Seattle at Saturday noon lunch during a 1-minute period.
A10: Discrete Variable = | B10: X = Number of Arrivals in 1 min period during Sat. noon lunch rush (noon to 1 PM)
C12: Max No. Arrivals | I12: Chart Title: | J12: Dick's Hamburgers at 45th Ave in Seattle at Saturday noon lunch arrivals during a 1-minute period.
A14: X = Arrivals During 1 min | C14: X = Arrivals During 1 min | D14: Frequency | E14: P(X) | G14: Req. 1
A15: 0 | I15: Mean | K15: =AVERAGE(A15:A1319) -> 3.879693487
A16: 0 | I16: SD | K16: =SQRT(_xlfn.VAR.P(A15:A1319)) -> 1.936958923
A17: 0
A18: 0 | I18: P(X <=2)
A19: 0 | I19: P(X = 3 OR X = 4 OR x = 5)
A20: 0 | I20: P(X > 0)
A21: 0
A22: 0 | I22: Some conclusions:
A23: 0 | I23: 40% of the time you would expect 3 or 4 people showing up for any given minute period.
A24: 0 | I24: 50% of the time you would expect 3-5 people showing up for any given minute period.
A25: 0 | I25: About 2% of the time no customers show up during a given lunch hour minute
A26: 0
A27: 0
A28: 0
A29: 0
A30: 0 | C30: Total | G30: <Req. 2
A31: 0
A32: 0
A33: 0
A34: 0
A35: 0
A36: 0
A37: 0
A38: 0
A39: 0
A40: 0
A41: 0
A42: 0
A43: 1
A44: 1
A45: 1
A46: 1
A47: 1
A48: 1
A49: 1
A50: 1
A51: 1
A52: 1
A53: 1
A54: 1
A55: 1
A56: 1
A57: 1
A58: 1
A59: 1
A60: 1
A61: 1
A62: 1
A63: 1
A64: 1
A65: 1
A66: 1
A67: 1
A68: 1
A69: 1
A70: 1
A71: 1
A72: 1
A73: 1
A74: 1
A75: 1
A76: 1
A77: 1
A78: 1
A79: 1
A80: 1
A81: 1
A82: 1
A83: 1
A84: 1
A85: 1
A86: 1
A87: 1
A88: 1
A89: 1
A90: 1
A91: 1
A92: 1
A93: 1
A94: 1
A95: 1
A96: 1
A97: 1
A98: 1
A99: 1
A100: 1
A101: 1
A102: 1
A103: 1
A104: 1
A105: 1
A106: 1
A107: 1
A108: 1
A109: 1
A110: 1
A111: 1
A112: 1
A113: 1
A114: 1
A115: 1
A116: 1
A117: 1
A118: 1
A119: 1
A120: 1
A121: 1
A122: 1
A123: 1
A124: 1
A125: 1
A126: 1
A127: 1
A128: 1
A129: 1
A130: 1
A131: 1
A132: 1
A133: 1
A134: 1
A135: 1
A136: 1
A137: 1
A138: 1
A139: 1
A140: 1
A141: 1
A142: 1
A143: 1
A144: 1
A145: 2
A146: 2
A147: 2
A148: 2
A149: 2
A150: 2
A151: 2
A152: 2
A153: 2
A154: 2
A155: 2
A156: 2
A157: 2
A158: 2
A159: 2
A160: 2
A161: 2
A162: 2
A163: 2
A164: 2
A165: 2
A166: 2
A167: 2
A168: 2
A169: 2
A170: 2
A171: 2
A172: 2
A173: 2
A174: 2
A175: 2
A176: 2
A177: 2
A178: 2
A179: 2
A180: 2
A181: 2
A182: 2
A183: 2
A184: 2
A185: 2
A186: 2
A187: 2
A188: 2
A189: 2
A190: 2
A191: 2
A192: 2
A193: 2
A194: 2
A195: 2
A196: 2
A197: 2
A198: 2
A199: 2
A200: 2
A201: 2
A202: 2
A203: 2
... 1116 more rows

Sheet PD(3an)
A1: Steps to Build Discrete Probability Distribution:
A2: #1 | B2: Define Random Variable
A3: #2 | B3: Build Frequency Distribution
A4: #3 | B4: Calculate Relative Frequency = P(x) = f(x)
A5: #4 | B5: Check Requirement #1: f(x) >= 0 , Check Requirement #2: Σf(x) = 1
A6: #5 | B6: Create a Column Chart for a Discrete Variable (Columns do not touch)
A7: #6 | B7: Make predictions
A9: Data collected: Number of Arrivals to Dick's Hamburgers at 45th Ave in Seattle at Saturday noon lunch during a 1-minute period.
A10: Discrete Variable = | B10: X = Number of Arrivals in 1 min period during Sat. noon lunch rush (noon to 1 PM)
C12: Max No. Arrivals | D12: =MAX(A15:A1319) -> 14 | I12: Chart Title: | J12: Dick's Hamburgers at 45th Ave in Seattle at Saturday noon lunch arrivals during a 1-minute period.
AB13: Comment from below Video #24 from ExcelLambda:
A14: X = Arrivals During 1 min | C14: X = Arrivals During 1 min | D14: Frequency | E14: P(X) | G14: Req. 1
A15: 0 | C15: =_xlfn.SEQUENCE(D12+1,,0) -> 0 | D15: =COUNTIFS(A15:A1319,_xlfn.ANCHORARRAY(C15)) -> 28 | E15: =_xlfn.ANCHORARRAY(D15)/D30 -> 0.0214559387 | G15: =_xlfn.ANCHORARRAY(E15)>=0 -> TRUE | I15: Mean | J15: =SUMPRODUCT(_xlfn.ANCHORARRAY(C15),_xlfn.ANCHORARRAY(E15)) -> 3.879693487 | K15: =AVERAGE(A15:A1319) -> 3.879693487
A16: 0 | C16: 1 | D16: 102 | E16: 0.07816091954 | G16: TRUE | I16: SD | J16: =SQRT(SUM((_xlfn.ANCHORARRAY(C15)-J15)^2*_xlfn.ANCHORARRAY(E15))) -> 1.936958923 | K16: =SQRT(_xlfn.VAR.P(A15:A1319)) -> 1.936958923
A17: 0 | C17: 2 | D17: 191 | E17: 0.1463601533 | G17: TRUE
A18: 0 | C18: 3 | D18: 263 | E18: 0.201532567 | G18: TRUE | I18: P(X <=2) | J18: =SUM(E15:E17) -> 0.2459770115
A19: 0 | C19: 4 | D19: 266 | E19: 0.2038314176 | G19: TRUE | I19: P(X = 3 OR X = 4 OR x = 5) | J19: =SUM(E18:E20) -> 0.5616858238
A20: 0 | C20: 5 | D20: 204 | E20: 0.1563218391 | G20: TRUE | I20: P(X > 0) | J20: =1-E15 -> 0.9785440613
A21: 0 | C21: 6 | D21: 136 | E21: 0.1042145594 | G21: TRUE
A22: 0 | C22: 7 | D22: 70 | E22: 0.05363984674 | G22: TRUE | I22: Some conclusions: | R22: Formulas Used:
A23: 0 | C23: 8 | D23: 22 | E23: 0.01685823755 | G23: TRUE | I23: 40% of the time you would expect 3 or 4 people showing up for any given minute period. | R23: =_xlfn.IFNA(ADDRESS(ROW(D12),COLUMN(D12),4)&": "&_xlfn.FORMULATEXT(D12),"") -> D12: =MAX(A15:A1319)
A24: 0 | C24: 9 | D24: 14 | E24: 0.01072796935 | G24: TRUE | I24: 50% of the time you would expect 3-5 people showing up for any given minute period.
A25: 0 | C25: 10 | D25: 5 | E25: 0.003831417625 | G25: TRUE | I25: About 2% of the time no customers show up during a given lunch hour minute | R25: =_xlfn.IFNA(ADDRESS(ROW(C15),COLUMN(C15),4)&": "&_xlfn.FORMULATEXT(C15),"") -> C15: =SEQUENCE(D12+1,,0)
A26: 0 | C26: 11 | D26: 2 | E26: 0.00153256705 | G26: TRUE | R26: =_xlfn.IFNA(ADDRESS(ROW(D15),COLUMN(D15),4)&": "&_xlfn.FORMULATEXT(D15),"") -> D15: =COUNTIFS(A15:A1319,C15#)
A27: 0 | C27: 12 | D27: 1 | E27: 0.0007662835249 | G27: TRUE | R27: =_xlfn.IFNA(ADDRESS(ROW(E15),COLUMN(E15),4)&": "&_xlfn.FORMULATEXT(E15),"") -> E15: =D15#/D30
A28: 0 | C28: 13 | D28: 0 | E28: 0 | G28: TRUE
A29: 0 | C29: 14 | D29: 1 | E29: 0.0007662835249 | G29: TRUE | R29: =_xlfn.IFNA(ADDRESS(ROW(D30),COLUMN(D30),4)&": "&_xlfn.FORMULATEXT(D30),"") -> D30: =SUM(D15#)
A30: 0 | C30: Total | D30: =SUM(_xlfn.ANCHORARRAY(D15)) -> 1305 | E30: =SUM(_xlfn.ANCHORARRAY(E15)) -> 1 | G30: <Req. 2 | R30: =_xlfn.IFNA(ADDRESS(ROW(E30),COLUMN(E30),4)&": "&_xlfn.FORMULATEXT(E30),"") -> E30: =SUM(E15#)
A31: 0 | R31: =_xlfn.IFNA(ADDRESS(ROW(G15),COLUMN(G15),4)&": "&_xlfn.FORMULATEXT(G15),"") -> G15: =E15#>=0
A32: 0
A33: 0 | R33: =_xlfn.IFNA(ADDRESS(ROW(J15),COLUMN(J15),4)&": "&_xlfn.FORMULATEXT(J15),"") -> J15: =SUMPRODUCT(C15#,E15#)
A34: 0 | R34: =_xlfn.IFNA(ADDRESS(ROW(J16),COLUMN(J16),4)&": "&_xlfn.FORMULATEXT(J16),"") -> J16: =SQRT(SUM((C15#-J15)^2*E15#))
A35: 0 | AB35: =DSCFRQ(A15:A1319,C14:E14) -> X = Arrivals During 1 min | AC35: Frequency | AD35: P(X) | AF35: =_xlfn.IFNA(ADDRESS(ROW(AB35),COLUMN(AB35),4)&": "&_xlfn.FORMULATEXT(AB35),"") -> AB35: =DSCFRQ(A15:A1319,C14:E14)
A36: 0 | R36: J18: =SUM(E15:E17) | AB36: 0 | AC36: 28 | AD36: 0.0214559387
A37: 0 | R37: J19: =SUM(E18:E20) | AB37: 1 | AC37: 102 | AD37: 0.07816091954 | AF37: =_xlfn.LAMBDA(_xlpm.a,_xlop.h,_xlfn.LET(_xlpm.r,ROWS(_xlpm.a),_xlpm.u,_xlfn._xlws.SORT(_xlfn.UNIQUE(_xlpm.a)),_xlpm.w,ROWS(_xlpm.u),_xlpm.f,_xlfn.MAP(_xlpm.u,_xlfn.LAMBDA(_xlpm.x,SUM(--(_xlpm.x=_xlpm.a)))),_xlpm.p,_xlpm.f/_xlpm.r,_xlpm.b,CHOOSE({1,2,3},_xlpm.u,_xlpm.f,_xlpm.p),_xlpm.tr,CHOOSE({1,2,3},_xlpm.h,"Frequency","P(X)"),_xlpm.br,CHOOSE({1,2,3},"Total",_xlpm.r,1),_xlpm.s,_xlfn.SEQUENCE(_xlpm.w+2)-1,_xlfn.SWITCH(_xlpm.s,0,_xlpm.tr,_xlpm.w+1,_xlpm.br,INDEX(_xlpm.b,_xlpm.s,{1,2,3}))))(A15:A1319,C14:E14) -> X = Arrivals During 1 min | AG37: Frequency | AH37: P(X) | AJ37: =_xlfn.IFNA(ADDRESS(ROW(AF37),COLUMN(AF37),4)&": "&_xlfn.FORMULATEXT(AF37),"") -> AF37: =LAMBDA(a,[h],LET(r,ROWS(a),u,SORT(UNIQUE(a)),w,ROWS(u),f,MAP(u,LAMBDA(x,SUM(--(x=a)))),p,f/r,b,CHOOSE({1,2,3},u,f,p),tr,CHOOSE({1,2,3},h,"Frequency","P(X)"),br,CHOOSE({1,2,3},"Total",r,1),s,SEQUENCE(w+2)-1,SWITCH(s,0,tr,w+1,br,INDEX(b,s,{1,2,3}))))(A15:A1319,C14:E14)
A38: 0 | R38: J20: =1-E15 | AB38: 2 | AC38: 191 | AD38: 0.1463601533 | AF38: 0 | AG38: 28 | AH38: 0.0214559387
A39: 0 | AB39: 3 | AC39: 263 | AD39: 0.201532567 | AF39: 1 | AG39: 102 | AH39: 0.07816091954
A40: 0 | AB40: 4 | AC40: 266 | AD40: 0.2038314176 | AF40: 2 | AG40: 191 | AH40: 0.1463601533
A41: 0 | AB41: 5 | AC41: 204 | AD41: 0.1563218391 | AF41: 3 | AG41: 263 | AH41: 0.201532567
A42: 0 | AB42: 6 | AC42: 136 | AD42: 0.1042145594 | AF42: 4 | AG42: 266 | AH42: 0.2038314176
A43: 1 | AB43: 7 | AC43: 70 | AD43: 0.05363984674 | AF43: 5 | AG43: 204 | AH43: 0.1563218391
A44: 1 | AB44: 8 | AC44: 22 | AD44: 0.01685823755 | AF44: 6 | AG44: 136 | AH44: 0.1042145594
A45: 1 | AB45: 9 | AC45: 14 | AD45: 0.01072796935 | AF45: 7 | AG45: 70 | AH45: 0.05363984674
A46: 1 | AB46: 10 | AC46: 5 | AD46: 0.003831417625 | AF46: 8 | AG46: 22 | AH46: 0.01685823755
A47: 1 | AB47: 11 | AC47: 2 | AD47: 0.00153256705 | AF47: 9 | AG47: 14 | AH47: 0.01072796935
A48: 1 | AB48: 12 | AC48: 1 | AD48: 0.0007662835249 | AF48: 10 | AG48: 5 | AH48: 0.003831417625
A49: 1 | AB49: 14 | AC49: 1 | AD49: 0.0007662835249 | AF49: 11 | AG49: 2 | AH49: 0.00153256705
A50: 1 | AB50: Total | AC50: 1305 | AD50: 1 | AF50: 12 | AG50: 1 | AH50: 0.0007662835249
A51: 1 | AF51: 14 | AG51: 1 | AH51: 0.0007662835249
A52: 1 | AF52: Total | AG52: 1305 | AH52: 1
A53: 1
A54: 1
A55: 1
A56: 1
A57: 1
A58: 1
A59: 1
A60: 1
A61: 1
A62: 1
A63: 1
A64: 1
A65: 1
A66: 1
A67: 1
A68: 1
A69: 1
A70: 1
A71: 1
A72: 1
A73: 1
A74: 1
A75: 1
A76: 1
A77: 1
A78: 1
A79: 1
A80: 1
A81: 1
A82: 1
A83: 1
A84: 1
A85: 1
A86: 1
A87: 1
A88: 1
A89: 1
A90: 1
A91: 1
A92: 1
A93: 1
A94: 1
A95: 1
A96: 1
A97: 1
A98: 1
A99: 1
A100: 1
A101: 1
A102: 1
A103: 1
A104: 1
A105: 1
A106: 1
A107: 1
A108: 1
A109: 1
A110: 1
A111: 1
A112: 1
A113: 1
A114: 1
A115: 1
A116: 1
A117: 1
A118: 1
A119: 1
A120: 1
A121: 1
A122: 1
A123: 1
A124: 1
A125: 1
A126: 1
A127: 1
A128: 1
A129: 1
A130: 1
A131: 1
A132: 1
A133: 1
A134: 1
A135: 1
A136: 1
A137: 1
A138: 1
A139: 1
A140: 1
A141: 1
A142: 1
A143: 1
A144: 1
A145: 2
A146: 2
A147: 2
A148: 2
A149: 2
A150: 2
A151: 2
A152: 2
A153: 2
A154: 2
A155: 2
A156: 2
A157: 2
A158: 2
A159: 2
A160: 2
A161: 2
A162: 2
A163: 2
A164: 2
A165: 2
A166: 2
A167: 2
A168: 2
A169: 2
A170: 2
A171: 2
A172: 2
A173: 2
A174: 2
A175: 2
A176: 2
A177: 2
A178: 2
A179: 2
A180: 2
A181: 2
A182: 2
A183: 2
A184: 2
A185: 2
A186: 2
A187: 2
A188: 2
A189: 2
A190: 2
A191: 2
A192: 2
A193: 2
A194: 2
A195: 2
A196: 2
A197: 2
A198: 2
A199: 2
A200: 2
A201: 2
A202: 2
... 1117 more rows

Sheet PQ Notes
B2: Power Query to import data:
B3: 1) When you import data from a CSV file, the file usually has just one object: a table. You can use the From Text/CSV button in the Get & Transform group in the Data tab in the Excel Ribbon to import CSV data.
B4: 2) When you import data from an Excel file, the file can have more than one object. An Excel file can have objects such as Worksheets, Excel Tables, or Defined Names. Therefore, when you use Power Query to import a table of data from an Excel file, during the import process you must select the object that you want to import. In this video, we will select the Worksheet object named "MonclaireGolf".
B5: To import a table of data from a single Excel file, you can follow these steps:
C6: 1) Get & Transform group in the Data tab in the Excel Ribbon
C7: 2) Click Get Data dropdown arrow
C8: 3) From the dropdown menu, hover over "From File"
C9: 4) Click on "From Excel Workbook"
C10: 5) Select file from Import Data File dialog box
C11: 6) In the Navigator dialog box, on the left side, select the object that has the data table that you want to import
C12: 7) Click the "Transform Data" button to bring the object into the Power Query Editor
C13: 8) Make transformations you want in Power Query Editor, then Close and Load your table.
B14: Power Query Import Data dialog box to import table directly to PivotTable Cache:
B15: To import a table of data directly to the PivotTable Cache: Select the "PivotTable Report" dialog button in the Import Data dialog box, as shown here:
B27: If you do not need the table of data in the worksheet, loading directly to the PivotTable Cache, avoids loading the table to two locations (worksheet and PivotTable Cache). This can reduce file size and avoid have to refresh both the query and the PivotTable report when source data changes.

Sheet PD(4)
A2: 1) | B2: Download the data file "MonclaireGolf.xlsx" from this link: | K2: https://people.highline.edu/mgirvin/AllClasses/B210/Ch05/Ch05.htm
A3: 2) | B3: Save the the data file "MonclaireGolf.xlsx" to the folder you created in Video #1 (folder with your name).
A4: 3) | B4: Using the Get Data, From File, From Excel Workbook feature in the Get & Transform Data group in the Data tab in the Excel ribbon,
B5: import the data file "MonclaireGolf.xlsx" onto this worksheet.
A6: 4) | B6: Create Discrete Probability Distribution
B8: Summer 2021, Monclaire Gold in Oakland, CA
B9: 400 rounds of golf in data set
B10: each number is the score for one player for hole #9
B12: Random Descrete Variable = score on hole #9
B13: Par = 3
K16: Notation | L16: P(X)
K17: P(<=3)
K18: P(>3)
K19: P(3)
K20: E(x) = μ = Mean
K21: Var(X) = σ^2 =
K22: SD = σ =

Sheet PD(4an)
A2: 1) | B2: Download the data file "MonclaireGolf.xlsx" from this link: | K2: https://people.highline.edu/mgirvin/AllClasses/B210/Ch05/Ch05.htm
A3: 2) | B3: Save the the data file "MonclaireGolf.xlsx" to the folder you created in Video #1 (folder with your name).
A4: 3) | B4: Using the Get Data, From File, From Excel Workbook feature in the Get & Transform Data group in the Data tab in the Excel ribbon,
B5: import the data file "MonclaireGolf.xlsx" onto this worksheet.
A6: 4) | B6: Create Discrete Probability Distribution
B8: Summer 2021, Monclaire Gold in Oakland, CA
B9: 400 rounds of golf in data set
B10: each number is the score for one player for hole #9
B12: Random Descrete Variable = score on hole #9
B13: Par = 3
B16: Hole 9 Score (X) | C16: Frequency | D16: P(X) | K16: Notation | L16: P(X) | N16: Formulas Used:
B17: 2 | C17: 4 | D17: 0.01 | K17: P(<=3) | L17: =SUM(D17:D18) -> 0.1475 | N17: =_xlfn.IFNA(ADDRESS(ROW(L17),COLUMN(L17),4)&": "&_xlfn.FORMULATEXT(L17),"") -> L17: =SUM(D17:D18)
B18: 3 | C18: 55 | D18: 0.1375 | K18: P(>3) | L18: =SUM(D19:D22) -> 0.8525 | N18: =_xlfn.IFNA(ADDRESS(ROW(L18),COLUMN(L18),4)&": "&_xlfn.FORMULATEXT(L18),"") -> L18: =SUM(D19:D22)
B19: 4 | C19: 185 | D19: 0.4625 | K19: P(3) | L19: =D18 -> 0.1375 | N19: L19: =D18
B20: 5 | C20: 130 | D20: 0.325 | K20: E(x) = μ = Mean | L20: =SUMPRODUCT(B17:B22,D17:D22) -> 4.3075 | N20: L20: =SUMPRODUCT(B17:B22,D17:D22)
B21: 6 | C21: 22 | D21: 0.055 | K21: Var(X) = σ^2 = | L21: =SUM((B17:B22-L20)^2*D17:D22) -> 0.71794375 | N21: L21: =SUM((B17:B22-L20)^2*D17:D22)
B22: 7 | C22: 4 | D22: 0.01 | K22: SD = σ = | L22: =SQRT(L21) -> 0.8473156142 | N22: L22: =SQRT(L21)
B23: Grand Total | C23: 400 | D23: 1

Sheet EVSD(1)
A1: Unit Demand = x | B1: Prob = f(x)
A2: 500 | B2: 0.1
A3: 600 | B3: 0.15
A4: 700 | B4: 0.15
A5: 800 | B5: 0.2
A6: 900 | B6: 0.2
A7: 1000 | B7: 0.15
A8: 1100 | B8: 0.05
B9: =SUM(B2:B8) -> 1
A11: Mean = Expected Value | C11: = monthly order quantity
A12: SD
A14: Price per unit | B14: 125
A15: Cost per unit | B15: 60
A16: Units sold for cash | B16: 500
A17: Cash IN
A18: Cash OUT
A19: Cash Flow Implication | D19: NOT Accrual Accounting Profit
B23: All Values | E23: Mean = Expected Value | F23: =AVERAGE(B24:B123) -> 790
B24: 500 | E24: SD | F24: =_xlfn.STDEV.P(B24:B123) -> 170
B25: 500
B26: 500
B27: 500
B28: 500
B29: 500
B30: 500
B31: 500
B32: 500
B33: 500
B34: 600
B35: 600
B36: 600
B37: 600
B38: 600
B39: 600
B40: 600
B41: 600
B42: 600
B43: 600
B44: 600
B45: 600
B46: 600
B47: 600
B48: 600
B49: 700
B50: 700
B51: 700
B52: 700
B53: 700
B54: 700
B55: 700
B56: 700
B57: 700
B58: 700
B59: 700
B60: 700
B61: 700
B62: 700
B63: 700
B64: 800
B65: 800
B66: 800
B67: 800
B68: 800
B69: 800
B70: 800
B71: 800
B72: 800
B73: 800
B74: 800
B75: 800
B76: 800
B77: 800
B78: 800
B79: 800
B80: 800
B81: 800
B82: 800
B83: 800
B84: 900
B85: 900
B86: 900
B87: 900
B88: 900
B89: 900
B90: 900
B91: 900
B92: 900
B93: 900
B94: 900
B95: 900
B96: 900
B97: 900
B98: 900
B99: 900
B100: 900
B101: 900
B102: 900
B103: 900
B104: 1000
B105: 1000
B106: 1000
B107: 1000
B108: 1000
B109: 1000
B110: 1000
B111: 1000
B112: 1000
B113: 1000
B114: 1000
B115: 1000
B116: 1000
B117: 1000
B118: 1000
B119: 1100
B120: 1100
B121: 1100
B122: 1100
B123: 1100
A125: VAR.P | B125: =_xlfn.VAR.P(B24:B123) -> 28900
A126: STDEV.S | B126: =_xlfn.STDEV.P(B24:B123) -> 170

Sheet EVSD(1an)
A1: Unit Demand = x | B1: Prob = f(x)
A2: 500 | B2: 0.1
A3: 600 | B3: 0.15
A4: 700 | B4: 0.15
A5: 800 | B5: 0.2
A6: 900 | B6: 0.2
A7: 1000 | B7: 0.15
A8: 1100 | B8: 0.05
B9: =SUM(B2:B8) -> 1 | H9: Formulas Used:
A11: Mean = Expected Value | B11: =SUMPRODUCT(A2:A8,B2:B8) -> 790 | C11: = monthly order quantity | H11: =_xlfn.IFNA(ADDRESS(ROW(B11),COLUMN(B11),4)&": "&_xlfn.FORMULATEXT(B11),"") -> B11: =SUMPRODUCT(A2:A8,B2:B8)
A12: SD | B12: =SQRT(SUMPRODUCT((A2:A8-B11)^2,B2:B8)) -> 170 | H12: =_xlfn.IFNA(ADDRESS(ROW(B12),COLUMN(B12),4)&": "&_xlfn.FORMULATEXT(B12),"") -> B12: =SQRT(SUMPRODUCT((A2:A8-B11)^2,B2:B8))
A14: Price per unit | B14: 125
A15: Cost per unit | B15: 60
A16: Units sold for cash | B16: 500
A17: Cash IN | B17: =B16*B14 -> 62500 | H17: B17: =B16*B14
A18: Cash OUT | B18: =B11*B15 -> 47400 | H18: B18: =B11*B15
A19: Cash Flow Implication | B19: =B17-B18 -> 15100 | D19: NOT Accrual Accounting Profit | H19: B19: =B17-B18
B23: All Values | E23: Mean = Expected Value | F23: =AVERAGE(B24:B123) -> 790 | H23: =_xlfn.IFNA(ADDRESS(ROW(F23),COLUMN(F23),4)&": "&_xlfn.FORMULATEXT(F23),"") -> F23: =AVERAGE(B24:B123)
B24: 500 | E24: SD | F24: =_xlfn.STDEV.P(B24:B123) -> 170 | H24: =_xlfn.IFNA(ADDRESS(ROW(F24),COLUMN(F24),4)&": "&_xlfn.FORMULATEXT(F24),"") -> F24: =STDEV.P(B24:B123)
B25: 500
B26: 500
B27: 500
B28: 500
B29: 500
B30: 500
B31: 500
B32: 500
B33: 500
B34: 600
B35: 600
B36: 600
B37: 600
B38: 600
B39: 600
B40: 600
B41: 600
B42: 600
B43: 600
B44: 600
B45: 600
B46: 600
B47: 600
B48: 600
B49: 700
B50: 700
B51: 700
B52: 700
B53: 700
B54: 700
B55: 700
B56: 700
B57: 700
B58: 700
B59: 700
B60: 700
B61: 700
B62: 700
B63: 700
B64: 800
B65: 800
B66: 800
B67: 800
B68: 800
B69: 800
B70: 800
B71: 800
B72: 800
B73: 800
B74: 800
B75: 800
B76: 800
B77: 800
B78: 800
B79: 800
B80: 800
B81: 800
B82: 800
B83: 800
B84: 900
B85: 900
B86: 900
B87: 900
B88: 900
B89: 900
B90: 900
B91: 900
B92: 900
B93: 900
B94: 900
B95: 900
B96: 900
B97: 900
B98: 900
B99: 900
B100: 900
B101: 900
B102: 900
B103: 900
B104: 1000
B105: 1000
B106: 1000
B107: 1000
B108: 1000
B109: 1000
B110: 1000
B111: 1000
B112: 1000
B113: 1000
B114: 1000
B115: 1000
B116: 1000
B117: 1000
B118: 1000
B119: 1100
B120: 1100
B121: 1100
B122: 1100
B123: 1100
A125: VAR.P | B125: =_xlfn.VAR.P(B24:B123) -> 28900
A126: STDEV.S | B126: =_xlfn.STDEV.P(B24:B123) -> 170

Sheet EVSD(2)
A1: State of Economy | B1: Prob. Of State of Economy | C1: Stock A Return | D1: Stock B Return | E1: Stock C Return
A2: Boom | B2: 0.15 | C2: 0.15 | D2: 0.25 | E2: 0.11
A3: Normal | B3: =1-SUM(B2,B4) -> 0.3 | C3: 0.07 | D3: 0.13 | E3: 0.1
A4: Bust | B4: 0.55 | C4: -0.02 | D4: -0.135 | E4: 0.03
B5: E(Ri)
A6: Sd = Proxy for Risk | B6: Standard Deviation
B7: CV = SD/Mean
B8: Mean/SD

Sheet EVSD(2an)
A1: State of Economy | B1: Prob. Of State of Economy | C1: Stock A Return | D1: Stock B Return | E1: Stock C Return | O1: State of Economy | P1: Prob. Of State of Economy | Q1: Stock A Return | R1: Stock B Return | S1: Stock C Return
A2: Boom | B2: 0.15 | C2: 0.15 | D2: 0.25 | E2: 0.11 | O2: Boom | P2: 0.15 | Q2: 0.15 | R2: 0.25 | S2: 0.11
A3: Normal | B3: =1-SUM(B2,B4) -> 0.3 | C3: 0.07 | D3: 0.13 | E3: 0.1 | O3: Normal | P3: =1-SUM(P2,P4) -> 0.3 | Q3: 0.07 | R3: 0.13 | S3: 0.1
A4: Bust | B4: 0.55 | C4: -0.02 | D4: -0.135 | E4: 0.03 | I4: Formulas Used: | O4: Bust | P4: 0.55 | Q4: -0.02 | R4: -0.135 | S4: 0.03 | W4: Formulas Used:
B5: E(Ri) | C5: =SUMPRODUCT($B$2:$B$4,C2:C4) -> 0.0325 | D5: =SUMPRODUCT($B$2:$B$4,D2:D4) -> 0.00225 | E5: 0.063 | I5: =_xlfn.IFNA(ADDRESS(ROW(E5),COLUMN(E5),4)&": "&_xlfn.FORMULATEXT(E5),"") -> E5: =SUMPRODUCT($B$2:$B$4,E2:E4) | P5: E(Ri) | Q5: =_xlfn.BYCOL(Q2:S4,_xlfn.LAMBDA(_xlpm.c,SUM(P2:P4*_xlpm.c))) -> 0.0325 | R5: 0.00225 | S5: 0.063 | W5: =_xlfn.IFNA(ADDRESS(ROW(Q5:Q8),COLUMN(Q5:Q8),4)&": "&_xlfn.FORMULATEXT(Q5:Q8),"") -> Q5: =BYCOL(Q2:S4,LAMBDA(c,SUM(P2:P4*c)))
A6: Sd = Proxy for Risk | B6: Standard Deviation | C6: =SQRT(SUMPRODUCT((C2:C4-C5)^2,$B$2:$B$4)) -> 0.06331469024 | D6: =SQRT(SUMPRODUCT((D2:D4-D5)^2,$B$2:$B$4)) -> 0.1564087194 | E6: =SQRT(SUMPRODUCT((E2:E4-E5)^2,$B$2:$B$4)) -> 0.03661966685 | I6: =_xlfn.IFNA(ADDRESS(ROW(E6),COLUMN(E6),4)&": "&_xlfn.FORMULATEXT(E6),"") -> E6: =SQRT(SUMPRODUCT((E2:E4-E5)^2,$B$2:$B$4)) | O6: Sd = Proxy for Risk | P6: Standard Deviation | Q6: =_xlfn.BYCOL((Q2:S4-_xlfn.ANCHORARRAY(Q5))^2,_xlfn.LAMBDA(_xlpm.c,SQRT(SUM(_xlpm.c*P2:P4)))) -> 0.06331469024 | R6: 0.1564087194 | S6: 0.03661966685 | W6: Q6: =BYCOL((Q2:S4-Q5#)^2,LAMBDA(c,SQRT(SUM(c*P2:P4))))
B7: CV = SD/Mean | C7: =C6/C5 -> 1.948144315 | D7: =D6/D5 -> 69.51498639 | E7: 0.5812645531 | I7: =_xlfn.IFNA(ADDRESS(ROW(E7),COLUMN(E7),4)&": "&_xlfn.FORMULATEXT(E7),"") -> E7: =E6/E5 | P7: CV = SD/Mean | Q7: =_xlfn.ANCHORARRAY(Q6)/_xlfn.ANCHORARRAY(Q5) -> 1.948144315 | R7: 69.51498639 | S7: 0.5812645531 | W7: Q7: =Q6#/Q5#
B8: Mean/SD | C8: =C5/C6 -> 0.5133089948 | D8: =D5/D6 -> 0.01438538727 | E8: 1.720387033 | I8: =_xlfn.IFNA(ADDRESS(ROW(E8),COLUMN(E8),4)&": "&_xlfn.FORMULATEXT(E8),"") -> E8: =E5/E6 | P8: Mean/SD | Q8: =_xlfn.ANCHORARRAY(Q5)/_xlfn.ANCHORARRAY(Q6) -> 0.5133089948 | R8: 0.01438538727 | S8: 1.720387033 | W8: Q8: =Q5#/Q6#

Sheet BDPD
A1: pi = | B1: 0.2
A2: 1 - pi = | B2: =1-B1 -> 0.8
A3: n = | B3: 4
A4: Fixed # of Trials? | B4: Yes
A5: Each Trial Independent? | B5: Yes
A6: Success is? | B6: Sale | C6: S
A7: Fail is? | B7: No Sale | C7: NS
A8: Success or fail each trial? | B8: Yes
A9: pi the same each Trial? | B9: Yes
A10: Sample Space = | B10: =2^B3 -> 16
A12: ="Build Discrete Probability Distribution with "&A3&" "&B3&", "&A1&" "&B1 -> Build Discrete Probability Distribution with n = 4, pi = 0.2
A13: Possible Outcomes | B13: Attempted Sale | F13: # of Sales | G13: Probability associated with each attempt | K13: Probability of Occurrence Calculation | L13: Probability of Occurrence | N13: # of Sales (Random Variable X) | O13: P(x) | P13: P(x)
B14: 1st | C14: 2nd | D14: 3rd | E14: 4th | G14: 1st | H14: 2nd | I14: 3rd | J14: 4th
A15: 1 | B15: S | C15: S | D15: S | E15: S | F15: =COUNTIF(B15:E15,$C$6) -> 4 | G15: =IF(B15:E15=$C$6,$B$1,$B$2) -> 0.2 | H15: 0.2 | I15: 0.2 | J15: 0.2 | K15: =G15:G30&"*"&H15:H30&"*"&I15:I30&"*"&J15:J30&" =" -> 0.2*0.2*0.2*0.2 = | L15: =PRODUCT(G15:J15) -> 0.0016 | N15: =_xlfn.SEQUENCE(B3+1,,0) -> 0 | O15: ="P("&_xlfn.ANCHORARRAY(N15)&") =" -> P(0) = | P15: =SUMIF(F15:F30,_xlfn.ANCHORARRAY(N15),L15:L30) -> 0.4096
A16: 2 | B16: S | C16: S | D16: S | E16: NS | F16: 3 | G16: =IF(B16:E16=$C$6,$B$1,$B$2) -> 0.2 | H16: 0.2 | I16: 0.2 | J16: 0.8 | K16: 0.2*0.2*0.2*0.8 = | L16: 0.0064 | N16: 1 | O16: P(1) = | P16: 0.4096
A17: 3 | B17: S | C17: S | D17: NS | E17: S | F17: 3 | G17: =IF(B17:E17=$C$6,$B$1,$B$2) -> 0.2 | H17: 0.2 | I17: 0.8 | J17: 0.2 | K17: 0.2*0.2*0.8*0.2 = | L17: 0.0064 | N17: 2 | O17: P(2) = | P17: 0.1536
A18: 4 | B18: S | C18: NS | D18: S | E18: S | F18: 3 | G18: =IF(B18:E18=$C$6,$B$1,$B$2) -> 0.2 | H18: 0.8 | I18: 0.2 | J18: 0.2 | K18: 0.2*0.8*0.2*0.2 = | L18: 0.0064 | N18: 3 | O18: P(3) = | P18: 0.0256
A19: 5 | B19: NS | C19: S | D19: S | E19: S | F19: 3 | G19: =IF(B19:E19=$C$6,$B$1,$B$2) -> 0.8 | H19: 0.2 | I19: 0.2 | J19: 0.2 | K19: 0.8*0.2*0.2*0.2 = | L19: 0.0064 | N19: 4 | O19: P(4) = | P19: 0.0016
A20: 6 | B20: S | C20: S | D20: NS | E20: NS | F20: 2 | G20: =IF(B20:E20=$C$6,$B$1,$B$2) -> 0.2 | H20: 0.2 | I20: 0.8 | J20: 0.8 | K20: 0.2*0.2*0.8*0.8 = | L20: 0.0256 | P20: =SUM(P15:P19) -> 1
A21: 7 | B21: S | C21: NS | D21: NS | E21: S | F21: 2 | G21: =IF(B21:E21=$C$6,$B$1,$B$2) -> 0.2 | H21: 0.8 | I21: 0.8 | J21: 0.2 | K21: 0.2*0.8*0.8*0.2 = | L21: 0.0256
A22: 8 | B22: NS | C22: NS | D22: S | E22: S | F22: 2 | G22: =IF(B22:E22=$C$6,$B$1,$B$2) -> 0.8 | H22: 0.8 | I22: 0.2 | J22: 0.2 | K22: 0.8*0.8*0.2*0.2 = | L22: 0.0256 | O22: E(x) | P22: =SUMPRODUCT(N15:N19,P15:P19) -> 0.8 | Q22: =B3*B1 -> 0.8
A23: 9 | B23: S | C23: NS | D23: S | E23: NS | F23: 2 | G23: =IF(B23:E23=$C$6,$B$1,$B$2) -> 0.2 | H23: 0.8 | I23: 0.2 | J23: 0.8 | K23: 0.2*0.8*0.2*0.8 = | L23: 0.0256 | O23: SD | P23: =SQRT(SUMPRODUCT((N15:N19-P22)^2,P15:P19)) -> 0.8 | Q23: =SQRT(Q22*(1-B1)) -> 0.8
A24: 10 | B24: NS | C24: S | D24: NS | E24: S | F24: 2 | G24: =IF(B24:E24=$C$6,$B$1,$B$2) -> 0.8 | H24: 0.2 | I24: 0.8 | J24: 0.2 | K24: 0.8*0.2*0.8*0.2 = | L24: 0.0256
A25: 11 | B25: NS | C25: S | D25: S | E25: NS | F25: 2 | G25: =IF(B25:E25=$C$6,$B$1,$B$2) -> 0.8 | H25: 0.2 | I25: 0.2 | J25: 0.8 | K25: 0.8*0.2*0.2*0.8 = | L25: 0.0256
A26: 12 | B26: S | C26: NS | D26: NS | E26: NS | F26: 1 | G26: =IF(B26:E26=$C$6,$B$1,$B$2) -> 0.2 | H26: 0.8 | I26: 0.8 | J26: 0.8 | K26: 0.2*0.8*0.8*0.8 = | L26: 0.1024
A27: 13 | B27: NS | C27: S | D27: NS | E27: NS | F27: 1 | G27: =IF(B27:E27=$C$6,$B$1,$B$2) -> 0.8 | H27: 0.2 | I27: 0.8 | J27: 0.8 | K27: 0.8*0.2*0.8*0.8 = | L27: 0.1024
A28: 14 | B28: NS | C28: NS | D28: S | E28: NS | F28: 1 | G28: =IF(B28:E28=$C$6,$B$1,$B$2) -> 0.8 | H28: 0.8 | I28: 0.2 | J28: 0.8 | K28: 0.8*0.8*0.2*0.8 = | L28: 0.1024
A29: 15 | B29: NS | C29: NS | D29: NS | E29: S | F29: 1 | G29: =IF(B29:E29=$C$6,$B$1,$B$2) -> 0.8 | H29: 0.8 | I29: 0.8 | J29: 0.2 | K29: 0.8*0.8*0.8*0.2 = | L29: 0.1024
A30: 16 | B30: NS | C30: NS | D30: NS | E30: NS | F30: 0 | G30: =IF(B30:E30=$C$6,$B$1,$B$2) -> 0.8 | H30: 0.8 | I30: 0.8 | J30: 0.8 | K30: 0.8*0.8*0.8*0.8 = | L30: 0.4096

Sheet B(1)
B2: n = # of Fixed Trials = Appointments | F2: 4
B3: p = Prob of Success = | F3: 0.2
B4: ="Random Discrete Variable = x = # Sales in "&F2&" Tries" -> Random Discrete Variable = x = # Sales in 4 Tries | F4: 3
B6: Success is? | C6: Sale | D6: S
B7: Not? | C7: Not Sale | D7: NS
B9: Sample Points for 3 sales in 4 tries: | M9: Chapter 4 Methods with AND and OR:
B11: Sample Point | C11: 1st | D11: 2nd | E11: 3rd | F11: 4th | G11: X | H11: 1st | I11: 2nd | J11: 3rd | K11: 4th | L11: AND Logical Test | M11: Multiplication Rule
B12: SP1 | C12: =$D$6 -> S | D12: =$D$6 -> S | E12: =$D$6 -> S | F12: =$D$7 -> NS | G12: =COUNTIF(C12:F12,$D$6) -> 3 | H12: =IF(C12:F12=$D$6,$F$3,1-$F$3) -> 0.2 | I12: 0.2 | J12: 0.2 | K12: 0.8 | L12: ="P("&C12:C15&" AND "&D12:D15&" AND "&E12:E15&" AND "&F12:F15&")" -> P(S AND S AND S AND NS) | M12: =H12:H15&"*"&I12:I15&"*"&J12:J15&"*"&K12:K15&" =" -> 0.2*0.2*0.2*0.8 = | O12: =_xlfn.IFNA(ADDRESS(ROW(N12),COLUMN(N12),4)&": "&_xlfn.FORMULATEXT(N12),"") -> 
B13: SP2 | C13: =$D$6 -> S | D13: =$D$6 -> S | E13: =$D$7 -> NS | F13: =$D$6 -> S | G13: =COUNTIF(C13:F13,$D$6) -> 3 | H13: =IF(C13:F13=$D$6,$F$3,1-$F$3) -> 0.2 | I13: 0.2 | J13: 0.8 | K13: 0.2 | L13: P(S AND S AND NS AND S) | M13: 0.2*0.2*0.8*0.2 =
B14: SP3 | C14: =$D$6 -> S | D14: =$D$7 -> NS | E14: =$D$6 -> S | F14: =$D$6 -> S | G14: =COUNTIF(C14:F14,$D$6) -> 3 | H14: =IF(C14:F14=$D$6,$F$3,1-$F$3) -> 0.2 | I14: 0.8 | J14: 0.2 | K14: 0.2 | L14: P(S AND NS AND S AND S) | M14: 0.2*0.8*0.2*0.2 =
B15: SP4 | C15: =$D$7 -> NS | D15: =$D$6 -> S | E15: =$D$6 -> S | F15: =$D$6 -> S | G15: =COUNTIF(C15:F15,$D$6) -> 3 | H15: =IF(C15:F15=$D$6,$F$3,1-$F$3) -> 0.8 | I15: 0.2 | J15: 0.2 | K15: 0.2 | L15: P(NS AND S AND S AND S) | M15: 0.8*0.2*0.2*0.2 =
L16: ="P("&_xlfn.TEXTJOIN(" OR ",,B12:B15)&")" -> P(SP1 OR SP2 OR SP3 OR SP4) | M16: ="P(x = "&$F$4&")" -> P(x = 3) | O16: < = OR Logical Test = Addition Rule
M18: Binomial Probability Math Formula:
M20: P(X) | N20: P(X)
M21: ="P(x = "&$F$4&")" -> P(x = 3) | O21: =_xlfn.IFNA(ADDRESS(ROW(N21),COLUMN(N21),4)&": "&_xlfn.FORMULATEXT(N21),"") -> 
M24: Excel Built-in Function: BINOM.DIST.RANGE
B26: Variable | I26: Function argument | M26: P(X) | N26: P(X)
B27: n = # of Fixed Trials = | I27: trials | M27: ="P(x = "&$F$4&")" -> P(x = 3) | O27: =_xlfn.IFNA(ADDRESS(ROW(N27),COLUMN(N27),4)&": "&_xlfn.FORMULATEXT(N27),"") -> 
B28: p = Prob of Success = | I28: probability_s
B29: Random Discrete Variable that counts successes = x. If you use only this argument, it calculates the probability of exactly x. | I29: number_s
B30: This is second x value. If you use this argument with the first x value in number_s argument, the function will calculate the probability between the two x values, inclusive. | I30: [number_s2]

Sheet B(1an)
B2: n = # of Fixed Trials = Appointments | F2: 4
B3: p = Prob of Success = | F3: 0.2
B4: ="Random Discrete Variable = x = # Sales in "&F2&" Tries" -> Random Discrete Variable = x = # Sales in 4 Tries | F4: 3
B6: Success is? | C6: Sale | D6: S
B7: Not? | C7: Not Sale | D7: NS
B9: Sample Points for 3 sales in 4 tries: | M9: Chapter 4 Methods with AND and OR:
B11: Sample Point | C11: 1st | D11: 2nd | E11: 3rd | F11: 4th | G11: X | H11: 1st | I11: 2nd | J11: 3rd | K11: 4th | L11: AND Logical Test | M11: Multiplication Rule
B12: SP1 | C12: =$D$6 -> S | D12: =$D$6 -> S | E12: =$D$6 -> S | F12: =$D$7 -> NS | G12: =COUNTIF(C12:F12,$D$6) -> 3 | H12: =IF(C12:F12=$D$6,$F$3,1-$F$3) -> 0.2 | I12: 0.2 | J12: 0.2 | K12: 0.8 | L12: ="P("&C12:C15&" AND "&D12:D15&" AND "&E12:E15&" AND "&F12:F15&")" -> P(S AND S AND S AND NS) | M12: =H12:H15&"*"&I12:I15&"*"&J12:J15&"*"&K12:K15&" =" -> 0.2*0.2*0.2*0.8 = | N12: =PRODUCT(_xlfn.ANCHORARRAY(H12)) -> 0.0064 | O12: =_xlfn.IFNA(ADDRESS(ROW(N12),COLUMN(N12),4)&": "&_xlfn.FORMULATEXT(N12),"") -> N12: =PRODUCT(H12#)
B13: SP2 | C13: =$D$6 -> S | D13: =$D$6 -> S | E13: =$D$7 -> NS | F13: =$D$6 -> S | G13: =COUNTIF(C13:F13,$D$6) -> 3 | H13: =IF(C13:F13=$D$6,$F$3,1-$F$3) -> 0.2 | I13: 0.2 | J13: 0.8 | K13: 0.2 | L13: P(S AND S AND NS AND S) | M13: 0.2*0.2*0.8*0.2 = | N13: =PRODUCT(_xlfn.ANCHORARRAY(H13)) -> 0.0064
B14: SP3 | C14: =$D$6 -> S | D14: =$D$7 -> NS | E14: =$D$6 -> S | F14: =$D$6 -> S | G14: =COUNTIF(C14:F14,$D$6) -> 3 | H14: =IF(C14:F14=$D$6,$F$3,1-$F$3) -> 0.2 | I14: 0.8 | J14: 0.2 | K14: 0.2 | L14: P(S AND NS AND S AND S) | M14: 0.2*0.8*0.2*0.2 = | N14: 0.0064
B15: SP4 | C15: =$D$7 -> NS | D15: =$D$6 -> S | E15: =$D$6 -> S | F15: =$D$6 -> S | G15: =COUNTIF(C15:F15,$D$6) -> 3 | H15: =IF(C15:F15=$D$6,$F$3,1-$F$3) -> 0.8 | I15: 0.2 | J15: 0.2 | K15: 0.2 | L15: P(NS AND S AND S AND S) | M15: 0.8*0.2*0.2*0.2 = | N15: 0.0064
L16: ="P("&_xlfn.TEXTJOIN(" OR ",,B12:B15)&")" -> P(SP1 OR SP2 OR SP3 OR SP4) | M16: ="P(x = "&$F$4&")" -> P(x = 3) | N16: =SUM(N12:N15) -> 0.0256 | O16: < = OR Logical Test = Addition Rule
M18: Binomial Probability Math Formula:
M20: P(X) | N20: P(X)
M21: ="P(x = "&$F$4&")" -> P(x = 3) | N21: =COMBIN(F2,F4)*F3^F4*(1-F3)^(F2-F4) -> 0.0256 | O21: =_xlfn.IFNA(ADDRESS(ROW(N21),COLUMN(N21),4)&": "&_xlfn.FORMULATEXT(N21),"") -> N21: =COMBIN(F2,F4)*F3^F4*(1-F3)^(F2-F4)
M24: Excel Built-in Function: BINOM.DIST.RANGE
B26: Variable | I26: Function argument | M26: P(X) | N26: P(X)
B27: n = # of Fixed Trials = | I27: trials | M27: ="P(x = "&$F$4&")" -> P(x = 3) | N27: =_xlfn.BINOM.DIST.RANGE(F2,F3,F4) -> 0.0256 | O27: =_xlfn.IFNA(ADDRESS(ROW(N27),COLUMN(N27),4)&": "&_xlfn.FORMULATEXT(N27),"") -> N27: =BINOM.DIST.RANGE(F2,F3,F4)
B28: p = Prob of Success = | I28: probability_s
B29: Random Discrete Variable that counts successes = x. If you use only this argument, it calculates the probability of exactly x. | I29: number_s
B30: This is second x value. If you use this argument with the first x value in number_s argument, the function will calculate the probability between the two x values, inclusive. | I30: [number_s2]

Sheet B(2)
A1: An insurance agent has appointments with 4 clients tomorrow.
A2: From past data, the chance of making a sale is 1 in 5. What is likelihood that she will sell 3 policies in 4 tries?
A3: Binomial Experiment?
A4: 1 | B4: Fixed # of Identical Trials = n | E4: Yes | G4: ="Binomial Distribution, n = "&E9&", p = "&E10 -> Binomial Distribution, n = 4, p = 0.2
A5: 2 | B5: Each trial only results in S or F | E5: Yes
A6: 3 | B6: p remains the same for each trial | E6: Yes
A7: 4 | B7: All events are independent | E7: Yes
A9: n = # of Fixed Trials = Appointments | E9: 4
A10: p = Prob of Success = | E10: 0.2
A11: ="Random Discrete Variable = x = # Sales in "&E9&" Tries" -> Random Discrete Variable = x = # Sales in 4 Tries | E11: 3
A12: Mean = µ = E(x) = Expected Value =
A13: Mean = µ = E(x) = Expected Value =
A14: Standard Deviation = s =
A15: Standard Deviation = s =
A17: X | B17: P(x) = f(x) | S17: P(x) = f(x) | T17: P(x) = f(x)
S18: =FACT(E9)/(FACT(A18:A22)*FACT(E9-A18:A22))*E10^A18:A22*(1-E10)^(E9-A18:A22) -> 0.4096 | T18: =COMBIN(E9,A18:A22)*E10^A18:A22*(1-E10)^(E9-A18:A22) -> 0.4096 | V18: =_xlfn.IFNA(ADDRESS(ROW(S18),COLUMN(S18),4)&": "&_xlfn.FORMULATEXT(S18),"") -> S18: =FACT(E9)/(FACT(A18:A22)*FACT(E9-A18:A22))*E10^A18:A22*(1-E10)^(E9-A18:A22)
S19: 0.4096 | T19: 0.4096 | V19: =_xlfn.IFNA(ADDRESS(ROW(T18),COLUMN(T18),4)&": "&_xlfn.FORMULATEXT(T18),"") -> T18: =COMBIN(E9,A18:A22)*E10^A18:A22*(1-E10)^(E9-A18:A22)
S20: 0.4096 | T20: 0.4096
S21: 0.4096 | T21: 0.4096
S22: 0.4096 | T22: 0.4096
A23: Total | R23: Total | S23: =SUM(S18:S22) -> 2.048 | T23: =SUM(T18:T22) -> 2.048
A25: P(x) = f(x) | B25: P(x) = f(x) | C25: SUM | E25: Lower X | F25: Upper X
A26: ="P(x = "&E26&")" -> P(x = 2) | E26: 2 | F26: 2 | G26: =_xlfn.BINOM.DIST.RANGE(E9,E10,E26:E30,F26:F30) -> 0.1536
A27: ="P(x > "&E27-1&")" -> P(x > 1) | E27: 2 | F27: 4 | G27: 0.1808
A28: ="P(x >= "&E28&")" -> P(x >= 3) | E28: 3 | F28: 4 | G28: 0.0272
A29: ="P(x < "&F29+1&")" -> P(x < 3) | E29: 0 | F29: 2 | G29: 0.9728
A30: ="P(x <= "&F30&")" -> P(x <= 3) | E30: 0 | F30: 3 | G30: 0.9984
A31: ="P(x <= "&E31&")" -> P(x <= 3) | E31: 3
B39: If we had all the data:
B41: Average Policies Sold in 4 Tries: | E41: =AVERAGE(C46:G4142) -> 
B42: Standard Deviation Pop: | E42: =_xlfn.STDEV.P(C46:G4142) -> 
B43: Count: | E43: =COUNT(C47:G4142) -> 0 | F43: =SUM(_xlfn.ANCHORARRAY(C45)) -> 
B45: # Times: | C45: =TRANSPOSE(_xlfn.ANCHORARRAY(B18))*10000 -> 
B46: X: | C46: =_xlfn.SEQUENCE(,E9+1,0) -> 0 | D46: 1 | E46: 2 | F46: 3 | G46: 4
B47: Data: | C47: =_xlfn.SEQUENCE(C45,,C46,0) ->  | D47: =_xlfn.SEQUENCE(D45,,D46,0) ->  | E47: =_xlfn.SEQUENCE(E45,,E46,0) ->  | F47: =_xlfn.SEQUENCE(F45,,F46,0) ->  | G47: =_xlfn.SEQUENCE(G45,,G46,0) -> 

Sheet B(2an)
A1: An insurance agent has appointments with 4 clients tomorrow.
A2: From past data, the chance of making a sale is 1 in 5. What is likelihood that she will sell 3 policies in 4 tries?
A3: Binomial Experiment?
A4: 1 | B4: Fixed # of Identical Trials = n | E4: Yes | G4: ="Binomial Distribution, n = "&E9&", p = "&E10 -> Binomial Distribution, n = 4, p = 0.2
A5: 2 | B5: Each trial only results in S or F | E5: Yes
A6: 3 | B6: p remains the same for each trial | E6: Yes
A7: 4 | B7: All events are independent | E7: Yes
A9: n = # of Fixed Trials = Appointments | E9: 4
A10: p = Prob of Success = | E10: 0.2
A11: ="Random Discrete Variable = x = # Sales in "&E9&" Tries" -> Random Discrete Variable = x = # Sales in 4 Tries | E11: 3
A12: Mean = µ = E(x) = Expected Value = | E12: =SUMPRODUCT(_xlfn.ANCHORARRAY(A18),_xlfn.ANCHORARRAY(B18)) -> 0.8 | G12: =_xlfn.IFNA(ADDRESS(ROW(E12),COLUMN(E12),4)&": "&_xlfn.FORMULATEXT(E12),"") -> E12: =SUMPRODUCT(A18#,B18#)
A13: Mean = µ = E(x) = Expected Value = | E13: =E9*E10 -> 0.8 | G13: =_xlfn.IFNA(ADDRESS(ROW(E13),COLUMN(E13),4)&": "&_xlfn.FORMULATEXT(E13),"") -> E13: =E9*E10
A14: Standard Deviation = s = | E14: =SQRT(SUMPRODUCT((_xlfn.ANCHORARRAY(A18)-E12)^2,_xlfn.ANCHORARRAY(B18))) -> 0.8 | G14: E14: =SQRT(SUMPRODUCT((A18#-E12)^2,B18#))
A15: Standard Deviation = s = | E15: =SQRT(E9*E10*(1-E10)) -> 0.8 | G15: E15: =SQRT(E9*E10*(1-E10))
A17: X | B17: P(x) = f(x) | S17: P(x) = f(x) | T17: P(x) = f(x)
A18: =_xlfn.SEQUENCE(E9+1,,0) -> 0 | B18: =_xlfn.BINOM.DIST.RANGE(E9,E10,_xlfn.ANCHORARRAY(A18)) -> 0.4096 | D18: =_xlfn.IFNA(ADDRESS(ROW(A18),COLUMN(A18),4)&": "&_xlfn.FORMULATEXT(A18),"") -> A18: =SEQUENCE(E9+1,,0) | S18: =FACT(E9)/(FACT(A18:A22)*FACT(E9-A18:A22))*E10^A18:A22*(1-E10)^(E9-A18:A22) -> 0.4096 | T18: =COMBIN(E9,A18:A22)*E10^A18:A22*(1-E10)^(E9-A18:A22) -> 0.4096 | V18: =_xlfn.IFNA(ADDRESS(ROW(S18),COLUMN(S18),4)&": "&_xlfn.FORMULATEXT(S18),"") -> S18: =FACT(E9)/(FACT(A18:A22)*FACT(E9-A18:A22))*E10^A18:A22*(1-E10)^(E9-A18:A22)
A19: 1 | B19: 0.4096 | D19: =_xlfn.IFNA(ADDRESS(ROW(B18),COLUMN(B18),4)&": "&_xlfn.FORMULATEXT(B18),"") -> B18: =BINOM.DIST.RANGE(E9,E10,A18#) | S19: 0.4096 | T19: 0.4096 | V19: =_xlfn.IFNA(ADDRESS(ROW(T18),COLUMN(T18),4)&": "&_xlfn.FORMULATEXT(T18),"") -> T18: =COMBIN(E9,A18:A22)*E10^A18:A22*(1-E10)^(E9-A18:A22)
A20: 2 | B20: 0.1536 | S20: 0.1536 | T20: 0.1536
A21: 3 | B21: 0.0256 | S21: 0.0256 | T21: 0.0256
A22: 4 | B22: 0.0016 | S22: 0.0016 | T22: 0.0016
A23: Total | B23: =SUM(_xlfn.ANCHORARRAY(B18)) -> 1 | R23: Total | S23: =SUM(S18:S22) -> 1 | T23: =SUM(T18:T22) -> 1
A25: P(x) = f(x) | B25: P(x) = f(x) | C25: SUM | E25: Lower X | F25: Upper X | G25: P(x) = f(x) Spilled
A26: ="P(x = "&E26&")" -> P(x = 2) | B26: =_xlfn.BINOM.DIST.RANGE(E9,E10,E26) -> 0.1536 | C26: =B20 -> 0.1536 | E26: 2 | F26: 2 | G26: =_xlfn.BINOM.DIST.RANGE(E9,E10,E26:E30,F26:F30) -> 0.1536 | I26: =_xlfn.IFNA(ADDRESS(ROW(G26),COLUMN(G26),4)&": "&_xlfn.FORMULATEXT(G26),"") -> G26: =BINOM.DIST.RANGE(E9,E10,E26:E30,F26:F30)
A27: ="P(x > "&E27-1&")" -> P(x > 1) | B27: =_xlfn.BINOM.DIST.RANGE(E9,E10,E27,F27) -> 0.1808 | C27: =SUM(B20:B22) -> 0.1808 | E27: 2 | F27: 4 | G27: 0.1808
A28: ="P(x >= "&E28&")" -> P(x >= 3) | B28: =_xlfn.BINOM.DIST.RANGE(E9,E10,E28,F28) -> 0.0272 | C28: =SUM(B21:B22) -> 0.0272 | E28: 3 | F28: 4 | G28: 0.0272
A29: ="P(x < "&F29+1&")" -> P(x < 3) | B29: =_xlfn.BINOM.DIST.RANGE(E9,E10,E29,F29) -> 0.9728 | C29: =SUM(B18:B20) -> 0.9728 | E29: 0 | F29: 2 | G29: 0.9728
A30: ="P(x <= "&F30&")" -> P(x <= 3) | B30: =_xlfn.BINOM.DIST.RANGE(E9,E10,E30,F30) -> 0.9984 | C30: =SUM(B18:B21) -> 0.9984 | E30: 0 | F30: 3 | G30: 0.9984
A31: ="P(x <= "&E31&")" -> P(x <= 3) | B31: =_xlfn.BINOM.DIST(E31,E9,E10,TRUE) -> 0.9984 | E31: 3
A33: =_xlfn.IFNA(ADDRESS(ROW(B26),COLUMN(B26),4)&": "&_xlfn.FORMULATEXT(B26),"") -> B26: =BINOM.DIST.RANGE(E9,E10,E26) | E33: =_xlfn.IFNA(ADDRESS(ROW(C26),COLUMN(C26),4)&": "&_xlfn.FORMULATEXT(C26),"") -> C26: =B20
E34: =_xlfn.IFNA(ADDRESS(ROW(C27),COLUMN(C27),4)&": "&_xlfn.FORMULATEXT(C27),"") -> C27: =SUM(B20:B22)
E35: =_xlfn.IFNA(ADDRESS(ROW(C28),COLUMN(C28),4)&": "&_xlfn.FORMULATEXT(C28),"") -> C28: =SUM(B21:B22)
E36: =_xlfn.IFNA(ADDRESS(ROW(C29),COLUMN(C29),4)&": "&_xlfn.FORMULATEXT(C29),"") -> C29: =SUM(B18:B20)
E37: =_xlfn.IFNA(ADDRESS(ROW(C30),COLUMN(C30),4)&": "&_xlfn.FORMULATEXT(C30),"") -> C30: =SUM(B18:B21)
B39: If we had all the data:
B41: Average Policies Sold in 4 Tries: | E41: =AVERAGE(C46:G4142) -> 0.8005997001
B42: Standard Deviation Pop: | E42: =_xlfn.STDEV.P(C46:G4142) -> 0.8008738607
B43: Count: | E43: =COUNT(C47:G4142) -> 10000 | F43: =SUM(_xlfn.ANCHORARRAY(C45)) -> 10000
B45: # Times: | C45: =TRANSPOSE(_xlfn.ANCHORARRAY(B18))*10000 -> 4096 | D45: 4096 | E45: 1536 | F45: 256 | G45: 16
B46: X: | C46: =_xlfn.SEQUENCE(,E9+1,0) -> 0 | D46: 1 | E46: 2 | F46: 3 | G46: 4
B47: Data: | C47: =_xlfn.SEQUENCE(C45,,C46,0) -> 0 | D47: =_xlfn.SEQUENCE(D45,,D46,0) -> 1 | E47: =_xlfn.SEQUENCE(E45,,E46,0) -> 2 | F47: =_xlfn.SEQUENCE(F45,,F46,0) -> 3 | G47: =_xlfn.SEQUENCE(G45,,G46,0) -> 4
C48: 0 | D48: 1 | E48: 2 | F48: 3 | G48: 4
C49: 0 | D49: 1 | E49: 2 | F49: 3 | G49: 4
C50: 0 | D50: 1 | E50: 2 | F50: 3 | G50: 4
C51: 0 | D51: 1 | E51: 2 | F51: 3 | G51: 4
C52: 0 | D52: 1 | E52: 2 | F52: 3 | G52: 4
C53: 0 | D53: 1 | E53: 2 | F53: 3 | G53: 4
C54: 0 | D54: 1 | E54: 2 | F54: 3 | G54: 4
C55: 0 | D55: 1 | E55: 2 | F55: 3 | G55: 4
C56: 0 | D56: 1 | E56: 2 | F56: 3 | G56: 4
C57: 0 | D57: 1 | E57: 2 | F57: 3 | G57: 4
C58: 0 | D58: 1 | E58: 2 | F58: 3 | G58: 4
C59: 0 | D59: 1 | E59: 2 | F59: 3 | G59: 4
C60: 0 | D60: 1 | E60: 2 | F60: 3 | G60: 4
C61: 0 | D61: 1 | E61: 2 | F61: 3 | G61: 4
C62: 0 | D62: 1 | E62: 2 | F62: 3 | G62: 4
C63: 0 | D63: 1 | E63: 2 | F63: 3
C64: 0 | D64: 1 | E64: 2 | F64: 3
C65: 0 | D65: 1 | E65: 2 | F65: 3
C66: 0 | D66: 1 | E66: 2 | F66: 3
C67: 0 | D67: 1 | E67: 2 | F67: 3
C68: 0 | D68: 1 | E68: 2 | F68: 3
C69: 0 | D69: 1 | E69: 2 | F69: 3
C70: 0 | D70: 1 | E70: 2 | F70: 3
C71: 0 | D71: 1 | E71: 2 | F71: 3
C72: 0 | D72: 1 | E72: 2 | F72: 3
C73: 0 | D73: 1 | E73: 2 | F73: 3
C74: 0 | D74: 1 | E74: 2 | F74: 3
C75: 0 | D75: 1 | E75: 2 | F75: 3
C76: 0 | D76: 1 | E76: 2 | F76: 3
C77: 0 | D77: 1 | E77: 2 | F77: 3
C78: 0 | D78: 1 | E78: 2 | F78: 3
C79: 0 | D79: 1 | E79: 2 | F79: 3
C80: 0 | D80: 1 | E80: 2 | F80: 3
C81: 0 | D81: 1 | E81: 2 | F81: 3
C82: 0 | D82: 1 | E82: 2 | F82: 3
C83: 0 | D83: 1 | E83: 2 | F83: 3
C84: 0 | D84: 1 | E84: 2 | F84: 3
C85: 0 | D85: 1 | E85: 2 | F85: 3
C86: 0 | D86: 1 | E86: 2 | F86: 3
C87: 0 | D87: 1 | E87: 2 | F87: 3
C88: 0 | D88: 1 | E88: 2 | F88: 3
C89: 0 | D89: 1 | E89: 2 | F89: 3
C90: 0 | D90: 1 | E90: 2 | F90: 3
C91: 0 | D91: 1 | E91: 2 | F91: 3
C92: 0 | D92: 1 | E92: 2 | F92: 3
C93: 0 | D93: 1 | E93: 2 | F93: 3
C94: 0 | D94: 1 | E94: 2 | F94: 3
C95: 0 | D95: 1 | E95: 2 | F95: 3
C96: 0 | D96: 1 | E96: 2 | F96: 3
C97: 0 | D97: 1 | E97: 2 | F97: 3
C98: 0 | D98: 1 | E98: 2 | F98: 3
C99: 0 | D99: 1 | E99: 2 | F99: 3
C100: 0 | D100: 1 | E100: 2 | F100: 3
C101: 0 | D101: 1 | E101: 2 | F101: 3
C102: 0 | D102: 1 | E102: 2 | F102: 3
C103: 0 | D103: 1 | E103: 2 | F103: 3
C104: 0 | D104: 1 | E104: 2 | F104: 3
C105: 0 | D105: 1 | E105: 2 | F105: 3
C106: 0 | D106: 1 | E106: 2 | F106: 3
C107: 0 | D107: 1 | E107: 2 | F107: 3
C108: 0 | D108: 1 | E108: 2 | F108: 3
C109: 0 | D109: 1 | E109: 2 | F109: 3
C110: 0 | D110: 1 | E110: 2 | F110: 3
C111: 0 | D111: 1 | E111: 2 | F111: 3
C112: 0 | D112: 1 | E112: 2 | F112: 3
C113: 0 | D113: 1 | E113: 2 | F113: 3
C114: 0 | D114: 1 | E114: 2 | F114: 3
C115: 0 | D115: 1 | E115: 2 | F115: 3
C116: 0 | D116: 1 | E116: 2 | F116: 3
C117: 0 | D117: 1 | E117: 2 | F117: 3
C118: 0 | D118: 1 | E118: 2 | F118: 3
C119: 0 | D119: 1 | E119: 2 | F119: 3
C120: 0 | D120: 1 | E120: 2 | F120: 3
C121: 0 | D121: 1 | E121: 2 | F121: 3
C122: 0 | D122: 1 | E122: 2 | F122: 3
C123: 0 | D123: 1 | E123: 2 | F123: 3
C124: 0 | D124: 1 | E124: 2 | F124: 3
C125: 0 | D125: 1 | E125: 2 | F125: 3
C126: 0 | D126: 1 | E126: 2 | F126: 3
C127: 0 | D127: 1 | E127: 2 | F127: 3
C128: 0 | D128: 1 | E128: 2 | F128: 3
C129: 0 | D129: 1 | E129: 2 | F129: 3
C130: 0 | D130: 1 | E130: 2 | F130: 3
C131: 0 | D131: 1 | E131: 2 | F131: 3
C132: 0 | D132: 1 | E132: 2 | F132: 3
C133: 0 | D133: 1 | E133: 2 | F133: 3
C134: 0 | D134: 1 | E134: 2 | F134: 3
C135: 0 | D135: 1 | E135: 2 | F135: 3
C136: 0 | D136: 1 | E136: 2 | F136: 3
C137: 0 | D137: 1 | E137: 2 | F137: 3
C138: 0 | D138: 1 | E138: 2 | F138: 3
C139: 0 | D139: 1 | E139: 2 | F139: 3
C140: 0 | D140: 1 | E140: 2 | F140: 3
C141: 0 | D141: 1 | E141: 2 | F141: 3
C142: 0 | D142: 1 | E142: 2 | F142: 3
C143: 0 | D143: 1 | E143: 2 | F143: 3
C144: 0 | D144: 1 | E144: 2 | F144: 3
C145: 0 | D145: 1 | E145: 2 | F145: 3
C146: 0 | D146: 1 | E146: 2 | F146: 3
C147: 0 | D147: 1 | E147: 2 | F147: 3
C148: 0 | D148: 1 | E148: 2 | F148: 3
C149: 0 | D149: 1 | E149: 2 | F149: 3
C150: 0 | D150: 1 | E150: 2 | F150: 3
C151: 0 | D151: 1 | E151: 2 | F151: 3
C152: 0 | D152: 1 | E152: 2 | F152: 3
C153: 0 | D153: 1 | E153: 2 | F153: 3
C154: 0 | D154: 1 | E154: 2 | F154: 3
C155: 0 | D155: 1 | E155: 2 | F155: 3
C156: 0 | D156: 1 | E156: 2 | F156: 3
C157: 0 | D157: 1 | E157: 2 | F157: 3
C158: 0 | D158: 1 | E158: 2 | F158: 3
C159: 0 | D159: 1 | E159: 2 | F159: 3
C160: 0 | D160: 1 | E160: 2 | F160: 3
C161: 0 | D161: 1 | E161: 2 | F161: 3
C162: 0 | D162: 1 | E162: 2 | F162: 3
C163: 0 | D163: 1 | E163: 2 | F163: 3
C164: 0 | D164: 1 | E164: 2 | F164: 3
C165: 0 | D165: 1 | E165: 2 | F165: 3
C166: 0 | D166: 1 | E166: 2 | F166: 3
C167: 0 | D167: 1 | E167: 2 | F167: 3
C168: 0 | D168: 1 | E168: 2 | F168: 3
C169: 0 | D169: 1 | E169: 2 | F169: 3
C170: 0 | D170: 1 | E170: 2 | F170: 3
C171: 0 | D171: 1 | E171: 2 | F171: 3
C172: 0 | D172: 1 | E172: 2 | F172: 3
C173: 0 | D173: 1 | E173: 2 | F173: 3
C174: 0 | D174: 1 | E174: 2 | F174: 3
C175: 0 | D175: 1 | E175: 2 | F175: 3
C176: 0 | D176: 1 | E176: 2 | F176: 3
C177: 0 | D177: 1 | E177: 2 | F177: 3
C178: 0 | D178: 1 | E178: 2 | F178: 3
C179: 0 | D179: 1 | E179: 2 | F179: 3
C180: 0 | D180: 1 | E180: 2 | F180: 3
C181: 0 | D181: 1 | E181: 2 | F181: 3
C182: 0 | D182: 1 | E182: 2 | F182: 3
C183: 0 | D183: 1 | E183: 2 | F183: 3
C184: 0 | D184: 1 | E184: 2 | F184: 3
C185: 0 | D185: 1 | E185: 2 | F185: 3
C186: 0 | D186: 1 | E186: 2 | F186: 3
C187: 0 | D187: 1 | E187: 2 | F187: 3
C188: 0 | D188: 1 | E188: 2 | F188: 3
C189: 0 | D189: 1 | E189: 2 | F189: 3
C190: 0 | D190: 1 | E190: 2 | F190: 3
C191: 0 | D191: 1 | E191: 2 | F191: 3
C192: 0 | D192: 1 | E192: 2 | F192: 3
C193: 0 | D193: 1 | E193: 2 | F193: 3
C194: 0 | D194: 1 | E194: 2 | F194: 3
C195: 0 | D195: 1 | E195: 2 | F195: 3
C196: 0 | D196: 1 | E196: 2 | F196: 3
C197: 0 | D197: 1 | E197: 2 | F197: 3
C198: 0 | D198: 1 | E198: 2 | F198: 3
C199: 0 | D199: 1 | E199: 2 | F199: 3
C200: 0 | D200: 1 | E200: 2 | F200: 3
C201: 0 | D201: 1 | E201: 2 | F201: 3
C202: 0 | D202: 1 | E202: 2 | F202: 3
C203: 0 | D203: 1 | E203: 2 | F203: 3
C204: 0 | D204: 1 | E204: 2 | F204: 3
C205: 0 | D205: 1 | E205: 2 | F205: 3
C206: 0 | D206: 1 | E206: 2 | F206: 3
C207: 0 | D207: 1 | E207: 2 | F207: 3
... 3935 more rows

Sheet B(3)
A1: A flight from Oakland to Seattle occurs 6 times per day. The probability that any 1 flight is late is 10%.
A2: What is the probability that exactly 2 planes are late? Less than 2 are late? What is the mean and standard deviation?
A3: Binomial Experiment?
A4: 1 | B4: Fixed # of Identical Trials = n | E4: Yes | G4: ="Binomial Distribution, n = "&E9&", p = "&E10 -> Binomial Distribution, n = 6, p = 0.1
A5: 2 | B5: Each trial only results in S or F | E5: Yes
A6: 3 | B6: p remains the same for each trial | E6: Yes
A7: 4 | B7: All events are independent | E7: Yes
A9: n = # of Fixed Trials =# flights | E9: 6
A10: p = Prob of Success = | E10: 0.1
A11: ="Random Discrete Variable = x = Planes Late in "&E9&" Tries" -> Random Discrete Variable = x = Planes Late in 6 Tries | E11: 2
A12: Mean = µ = E(x) = Expected Value =
A13: Standard Deviation = s =
A15: X | B15: P(x) = f(x) | D15: P(x) = f(x) | E15: P(x) = f(x) | F15: SUM | G15: Lower X | H15: Upper X
D16: ="P(x = "&E11&")" -> P(x = 2) | G16: 2 | H16: 2
D17: ="P(x <= "&E11&")" -> P(x <= 2) | G17: 0 | H17: 2
D18: ="P(x < "&E11&")" -> P(x < 2) | G18: 0 | H18: 1
D19: ="P(x >= "&E11&")" -> P(x >= 2) | G19: 2 | H19: 6
D20: ="P(x > "&E11&")" -> P(x > 2) | G20: 3 | H20: 6
D22: X = | E22: 2
A23: Total

Sheet B(3an)
A1: A flight from Oakland to Seattle occurs 6 times per day. The probability that any 1 flight is late is 10%.
A2: What is the probability that exactly 2 planes are late? Less than 2 are late? What is the mean and standard deviation?
A3: Binomial Experiment?
A4: 1 | B4: Fixed # of Identical Trials = n | E4: Yes | G4: ="Binomial Distribution, n = "&E9&", p = "&E10 -> Binomial Distribution, n = 6, p = 0.1
A5: 2 | B5: Each trial only results in S or F | E5: Yes
A6: 3 | B6: p remains the same for each trial | E6: Yes
A7: 4 | B7: All events are independent | E7: Yes
A9: n = # of Fixed Trials =# flights | E9: 6
A10: p = Prob of Success = | E10: 0.1
A11: ="Random Discrete Variable = x = Planes Late in "&E9&" Tries" -> Random Discrete Variable = x = Planes Late in 6 Tries | E11: 2 | L11: Formulas Used:
A12: Mean = µ = E(x) = Expected Value = | E12: =E9*E10 -> 0.6 | L12: =_xlfn.IFNA(ADDRESS(ROW(E12),COLUMN(E12),4)&": "&_xlfn.FORMULATEXT(E12),"") -> E12: =E9*E10
A13: Standard Deviation = s = | E13: =SQRT(E12*(1-E10)) -> 0.7348469228 | L13: =_xlfn.IFNA(ADDRESS(ROW(E13),COLUMN(E13),4)&": "&_xlfn.FORMULATEXT(E13),"") -> E13: =SQRT(E12*(1-E10))
A15: X | B15: P(x) = f(x) | D15: P(x) = f(x) | E15: P(x) = f(x) | F15: SUM | G15: Lower X | H15: Upper X
A16: =_xlfn.SEQUENCE(E9+1,,0) -> 0 | B16: =_xlfn.BINOM.DIST.RANGE(E9,E10,A16:A22) -> 0.531441 | D16: ="P(x = "&E11&")" -> P(x = 2) | E16: =_xlfn.BINOM.DIST.RANGE(E9,E10,G16:G20,H16:H20) -> 0.098415 | F16: =SUM(B18) -> 0.098415 | G16: 2 | H16: 2 | L16: =_xlfn.IFNA(ADDRESS(ROW(A16),COLUMN(A16),4)&": "&_xlfn.FORMULATEXT(A16),"") -> A16: =SEQUENCE(E9+1,,0) | R16: =_xlfn.IFNA(ADDRESS(ROW(F16),COLUMN(F16),4)&": "&_xlfn.FORMULATEXT(F16),"") -> F16: =SUM(B18)
A17: 1 | B17: 0.354294 | D17: ="P(x <= "&E11&")" -> P(x <= 2) | E17: 0.98415 | F17: =SUM(B16:B18) -> 0.98415 | G17: 0 | H17: 2 | L17: =_xlfn.IFNA(ADDRESS(ROW(B16),COLUMN(B16),4)&": "&_xlfn.FORMULATEXT(B16),"") -> B16: =BINOM.DIST.RANGE(E9,E10,A16:A22) | R17: =_xlfn.IFNA(ADDRESS(ROW(F17),COLUMN(F17),4)&": "&_xlfn.FORMULATEXT(F17),"") -> F17: =SUM(B16:B18)
A18: 2 | B18: 0.098415 | D18: ="P(x < "&E11&")" -> P(x < 2) | E18: 0.885735 | F18: =SUM(B16:B17) -> 0.885735 | G18: 0 | H18: 1 | L18: =_xlfn.IFNA(ADDRESS(ROW(E16),COLUMN(E16),4)&": "&_xlfn.FORMULATEXT(E16),"") -> E16: =BINOM.DIST.RANGE(E9,E10,G16:G20,H16:H20) | R18: =_xlfn.IFNA(ADDRESS(ROW(F18),COLUMN(F18),4)&": "&_xlfn.FORMULATEXT(F18),"") -> F18: =SUM(B16:B17)
A19: 3 | B19: 0.01458 | D19: ="P(x >= "&E11&")" -> P(x >= 2) | E19: 0.114265 | F19: =SUM(B18:B22) -> 0.114265 | G19: 2 | H19: 6 | R19: =_xlfn.IFNA(ADDRESS(ROW(F19),COLUMN(F19),4)&": "&_xlfn.FORMULATEXT(F19),"") -> F19: =SUM(B18:B22)
A20: 4 | B20: 0.001215 | D20: ="P(x > "&E11&")" -> P(x > 2) | E20: 0.01585 | F20: =SUM(B19:B22) -> 0.01585 | G20: 3 | H20: 6 | R20: =_xlfn.IFNA(ADDRESS(ROW(F20),COLUMN(F20),4)&": "&_xlfn.FORMULATEXT(F20),"") -> F20: =SUM(B19:B22)
A21: 5 | B21: 5.4e-05
A22: 6 | B22: 1e-06 | D22: X = | E22: 2
A23: Total

Sheet B(4)
A1: The probability of getting stuck in traffic on the West Seattle Bridge in the morning is 0.15.
A2: Over the next two weeks (10 workdays), what is probability that you will get stuck in traffic 0 times? 1 Time?
A3: Binomial Experiment?
A4: 1 | B4: Fixed # of Identical Trials = n | E4: Yes | G4: ="Binomial Distribution, n = "&E9&", p = "&E10 -> Binomial Distribution, n = 10, p = 0.15
A5: 2 | B5: Each trial only results in S or F | E5: Yes
A6: 3 | B6: p remains the same for each trial | E6: Yes
A7: 4 | B7: All events are independent | E7: Yes
A9: n = # of Fixed Trials = # drive on bridge | E9: 10
A10: p = Prob of Success = | E10: 0.15
A11: ="Random Discrete Variable = x = Stuck In Traffic in "&E9&" Tries" -> Random Discrete Variable = x = Stuck In Traffic in 10 Tries
A12: Mean = µ = E(x) = Expected Value =
A14: X | B14: P(x) = f(x)
A26: Total

Sheet B(4an)
A1: The probability of getting stuck in traffic on the West Seattle Bridge in the morning is 0.15.
A2: Over the next two weeks (10 workdays), what is probability that you will get stuck in traffic 0 times? 1 Time?
A3: Binomial Experiment?
A4: 1 | B4: Fixed # of Identical Trials = n | E4: Yes | G4: ="Binomial Distribution, n = "&E9&", p = "&E10 -> Binomial Distribution, n = 10, p = 0.15
A5: 2 | B5: Each trial only results in S or F | E5: Yes
A6: 3 | B6: p remains the same for each trial | E6: Yes
A7: 4 | B7: All events are independent | E7: Yes
A9: n = # of Fixed Trials = # drive on bridge | E9: 10
A10: p = Prob of Success = | E10: 0.15
A11: ="Random Discrete Variable = x = Stuck In Traffic in "&E9&" Tries" -> Random Discrete Variable = x = Stuck In Traffic in 10 Tries | G11: Formulas:
A12: Mean = µ = E(x) = Expected Value = | E12: =E9*E10 -> 1.5 | G12: =_xlfn.IFNA(ADDRESS(ROW(E12),COLUMN(E12),4)&": "&_xlfn.FORMULATEXT(E12),"") -> E12: =E9*E10
A14: X | B14: P(x) = f(x)
A15: =_xlfn.SEQUENCE(E9+1,,0) -> 0 | B15: =_xlfn.BINOM.DIST.RANGE(E9,E10,A15:A25) -> 0.1968744043 | G15: =_xlfn.IFNA(ADDRESS(ROW(A15),COLUMN(A15),4)&": "&_xlfn.FORMULATEXT(A15),"") -> A15: =SEQUENCE(E9+1,,0)
A16: 1 | B16: 0.3474254194 | G16: =_xlfn.IFNA(ADDRESS(ROW(B15),COLUMN(B15),4)&": "&_xlfn.FORMULATEXT(B15),"") -> B15: =BINOM.DIST.RANGE(E9,E10,A15:A25)
A17: 2 | B17: 0.2758966566
A18: 3 | B18: 0.1298337208
A19: 4 | B19: 0.04009570788
A20: 5 | B20: 0.008490855786
A21: 6 | B21: 0.001248655263
A22: 7 | B22: 0.0001259148164
A23: 8 | B23: 8.332598145e-06
A24: 9 | B24: 3.267685547e-07
A25: 10 | B25: 5.766503906e-09
A26: Total

Sheet B(5)
A1: Highline found that 16.00% of its students withdraw from Accounting 202.
A2: In the current class that has 35 students enrolled, what is the probability that between 3 and 7 students withdraw? What is the mean?
A3: Binomial Experiment?
A4: 1 | B4: Fixed # of Identical Trials = n | E4: Yes
A5: 2 | B5: Each trial only results in S or F | E5: Yes
A6: 3 | B6: p remains the same for each trial | E6: Yes
A7: 4 | B7: All events are independent | E7: Yes
A9: n = # of Fixed Trials = # Students | E9: 35
A10: p = Prob of Success = Withdraw | E10: 0.16
A11: ="Random Discrete Variable = x = withdraw from class in "&E9&" Tries" -> Random Discrete Variable = x = withdraw from class in 35 Tries
A12: Mean = µ = E(x) = Expected Value =
B14: X1 | C14: X2 | D14: P(Event) | E14: P(Event)
B15: 3 | C15: 7 | D15: P(3 <= X <= 7)

Sheet B(5an)
A1: Highline found that 16.00% of its students withdraw from Accounting 202.
A2: In the current class that has 35 students enrolled, what is the probability that between 3 and 7 students withdraw? What is the mean?
A3: Binomial Experiment?
A4: 1 | B4: Fixed # of Identical Trials = n | E4: Yes
A5: 2 | B5: Each trial only results in S or F | E5: Yes
A6: 3 | B6: p remains the same for each trial | E6: Yes
A7: 4 | B7: All events are independent | E7: Yes
A9: n = # of Fixed Trials = # Students | E9: 35
A10: p = Prob of Success = Withdraw | E10: 0.16
A11: ="Random Discrete Variable = x = withdraw from class in "&E9&" Tries" -> Random Discrete Variable = x = withdraw from class in 35 Tries
A12: Mean = µ = E(x) = Expected Value = | E12: =E10*E9 -> 5.6 | G12: =_xlfn.IFNA(ADDRESS(ROW(E12),COLUMN(E12),4)&": "&_xlfn.FORMULATEXT(E12),"") -> E12: =E10*E9
B14: X1 | C14: X2 | D14: P(Event) | E14: P(Event)
B15: 3 | C15: 7 | D15: P(3 <= X <= 7) | E15: =_xlfn.BINOM.DIST.RANGE(E9,E10,B15,C15) -> 0.7478766172 | G15: =_xlfn.IFNA(ADDRESS(ROW(E15),COLUMN(E15),4)&": "&_xlfn.FORMULATEXT(E15),"") -> E15: =BINOM.DIST.RANGE(E9,E10,B15,C15)

Sheet B(6)
A1: n | B1: 5 | E1: ="Binomial Distribution, n = "&B1&" p = "&B2 -> Binomial Distribution, n = 5 p = 0.5
A2: p | B2: 0.5
A5: X | B5: P(x)
A6: =_xlfn.SEQUENCE(B1+1,,0) -> 0 | B6: =_xlfn.BINOM.DIST.RANGE(B1,B2,_xlfn.ANCHORARRAY(A6)) -> 0.03125
A7: 1 | B7: 0.15625
A8: 2 | B8: 0.3125
A9: 3 | B9: 0.3125
A10: 4 | B10: 0.15625
A11: 5 | B11: 0.03125
E14: As n increases, distributions approached Bell Shape
E15: As p approaches 0.5, distributions approached Bell Shape
E16: At p = .5, distribution is Bell

Sheet <=
A1: ="The probability of getting stuck in traffic on Hwy 99 in the morning is "&E10&"." -> The probability of getting stuck in traffic on Hwy 99 in the morning is 0.25.
A2: ="Over the next three weeks ("&E9&" workdays), what is probability that you will get stuck in traffic for various x values" -> Over the next three weeks (15 workdays), what is probability that you will get stuck in traffic for various x values
A3: Binomial Experiment?
A4: 1 | B4: Fixed # of Identical Trials = n | E4: Yes | G4: ="Binomial Distribution, n = "&E9&", p = "&E10 -> Binomial Distribution, n = 15, p = 0.25
A5: 2 | B5: Each trial only results in S or F | E5: Yes
A6: 3 | B6: p remains the same for each trial | E6: Yes
A7: 4 | B7: All events are independent | E7: Yes
A9: n = # of Fixed Trials = # drive on bridge | E9: 15
A10: p = Prob of Success = | E10: 0.25
A11: ="Random Discrete Variable = x = Stuck In Traffic in "&E9&" Tries" -> Random Discrete Variable = x = Stuck In Traffic in 15 Tries | E11: 4
A12: ="P(x<="&$E$11&")" -> P(x<=4) | E12: =_xlfn.BINOM.DIST.RANGE(E9,E10,0,E11) -> 0.6864859415
A14: X | B14: P(x) = f(x) | C14: ="P(x<="&$E$11&") = "&ROUND(E12,4) -> P(x<=4) = 0.6865
A15: =_xlfn.SEQUENCE(E9+1,,0) -> 0 | B15: =_xlfn.BINOM.DIST.RANGE(E9,E10,_xlfn.ANCHORARRAY(A15)) -> 0.01336346101 | C15: =IF(_xlfn.ANCHORARRAY(A15)<=E11,_xlfn.ANCHORARRAY(B15),"") -> 0.01336346101
A16: 1 | B16: 0.06681730505 | C16: 0.06681730505
A17: 2 | B17: 0.1559070451 | C17: 0.1559070451
A18: 3 | B18: 0.2251990652 | C18: 0.2251990652
A19: 4 | B19: 0.2251990652 | C19: 0.2251990652
A20: 5 | B20: 0.1651459811
A21: 6 | B21: 0.09174776729
A22: 7 | B22: 0.0393204717
A23: 8 | B23: 0.0131068239
A24: 9 | B24: 0.003398065455
A25: 10 | B25: 0.0006796130911
A26: 11 | B26: 0.0001029716805
A27: 12 | B27: 1.144129783e-05
A28: 13 | B28: 8.80099833e-07
A29: 14 | B29: 4.190951586e-08
A30: 15 | B30: 9.313225746e-10
A31: Total | B31: =SUM(B15:B30) -> 1

Sheet >
A1: ="The probability of getting stuck in traffic on Hwy 99 in the morning is "&E10&"." -> The probability of getting stuck in traffic on Hwy 99 in the morning is 0.25.
A2: ="Over the next three weeks ("&E9&" workdays), what is probability that you will get stuck in traffic for various x values" -> Over the next three weeks (15 workdays), what is probability that you will get stuck in traffic for various x values
A3: Binomial Experiment?
A4: 1 | B4: Fixed # of Identical Trials = n | E4: Yes | G4: ="Binomial Distribution, n = "&E9&", p = "&E10 -> Binomial Distribution, n = 15, p = 0.25
A5: 2 | B5: Each trial only results in S or F | E5: Yes
A6: 3 | B6: p remains the same for each trial | E6: Yes
A7: 4 | B7: All events are independent | E7: Yes
A9: n = # of Fixed Trials = # drive on bridge | E9: 15
A10: p = Prob of Success = | E10: 0.25
A11: ="Random Discrete Variable = x = Stuck In Traffic in "&E9&" Tries" -> Random Discrete Variable = x = Stuck In Traffic in 15 Tries | E11: 3
A12: =C14 -> P(x>3) = 0.5387 | E12: =1-_xlfn.BINOM.DIST(E11,E9,E10,1) -> 0.5387131236
A14: X | B14: P(x) = f(x) | C14: ="P(x>"&E11&") = "&ROUND(E12,4) -> P(x>3) = 0.5387
A15: =_xlfn.SEQUENCE(E9+1,,0) -> 0 | B15: =_xlfn.BINOM.DIST.RANGE(E9,E10,_xlfn.ANCHORARRAY(A15)) -> 0.01336346101 | C15: =IF(_xlfn.ANCHORARRAY(A15)>E11,_xlfn.ANCHORARRAY(B15),"") -> 
A16: 1 | B16: 0.06681730505
A17: 2 | B17: 0.1559070451
A18: 3 | B18: 0.2251990652
A19: 4 | B19: 0.2251990652 | C19: 0.2251990652
A20: 5 | B20: 0.1651459811 | C20: 0.1651459811
A21: 6 | B21: 0.09174776729 | C21: 0.09174776729
A22: 7 | B22: 0.0393204717 | C22: 0.0393204717
A23: 8 | B23: 0.0131068239 | C23: 0.0131068239
A24: 9 | B24: 0.003398065455 | C24: 0.003398065455
A25: 10 | B25: 0.0006796130911 | C25: 0.0006796130911
A26: 11 | B26: 0.0001029716805 | C26: 0.0001029716805
A27: 12 | B27: 1.144129783e-05 | C27: 1.144129783e-05
A28: 13 | B28: 8.80099833e-07 | C28: 8.80099833e-07
A29: 14 | B29: 4.190951586e-08 | C29: 4.190951586e-08
A30: 15 | B30: 9.313225746e-10 | C30: 9.313225746e-10
A31: Total | B31: =SUM(B15:B30) -> 1

Sheet Between
A1: ="The probability of getting stuck in traffic on Hwy 99 in the morning is "&E10&"." -> The probability of getting stuck in traffic on Hwy 99 in the morning is 0.25.
A2: ="Over the next three weeks ("&E9&" workdays), what is probability that you will get stuck in traffic for various x values/" -> Over the next three weeks (15 workdays), what is probability that you will get stuck in traffic for various x values/
A3: Binomial Experiment?
A4: 1 | B4: Fixed # of Identical Trials = n | E4: Yes | G4: ="Binomial Distribution, n = "&E9&", p = "&E10 -> Binomial Distribution, n = 15, p = 0.25
A5: 2 | B5: Each trial only results in S or F | E5: Yes | G5: ="Random Discrete Variable = x = Stuck In Traffic in "&E9&" Tries" -> Random Discrete Variable = x = Stuck In Traffic in 15 Tries
A6: 3 | B6: p remains the same for each trial | E6: Yes
A7: 4 | B7: All events are independent | E7: Yes
A9: n = # of Fixed Trials = # drive on bridge | E9: 15
A10: p = Prob of Success = | E10: 0.25
A11: X - Lower | E11: 2
A12: X - Upper | E12: 5
E13: =_xlfn.BINOM.DIST(E12,E9,E10,1)-_xlfn.BINOM.DIST(E11-1,E9,E10,1) -> 0.7714511566
A15: X | B15: P(x) = f(x) | C15: ="P("&E11&"<=X<="&E12&") = "&ROUND(E13,4) -> P(2<=X<=5) = 0.7715
A16: 0 | B16: =_xlfn.BINOM.DIST.RANGE(E9,E10,A16:A31) -> 0.01336346101 | C16: =IF((A16:A31>=E11)*(A16:A31<=E12),_xlfn.ANCHORARRAY(B16),"") -> 
A17: 1 | B17: 0.06681730505
A18: 2 | B18: 0.1559070451 | C18: 0.1559070451
A19: 3 | B19: 0.2251990652 | C19: 0.2251990652
A20: 4 | B20: 0.2251990652 | C20: 0.2251990652
A21: 5 | B21: 0.1651459811 | C21: 0.1651459811
A22: 6 | B22: 0.09174776729
A23: 7 | B23: 0.0393204717
A24: 8 | B24: 0.0131068239
A25: 9 | B25: 0.003398065455
A26: 10 | B26: 0.0006796130911
A27: 11 | B27: 0.0001029716805
A28: 12 | B28: 1.144129783e-05
A29: 13 | B29: 8.80099833e-07
A30: 14 | B30: 4.190951586e-08
A31: 15 | B31: 9.313225746e-10
A32: Total | B32: =SUM(B16:B31) -> 1

Sheet Poisson Pattern Positive Skew
B2: Define Random Discrete Variable = x = | D2: x = Number Arrivals during 1 minute | H2: Chart Title: | I2: ="Poisson Distribution "&B3&" = "&C3 -> Poisson Distribution Expected Value = µ = = 5
B3: Expected Value = µ = | C3: 5 | D3: people arriving/minute
B27: Self Spilling Report:
B29: =_xlfn.LET( _xlpm.mean,C3, _xlpm.seq,_xlfn.SEQUENCE(1000,,0), _xlpm.PP,_xlfn.POISSON.DIST(_xlpm.seq,_xlpm.mean,0), _xlpm.runPP,_xlfn.SCAN(0,_xlpm.PP,_xlfn.LAMBDA(_xlpm.a,_xlpm.r,_xlpm.a+_xlpm.r)), _xlpm.x,_xlfn.XLOOKUP(1,_xlpm.runPP,_xlpm.seq,,-1)+1, _xlpm.seqx,_xlfn.SEQUENCE(_xlpm.x,,0), _xlpm.PPx,_xlfn.POISSON.DIST(_xlpm.seqx,_xlpm.mean,0), _xlpm.r,_xlfn.VSTACK(_xlfn.HSTACK("X","P(X)"),_xlfn.HSTACK(_xlpm.seqx,_xlpm.PPx),_xlfn.HSTACK("Total",SUM(_xlpm.PPx))), _xlpm.r) -> X | C29: P(X) | E29: P(X) | H29: X
B30: 0 | C30: 0.006737946999 | E30: =_xlfn.DROP(_xlfn.DROP(_xlfn.ANCHORARRAY(B29),-1,1),1) -> 0.006737946999 | F30: =INDEX(_xlfn.ANCHORARRAY(B29),_xlfn.SEQUENCE(ROWS(_xlfn.ANCHORARRAY(B29))-2,,2),2) -> 0.006737946999 | G30: =_xlfn.DROP(_xlfn.DROP(_xlfn.CHOOSECOLS(_xlfn.ANCHORARRAY(B29),2),-1),1) -> 0.006737946999 | H30: =_xlfn.DROP(_xlfn.DROP(_xlfn.ANCHORARRAY(B29),-1,-1),1) -> 0
B31: 1 | C31: 0.033689735 | E31: 0.033689735 | F31: 0.033689735 | G31: 0.033689735 | H31: 1
B32: 2 | C32: 0.08422433749 | E32: 0.08422433749 | F32: 0.08422433749 | G32: 0.08422433749 | H32: 2
B33: 3 | C33: 0.1403738958 | E33: 0.1403738958 | F33: 0.1403738958 | G33: 0.1403738958 | H33: 3
B34: 4 | C34: 0.1754673698 | E34: 0.1754673698 | F34: 0.1754673698 | G34: 0.1754673698 | H34: 4
B35: 5 | C35: 0.1754673698 | E35: 0.1754673698 | F35: 0.1754673698 | G35: 0.1754673698 | H35: 5
B36: 6 | C36: 0.1462228081 | E36: 0.1462228081 | F36: 0.1462228081 | G36: 0.1462228081 | H36: 6
B37: 7 | C37: 0.104444863 | E37: 0.104444863 | F37: 0.104444863 | G37: 0.104444863 | H37: 7
B38: 8 | C38: 0.06527803935 | E38: 0.06527803935 | F38: 0.06527803935 | G38: 0.06527803935 | H38: 8
B39: 9 | C39: 0.03626557742 | E39: 0.03626557742 | F39: 0.03626557742 | G39: 0.03626557742 | H39: 9
B40: 10 | C40: 0.01813278871 | E40: 0.01813278871 | F40: 0.01813278871 | G40: 0.01813278871 | H40: 10
B41: 11 | C41: 0.008242176685 | E41: 0.008242176685 | F41: 0.008242176685 | G41: 0.008242176685 | H41: 11
B42: 12 | C42: 0.003434240286 | E42: 0.003434240286 | F42: 0.003434240286 | G42: 0.003434240286 | H42: 12
B43: 13 | C43: 0.001320861648 | E43: 0.001320861648 | F43: 0.001320861648 | G43: 0.001320861648 | H43: 13
B44: 14 | C44: 0.000471736303 | E44: 0.000471736303 | F44: 0.000471736303 | G44: 0.000471736303 | H44: 14
B45: 15 | C45: 0.0001572454343 | E45: 0.0001572454343 | F45: 0.0001572454343 | G45: 0.0001572454343 | H45: 15
B46: 16 | C46: 4.913919823e-05 | E46: 4.913919823e-05 | F46: 4.913919823e-05 | G46: 4.913919823e-05 | H46: 16
B47: 17 | C47: 1.445270536e-05 | E47: 1.445270536e-05 | F47: 1.445270536e-05 | G47: 1.445270536e-05 | H47: 17
B48: 18 | C48: 4.014640378e-06 | E48: 4.014640378e-06 | F48: 4.014640378e-06 | G48: 4.014640378e-06 | H48: 18
B49: 19 | C49: 1.05648431e-06 | E49: 1.05648431e-06 | F49: 1.05648431e-06 | G49: 1.05648431e-06 | H49: 19
B50: 20 | C50: 2.641210775e-07 | E50: 2.641210775e-07 | F50: 2.641210775e-07 | G50: 2.641210775e-07 | H50: 20
B51: 21 | C51: 6.288597083e-08 | E51: 6.288597083e-08 | F51: 6.288597083e-08 | G51: 6.288597083e-08 | H51: 21
B52: 22 | C52: 1.42922661e-08 | E52: 1.42922661e-08 | F52: 1.42922661e-08 | G52: 1.42922661e-08 | H52: 22
B53: 23 | C53: 3.107014369e-09 | E53: 3.107014369e-09 | F53: 3.107014369e-09 | G53: 3.107014369e-09 | H53: 23
B54: 24 | C54: 6.472946602e-10 | E54: 6.472946602e-10 | F54: 6.472946602e-10 | G54: 6.472946602e-10 | H54: 24
B55: 25 | C55: 1.29458932e-10 | E55: 1.29458932e-10 | F55: 1.29458932e-10 | G55: 1.29458932e-10 | H55: 25
B56: 26 | C56: 2.489594847e-11 | E56: 2.489594847e-11 | F56: 2.489594847e-11 | G56: 2.489594847e-11 | H56: 26
B57: 27 | C57: 4.610360828e-12 | E57: 4.610360828e-12 | F57: 4.610360828e-12 | G57: 4.610360828e-12 | H57: 27
B58: 28 | C58: 8.232787193e-13 | E58: 8.232787193e-13 | F58: 8.232787193e-13 | G58: 8.232787193e-13 | H58: 28
B59: 29 | C59: 1.419446068e-13 | E59: 1.419446068e-13 | F59: 1.419446068e-13 | G59: 1.419446068e-13 | H59: 29
B60: 30 | C60: 2.365743446e-14 | E60: 2.365743446e-14 | F60: 2.365743446e-14 | G60: 2.365743446e-14 | H60: 30
B61: 31 | C61: 3.815715236e-15 | E61: 3.815715236e-15 | F61: 3.815715236e-15 | G61: 3.815715236e-15 | H61: 31
B62: 32 | C62: 5.962055056e-16 | E62: 5.962055056e-16 | F62: 5.962055056e-16 | G62: 5.962055056e-16 | H62: 32
B63: 33 | C63: 9.033416751e-17 | E63: 9.033416751e-17 | F63: 9.033416751e-17 | G63: 9.033416751e-17 | H63: 33
B64: Total | C64: 1

Sheet Dick's
B2: Data collected: Number of Arrivals to Dick's Hamburgers at 45th Ave in Seattle at Saturday noon lunch during a 1-minute period. | N2: <=Raw Data Chart Title
B3: Discrete Variable = X = Number of Arrivals in 1 min period during Sat. noon lunch rush (noon to 1 PM)
B5: Properties (Requirements) of a Poisson Experiment: | N5: POISSON Chart Title:
B6: 1) The probability of an occurrence (success) is the same for all equal-size intervals | N6: Arrivals to Dick's Hamburgers at 45th Ave in Seattle at Saturday noon lunch during a 1-minute period. Mean = 3.88
B7: 2) The number of occurrences (successes) that occur in any interval is independent of the number of occurrences (successes) in any other interval
B8: 3) The probability of an occurrence (success) is proportional to the size of the interval (if interval doubles, mean doubles).
B9: 4) Mean = Variance (observed from calculations made off of source data)
B10: 5) As with all our distributions, actual Relative Frequency Pattern from past data must fit the pattern of the distribution you want to use, in our case the "Poisson Pattern"
B12: X = Arrivals During 1 min | D12: X = Arrivals During 1 min | E12: Frequency | F12: P(X) Relative Frequency | H12: Mean | I12: =SUMPRODUCT(D13:D27,_xlfn.ANCHORARRAY(F13)) -> 3.879693487 | K12: X = Arrivals During 1 min | L12: P(X) POISSON Function | N12: Mean
B13: 0 | D13: =_xlfn.SEQUENCE(E33+1,,0) -> 0 | E13: =COUNTIFS(B13:B1317,_xlfn.ANCHORARRAY(D13)) -> 28 | F13: =_xlfn.ANCHORARRAY(E13)/E28 -> 0.0214559387 | H13: Variance | I13: =SUMPRODUCT((D13:D27-I12)^2,_xlfn.ANCHORARRAY(F13)) -> 3.751809868 | K13: =_xlfn.SEQUENCE(O14+1,,0) -> 0 | N13: Variance
B14: 0 | D14: 1 | E14: 102 | F14: 0.07816091954 | H14: SD | I14: =SQRT(I13) -> 1.936958923 | K14: 1 | N14: Last X | O14: 29
B15: 0 | D15: 2 | E15: 191 | F15: 0.1463601533 | K15: 2
B16: 0 | D16: 3 | E16: 263 | F16: 0.201532567 | K16: 3
B17: 0 | D17: 4 | E17: 266 | F17: 0.2038314176 | K17: 4
B18: 0 | D18: 5 | E18: 204 | F18: 0.1563218391 | K18: 5
B19: 0 | D19: 6 | E19: 136 | F19: 0.1042145594 | K19: 6
B20: 0 | D20: 7 | E20: 70 | F20: 0.05363984674 | K20: 7
B21: 0 | D21: 8 | E21: 22 | F21: 0.01685823755 | K21: 8
B22: 0 | D22: 9 | E22: 14 | F22: 0.01072796935 | K22: 9
B23: 0 | D23: 10 | E23: 5 | F23: 0.003831417625 | K23: 10
B24: 0 | D24: 11 | E24: 2 | F24: 0.00153256705 | K24: 11
B25: 0 | D25: 12 | E25: 1 | F25: 0.0007662835249 | K25: 12
B26: 0 | D26: 13 | E26: 0 | F26: 0 | K26: 13
B27: 0 | D27: 14 | E27: 1 | F27: 0.0007662835249 | K27: 14
B28: 0 | D28: Total | E28: =SUM(_xlfn.ANCHORARRAY(E13)) -> 1305 | F28: =SUM(_xlfn.ANCHORARRAY(F13)) -> 1 | K28: 15
B29: 0 | K29: 16
B30: 0 | K30: 17
B31: 0 | K31: 18
B32: 0 | K32: 19
B33: 0 | D33: Max Rooms | E33: =MAX(B13:B1317) -> 14 | K33: 20
B34: 0 | K34: 21
B35: 0 | K35: 22
B36: 0 | K36: 23
B37: 0 | K37: 24
B38: 0 | K38: 25
B39: 0 | K39: 26
B40: 0 | K40: 27
B41: 1 | K41: 28
B42: 1 | K42: 29
B43: 1 | K43: Total
B44: 1
B45: 1
B46: 1
B47: 1
B48: 1
B49: 1
B50: 1
B51: 1
B52: 1
B53: 1
B54: 1
B55: 1
B56: 1
B57: 1
B58: 1
B59: 1
B60: 1
B61: 1
B62: 1
B63: 1
B64: 1
B65: 1
B66: 1
B67: 1
B68: 1
B69: 1
B70: 1
B71: 1
B72: 1
B73: 1
B74: 1
B75: 1
B76: 1
B77: 1
B78: 1
B79: 1
B80: 1
B81: 1
B82: 1
B83: 1
B84: 1
B85: 1
B86: 1
B87: 1
B88: 1
B89: 1
B90: 1
B91: 1
B92: 1
B93: 1
B94: 1
B95: 1
B96: 1
B97: 1
B98: 1
B99: 1
B100: 1
B101: 1
B102: 1
B103: 1
B104: 1
B105: 1
B106: 1
B107: 1
B108: 1
B109: 1
B110: 1
B111: 1
B112: 1
B113: 1
B114: 1
B115: 1
B116: 1
B117: 1
B118: 1
B119: 1
B120: 1
B121: 1
B122: 1
B123: 1
B124: 1
B125: 1
B126: 1
B127: 1
B128: 1
B129: 1
B130: 1
B131: 1
B132: 1
B133: 1
B134: 1
B135: 1
B136: 1
B137: 1
B138: 1
B139: 1
B140: 1
B141: 1
B142: 1
B143: 2
B144: 2
B145: 2
B146: 2
B147: 2
B148: 2
B149: 2
B150: 2
B151: 2
B152: 2
B153: 2
B154: 2
B155: 2
B156: 2
B157: 2
B158: 2
B159: 2
B160: 2
B161: 2
B162: 2
B163: 2
B164: 2
B165: 2
B166: 2
B167: 2
B168: 2
B169: 2
B170: 2
B171: 2
B172: 2
B173: 2
B174: 2
B175: 2
B176: 2
B177: 2
B178: 2
B179: 2
B180: 2
B181: 2
B182: 2
B183: 2
B184: 2
B185: 2
B186: 2
B187: 2
B188: 2
B189: 2
B190: 2
B191: 2
B192: 2
B193: 2
B194: 2
B195: 2
B196: 2
B197: 2
B198: 2
B199: 2
B200: 2
B201: 2
B202: 2
B203: 2
... 1114 more rows

Sheet Dick's (an)
B2: Data collected: Number of Arrivals to Dick's Hamburgers at 45th Ave in Seattle at Saturday noon lunch during a 1-minute period. | N2: <=Raw Data Chart Title
B3: Discrete Variable = X = Number of Arrivals in 1 min period during Sat. noon lunch rush (noon to 1 PM)
B5: Properties (Requirements) of a Poisson Experiment: | N5: POISSON Chart Title:
B6: 1) The probability of an occurrence (success) is the same for all equal-size intervals | N6: Arrivals to Dick's Hamburgers at 45th Ave in Seattle at Saturday noon lunch during a 1-minute period. Mean = 3.88
B7: 2) The number of occurrences (successes) that occur in any interval is independent of the number of occurrences (successes) in any other interval
B8: 3) The probability of an occurrence (success) is proportional to the size of the interval (if interval doubles, mean doubles).
B9: 4) Mean = Variance (observed from calculations made off of source data)
B10: 5) As with all our distributions, actual Relative Frequency Pattern from past data must fit the pattern of the distribution you want to use, in our case the "Poisson Pattern"
B12: X = Arrivals During 1 min | D12: X = Arrivals During 1 min | E12: Frequency | F12: P(X) Relative Frequency | H12: Mean | I12: =SUMPRODUCT(D13:D27,_xlfn.ANCHORARRAY(F13)) -> 3.879693487 | K12: X = Arrivals During 1 min | L12: P(X) POISSON Function | N12: Mean | O12: =SUMPRODUCT(_xlfn.ANCHORARRAY(K13),_xlfn.ANCHORARRAY(L13)) -> 3.879693487
B13: 0 | D13: =_xlfn.SEQUENCE(E33+1,,0) -> 0 | E13: =COUNTIFS(B13:B1317,_xlfn.ANCHORARRAY(D13)) -> 28 | F13: =_xlfn.ANCHORARRAY(E13)/E28 -> 0.0214559387 | H13: Variance | I13: =SUMPRODUCT((D13:D27-I12)^2,_xlfn.ANCHORARRAY(F13)) -> 3.751809868 | K13: =_xlfn.SEQUENCE(O14+1,,0) -> 0 | L13: =_xlfn.POISSON.DIST(_xlfn.ANCHORARRAY(K13),I12,0) -> 0.02065715591 | N13: Variance | O13: =SUMPRODUCT((_xlfn.ANCHORARRAY(K13)-O12)^2,_xlfn.ANCHORARRAY(L13)) -> 3.879693487
B14: 0 | D14: 1 | E14: 102 | F14: 0.07816091954 | H14: SD | I14: =SQRT(I13) -> 1.936958923 | K14: 1 | L14: 0.08014343322 | N14: Last X | O14: 29
B15: 0 | D15: 2 | E15: 191 | F15: 0.1463601533 | K15: 2 | L15: 0.1554659779
B16: 0 | D16: 3 | E16: 263 | F16: 0.201532567 | K16: 3 | L16: 0.2010534473
B17: 0 | D17: 4 | E17: 266 | F17: 0.2038314176 | K17: 4 | L17: 0.1950064375
B18: 0 | D18: 5 | E18: 204 | F18: 0.1563218391 | K18: 5 | L18: 0.1513130411
B19: 0 | D19: 6 | E19: 136 | F19: 0.1042145594 | K19: 6 | L19: 0.09784136999
B20: 0 | D20: 7 | E20: 70 | F20: 0.05363984674 | K20: 7 | L20: 0.05422778941
B21: 0 | D21: 8 | E21: 22 | F21: 0.01685823755 | K21: 8 | L21: 0.02629840017
B22: 0 | D22: 9 | E22: 14 | F22: 0.01072796935 | K22: 9 | L22: 0.01133663687
B23: 0 | D23: 10 | E23: 5 | F23: 0.003831417625 | K23: 10 | L23: 0.004398267623
B24: 0 | D24: 11 | E24: 2 | F24: 0.00153256705 | K24: 11 | L24: 0.001551266386
B25: 0 | D25: 12 | E25: 1 | F25: 0.0007662835249 | K25: 12 | L25: 0.000501536508
B26: 0 | D26: 13 | E26: 0 | F26: 0 | K26: 13 | L26: 0.0001496775326
B27: 0 | D27: 14 | E27: 1 | F27: 0.0007662835249 | K27: 14 | L27: 4.147878201e-05
B28: 0 | D28: Total | E28: =SUM(_xlfn.ANCHORARRAY(E13)) -> 1305 | F28: =SUM(_xlfn.ANCHORARRAY(F13)) -> 1 | K28: 15 | L28: 1.072833069e-05
B29: 0 | K29: 16 | L29: 2.601414669e-06
B30: 0 | K30: 17 | L30: 5.936877382e-07
B31: 0 | K31: 18 | L31: 1.279625806e-07
B32: 0 | K32: 19 | L32: 2.612924161e-08
B33: 0 | D33: Max Rooms | E33: =MAX(B13:B1317) -> 14 | K33: 20 | L33: 5.068672423e-09
B34: 0 | K34: 21 | L34: 9.364235898e-10
B35: 0 | K35: 22 | L35: 1.651380228e-10
B36: 0 | K36: 23 | L36: 2.785586572e-11
B37: 0 | K37: 24 | L37: 4.5030092e-12
B38: 0 | K38: 25 | L38: 6.988118185e-13
B39: 0 | K39: 26 | L39: 1.042759869e-13
B40: 0 | K40: 27 | L40: 1.498366175e-14
B41: 1 | K41: 28 | L41: 2.07614339e-15
B42: 1 | K42: 29 | L42: 2.777517237e-16
B43: 1 | K43: Total
B44: 1
B45: 1
B46: 1
B47: 1
B48: 1
B49: 1
B50: 1
B51: 1
B52: 1
B53: 1
B54: 1
B55: 1
B56: 1
B57: 1
B58: 1
B59: 1
B60: 1
B61: 1
B62: 1
B63: 1
B64: 1
B65: 1
B66: 1
B67: 1
B68: 1
B69: 1
B70: 1
B71: 1
B72: 1
B73: 1
B74: 1
B75: 1
B76: 1
B77: 1
B78: 1
B79: 1
B80: 1
B81: 1
B82: 1
B83: 1
B84: 1
B85: 1
B86: 1
B87: 1
B88: 1
B89: 1
B90: 1
B91: 1
B92: 1
B93: 1
B94: 1
B95: 1
B96: 1
B97: 1
B98: 1
B99: 1
B100: 1
B101: 1
B102: 1
B103: 1
B104: 1
B105: 1
B106: 1
B107: 1
B108: 1
B109: 1
B110: 1
B111: 1
B112: 1
B113: 1
B114: 1
B115: 1
B116: 1
B117: 1
B118: 1
B119: 1
B120: 1
B121: 1
B122: 1
B123: 1
B124: 1
B125: 1
B126: 1
B127: 1
B128: 1
B129: 1
B130: 1
B131: 1
B132: 1
B133: 1
B134: 1
B135: 1
B136: 1
B137: 1
B138: 1
B139: 1
B140: 1
B141: 1
B142: 1
B143: 2
B144: 2
B145: 2
B146: 2
B147: 2
B148: 2
B149: 2
B150: 2
B151: 2
B152: 2
B153: 2
B154: 2
B155: 2
B156: 2
B157: 2
B158: 2
B159: 2
B160: 2
B161: 2
B162: 2
B163: 2
B164: 2
B165: 2
B166: 2
B167: 2
B168: 2
B169: 2
B170: 2
B171: 2
B172: 2
B173: 2
B174: 2
B175: 2
B176: 2
B177: 2
B178: 2
B179: 2
B180: 2
B181: 2
B182: 2
B183: 2
B184: 2
B185: 2
B186: 2
B187: 2
B188: 2
B189: 2
B190: 2
B191: 2
B192: 2
B193: 2
B194: 2
B195: 2
B196: 2
B197: 2
B198: 2
B199: 2
B200: 2
B201: 2
B202: 2
B203: 2
... 1114 more rows

Sheet POISSON.DIST
B2: POISSON Discrete Probability Distribution
B3: Used to estimate the number of occurrences (successes) over specified interval of time or space
B4: Whereas Binomial Experiment counts number of successes over a specified number of trials,
B5: Poisson Experiment counts number of occurrences (successes) over specified interval of time or space | X5: Bell Normal Probability Distribution Curve Height Formula:
B6: Good for estimating the probabilities of:
B7: 1) Line waiting situations, where you know the mean number of arrivals over a certain time interval
B8: Example: From past data we know that the mean number of arrivals at the Dick's Hamburger Restaurant at Sat. Lunch is 3.88 people/minute.
B9: With this information we can make estimates of the probability that a certain number of people will show up over this interval
B10: 2) Distance of road or pipe intervals, where you know the mean number of repairs over a certain distance interval
B11: ="Example: From past data we know that the mean number of water line breaks is "&C95&" per 100 miles of pipe in Richmond, CA." -> Example: From past data we know that the mean number of water line breaks is 25 per 100 miles of pipe in Richmond, CA.
B12: With this information we can make estimates of the probability that a certain number of water line breaks will occur over a 100 mile stretch | X12: Continuous Compounding Formula in Finance:
B13: THE most amazing thing about this distribution is that the only number you need to make your probability calculations is the mean.
B14: Properties (Requirements) of a Poisson Experiment:
B15: 1) The probability of an occurrence (success) is the same for all equal-size intervals
B16: 2) The number of occurrences (successes) that occur in any interval is independent of the number of occurrences (successes) in any other interval
B17: 3) The probability of an occurrence (success) is proportional to the size of the interval (if interval doubles, mean doubles).
B18: 4) Mean = Variance (observed from calculations made off of source data)
B19: 5) As with all our distributions, actual Relative Frequency Pattern from past data must fit the pattern of the distribution you want to use, in our case the "Poisson Pattern"
B20: f(x) = P(x) = the probability of x occurrences in an interval = height of column when you plot column chart.
B21: Discrete Random Variable = X = Number of occurrences over a specified interval of time or space.
B22: No upper limit for X: 0,1,2,3… , but as x increases past the mean, the probability decreases and gets quite small.
B23: Mean = µ = Calculated from past data | AS23: Define Random Discrete Variable = x = | AU23: x = Number Arrivals during 1 minute
B24: e = constant = 2.71828 = =EXP(1) in Excel | Z24: e | AA24: =EXP(1) -> 2.718281828 | AC24: =_xlfn.IFNA(_xlfn.FORMULATEXT(AA24:AA25),"") -> =EXP(1) | AE24: Series | AG24: Number | AS24: Expected Value = µ = | AT24: 3.88 | AU24: people arriving/minute
B25: In Excel use: POISSON.DIST(x,mean,cumulative) | Z25: e | AA25: =SUM(1/FACT(_xlfn.SEQUENCE(AG25,,0))) -> 2.718281526 | AC25: =SUM(1/FACT(SEQUENCE(AG25,,0))) | AE25: =1/FACT(_xlfn.SEQUENCE(AG25,,0)) -> 1 | AG25: 10
B26: x = Number of occurrences over a specified interval of time or space = Discrete Random Variable | AE26: 1 | AS26: Last X | AT26: 500
B27: mean = µ = Calculated from past data | AE27: 0.5 | AX27: Self Spilling Report:
B28: cumulative = 0 for exactly x OR 1 for less than or equal to x | AE28: 0.1666666667 | AS28: X | AT28: P(X)
AE29: 0.04166666667 | AS29: =_xlfn.SEQUENCE(AT26,,0) -> 0 | AT29: =_xlfn.POISSON.DIST(_xlfn.ANCHORARRAY(AS29),AT24,0) -> 0.02065082518 | AV29: =AT29 -> 0.02065082518 | AX29: =_xlfn.LET( _xlpm.mean,AT24, _xlpm.seq,_xlfn.SEQUENCE(1000,,0), _xlpm.PP,_xlfn.POISSON.DIST(_xlpm.seq,_xlpm.mean,0), _xlpm.runPP,_xlfn.SCAN(0,_xlpm.PP,_xlfn.LAMBDA(_xlpm.a,_xlpm.r,_xlpm.a+_xlpm.r)), _xlpm.x,_xlfn.XLOOKUP(1,_xlpm.runPP,_xlpm.seq,,-1)+1, _xlpm.seqx,_xlfn.SEQUENCE(_xlpm.x,,0), _xlpm.PPx,_xlfn.POISSON.DIST(_xlpm.seqx,_xlpm.mean,0), _xlpm.r,_xlfn.VSTACK(_xlfn.HSTACK("X","P(X)"),_xlfn.HSTACK(_xlpm.seqx,_xlpm.PPx),_xlfn.HSTACK("Total",SUM(_xlpm.PPx))), _xlpm.r) -> X | AY29: P(X) | BA29: =_xlfn.DROP(_xlfn.DROP(_xlfn.ANCHORARRAY(AX29),-1,1),1) -> 0.02065082518 | BB29: =INDEX(_xlfn.ANCHORARRAY(AX29),_xlfn.SEQUENCE(ROWS(_xlfn.ANCHORARRAY(AX29))-2,,2),2) -> 0.02065082518 | BC29: =_xlfn.DROP(_xlfn.DROP(_xlfn.CHOOSECOLS(_xlfn.ANCHORARRAY(AX29),2),-1),1) -> 0.02065082518
B30: Example 1: | AE30: 0.008333333333 | AS30: 1 | AT30: 0.08012520171 | AV30: =AV29+AT30 -> 0.1007760269 | AX30: 0 | AY30: 0.02065082518 | BA30: 0.08012520171 | BB30: 0.08012520171 | BC30: 0.08012520171
B31: From past data we know that the mean number of arrivals at the Dick's Hamburger Restaurant at Sat. Lunch is 3.88 people/minute. | M31: Arrivals to Dick's Hamburgers at 45th Ave in Seattle at Saturday noon lunch during a 1-minute period. Mean = 3.88 | AE31: 0.001388888889 | AS31: 2 | AT31: 0.1554428913 | AV31: =AV30+AT31 -> 0.2562189182 | AX31: 1 | AY31: 0.08012520171 | BA31: 0.1554428913 | BB31: 0.1554428913 | BC31: 0.1554428913
B32: Assume: The probability of a person arriving is the same for all equal-size intervals | AE32: 0.0001984126984 | AS32: 3 | AT32: 0.2010394728 | AV32: 0.457258391 | AX32: 2 | AY32: 0.1554428913 | BA32: 0.2010394728 | BB32: 0.2010394728 | BC32: 0.2010394728
B33: Assume: The number of people arriving in any interval is independent of the number of people arriving in any other interval | AE33: 2.48015873e-05 | AS33: 4 | AT33: 0.1950082886 | AV33: 0.6522666795 | AX33: 3 | AY33: 0.2010394728 | BA33: 0.1950082886 | BB33: 0.1950082886 | BC33: 0.1950082886
B34: Goal: calculate the probability that 0 people will arrive in 1 minute. 3 to 5 people in 1 minute? | AE34: 2.755731922e-06 | AS34: 5 | AT34: 0.1513264319 | AV34: 0.8035931115 | AX34: 4 | AY34: 0.1950082886 | BA34: 0.1513264319 | BB34: 0.1513264319 | BC34: 0.1513264319
AS35: 6 | AT35: 0.09785775932 | AV35: 0.9014508708 | AX35: 5 | AY35: 0.1513264319 | BA35: 0.09785775932 | BB35: 0.09785775932 | BC35: 0.09785775932
B36: Define Random Discrete Variable = x = | D36: x = Number Arrivals during 1 minute | I36: Last X | J36: 30 | AS36: 7 | AT36: 0.05424115802 | AV36: 0.9556920288 | AX36: 6 | AY36: 0.09785775932 | BA36: 0.05424115802 | BB36: 0.05424115802 | BC36: 0.05424115802
B37: Expected Value = µ = | C37: 3.88 | D37: people arriving/minute | AS37: 8 | AT37: 0.02630696164 | AV37: 0.9819989904 | AX37: 7 | AY37: 0.05424115802 | BA37: 0.02630696164 | BB37: 0.02630696164 | BC37: 0.02630696164
B38: X | C38: 0 | I38: X | J38: P(x) | AS38: 9 | AT38: 0.01134122346 | AV38: 0.9933402139 | AX38: 8 | AY38: 0.02630696164 | BA38: 0.01134122346 | BB38: 0.01134122346 | BC38: 0.01134122346
B39: ="P("&C38&")" -> P(0) | E39: =C37^C38*EXP(1)^-C37/FACT(C38) -> 0.02065082518 | I39: =_xlfn.SEQUENCE(J36+1,,0) -> 0 | J39: =_xlfn.POISSON.DIST(I39:I69,C37,0) -> 0.02065082518 | AS39: 10 | AT39: 0.004400394704 | AV39: 0.9977406086 | AX39: 9 | AY39: 0.01134122346 | BA39: 0.004400394704 | BB39: 0.004400394704 | BC39: 0.004400394704
B40: X | C40: 3 | I40: 1 | J40: 0.08012520171 | AS40: 11 | AT40: 0.001552139223 | AV40: 0.9992927478 | AX40: 10 | AY40: 0.004400394704 | BA40: 0.001552139223 | BB40: 0.001552139223 | BC40: 0.001552139223
B41: X | C41: 5 | I41: 2 | J41: 0.1554428913 | AS41: 12 | AT41: 0.0005018583487 | AV41: 0.9997946062 | AX41: 11 | AY41: 0.001552139223 | BA41: 0.0005018583487 | BB41: 0.0005018583487 | BC41: 0.0005018583487
B42: ="P("&$C$40&"<= Arrivals in 1 minute <="&$C$41&")" -> P(3<= Arrivals in 1 minute <=5) | E42: =SUM(_xlfn.POISSON.DIST(_xlfn.SEQUENCE(C41-C40+1,,C40),C37,0)) -> 0.5473741933 | I42: 3 | J42: 0.2010394728 | AS42: 13 | AT42: 0.0001497854148 | AV42: 0.9999443916 | AX42: 12 | AY42: 0.0005018583487 | BA42: 0.0001497854148 | BB42: 0.0001497854148 | BC42: 0.0001497854148
B43: Expected Value = µ = | D43: 0.5 | E43: minutes | I43: 4 | J43: 0.1950082886 | AS43: 14 | AT43: 4.151195783e-05 | AV43: 0.9999859036 | AX43: 13 | AY43: 0.0001497854148 | BA43: 4.151195783e-05 | BB43: 4.151195783e-05 | BC43: 4.151195783e-05
B44: X | C44: 2 | I44: 5 | J44: 0.1513264319 | AS44: 15 | AT44: 1.073775976e-05 | AV44: 0.9999966413 | AX44: 14 | AY44: 4.151195783e-05 | BA44: 1.073775976e-05 | BB44: 1.073775976e-05 | BC44: 1.073775976e-05
B45: ="P("&C44&" Arrivals in "&TEXT(D43,"?/?")&" min)" -> P(2 Arrivals in 1/2 min) | E45: =C43^C44*EXP(1)^-C43/FACT(C44) -> 0 | I45: 6 | J45: 0.09785775932 | AS45: 16 | AT45: 2.603906741e-06 | AV45: 0.9999992452 | AX45: 15 | AY45: 1.073775976e-05 | BA45: 2.603906741e-06 | BB45: 2.603906741e-06 | BC45: 2.603906741e-06
I46: 7 | J46: 0.05424115802 | AS46: 17 | AT46: 5.943034209e-07 | AV46: 0.9999998395 | AX46: 16 | AY46: 2.603906741e-06 | BA46: 5.943034209e-07 | BB46: 5.943034209e-07 | BC46: 5.943034209e-07
I47: 8 | J47: 0.02630696164 | AS47: 18 | AT47: 1.281054041e-07 | AV47: 0.9999999676 | AX47: 17 | AY47: 5.943034209e-07 | BA47: 1.281054041e-07 | BB47: 1.281054041e-07 | BC47: 1.281054041e-07
I48: 9 | J48: 0.01134122346 | AS48: 19 | AT48: 2.616047199e-08 | AV48: 0.9999999938 | AX48: 18 | AY48: 1.281054041e-07 | BA48: 2.616047199e-08 | BB48: 2.616047199e-08 | BC48: 2.616047199e-08
I49: 10 | J49: 0.004400394704 | AS49: 20 | AT49: 5.075131566e-09 | AV49: 0.9999999989 | AX49: 19 | AY49: 2.616047199e-08 | BA49: 5.075131566e-09 | BB49: 5.075131566e-09 | BC49: 5.075131566e-09
I50: 11 | J50: 0.001552139223 | AS50: 21 | AT50: 9.37690975e-10 | AV50: 0.9999999998 | AX50: 20 | AY50: 5.075131566e-09 | BA50: 9.37690975e-10 | BB50: 9.37690975e-10 | BC50: 9.37690975e-10
I51: 12 | J51: 0.0005018583487 | AS51: 22 | AT51: 1.653745901e-10 | AV51: 1 | AX51: 21 | AY51: 9.37690975e-10 | BA51: 1.653745901e-10 | BB51: 1.653745901e-10 | BC51: 1.653745901e-10
I52: 13 | J52: 0.0001497854148 | AS52: 23 | AT52: 2.789797434e-11 | AV52: 1 | AX52: 22 | AY52: 1.653745901e-10 | BA52: 2.789797434e-11 | BB52: 2.789797434e-11 | BC52: 2.789797434e-11
I53: 14 | J53: 4.151195783e-05 | AS53: 24 | AT53: 4.510172518e-12 | AV53: 1 | AX53: 23 | AY53: 2.789797434e-11 | BA53: 4.510172518e-12 | BB53: 4.510172518e-12 | BC53: 4.510172518e-12
I54: 15 | J54: 1.073775976e-05 | AS54: 25 | AT54: 6.999787748e-13 | AV54: 1 | AX54: 24 | AY54: 4.510172518e-12 | BA54: 6.999787748e-13 | BB54: 6.999787748e-13 | BC54: 6.999787748e-13
I55: 16 | J55: 2.603906741e-06 | AS55: 26 | AT55: 1.04458371e-13 | AV55: 1 | AX55: 25 | AY55: 6.999787748e-13 | BA55: 1.04458371e-13 | BB55: 1.04458371e-13 | BC55: 1.04458371e-13
I56: 17 | J56: 5.943034209e-07 | AS56: 27 | AT56: 1.50110548e-14 | AV56: 1 | AX56: 26 | AY56: 1.04458371e-13 | BA56: 1.50110548e-14 | BB56: 1.50110548e-14 | BC56: 1.50110548e-14
I57: 18 | J57: 1.281054041e-07 | AS57: 28 | AT57: 2.080103307e-15 | AV57: 1 | AX57: 27 | AY57: 1.50110548e-14 | BA57: 2.080103307e-15 | BB57: 2.080103307e-15 | BC57: 2.080103307e-15
I58: 19 | J58: 2.616047199e-08 | AS58: 29 | AT58: 2.78303477e-16 | AV58: 1 | AX58: 28 | AY58: 2.080103307e-15 | BA58: 2.78303477e-16 | BB58: 2.78303477e-16 | BC58: 2.78303477e-16
I59: 20 | J59: 5.075131566e-09 | AS59: 30 | AT59: 3.599391636e-17 | AV59: 1 | AX59: 29 | AY59: 2.78303477e-16
I60: 21 | J60: 9.37690975e-10 | AS60: 31 | AT60: 4.505045015e-18 | AV60: 1 | AX60: Total | AY60: 1
I61: 22 | J61: 1.653745901e-10 | AS61: 32 | AT61: 5.462367081e-19 | AV61: 1
I62: 23 | J62: 2.789797434e-11 | AS62: 33 | AT62: 6.422419477e-20 | AV62: 1
I63: 24 | J63: 4.510172518e-12 | AS63: 34 | AT63: 7.329113991e-21 | AV63: 1
I64: 25 | J64: 6.999787748e-13 | AS64: 35 | AT64: 8.124846367e-22 | AV64: 1
I65: 26 | J65: 1.04458371e-13 | AS65: 36 | AT65: 8.756778863e-23 | AV65: 1
I66: 27 | J66: 1.50110548e-14 | AS66: 37 | AT66: 9.182784321e-24 | AV66: 1
I67: 28 | J67: 2.080103307e-15 | AS67: 38 | AT67: 9.376106096e-25 | AV67: 1
I68: 29 | J68: 2.78303477e-16 | AS68: 39 | AT68: 9.328023501e-26 | AV68: 1
I69: 30 | J69: 3.599391636e-17 | AS69: 40 | AT69: 9.048182796e-27 | AV69: 1
J70: =SUM(J39:J69) -> 1 | AS70: 41 | AT70: 8.562670548e-28 | AV70: 1
AS71: 42 | AT71: 7.910276602e-29 | AV71: 1
B72: Example 2: | AS72: 43 | AT72: 7.137644934e-30 | AV72: 1
B73: From past data we know that the mean number of arrivals for accounting tutoring is 3 per hour during the morning shift | AS73: 44 | AT73: 6.294105078e-31 | AV73: 1
B74: Assume: The probability of a person arriving is the same for all equal-size intervals | AS74: 45 | AT74: 5.426917267e-32 | AV74: 1
B75: Assume: The number of people arriving in any interval is independent of the number of people arriving in any other interval | AS75: 46 | AT75: 4.577486738e-33 | AV75: 1
B76: Goal: calculate the probability that 5 people will arrive in 1 hour | AS76: 47 | AT76: 3.778861392e-34 | AV76: 1
AS77: 48 | AT77: 3.054579626e-35 | AV77: 1
B78: Define Random Discrete Variable = x = | D78: x = Number Arrivals during 1 hour | AS78: 49 | AT78: 2.418728357e-36 | AV78: 1
B79: Expected Value = µ = | C79: 3 | D79: people arriving/hour | AS79: 50 | AT79: 1.876933205e-37 | AV79: 1
B80: X | C80: 5 | AS80: 51 | AT80: 1.42794134e-38 | AV80: 1
B81: ="P("&C80&")" -> P(5) | E81: =(C79^C80*EXP(1)^-C79)/FACT(C80) -> 0.1008188134 | AS81: 52 | AT81: 1.065463923e-39 | AV81: 1
AS82: 53 | AT82: 7.80000004e-41 | AV82: 1
AS83: 54 | AT83: 5.604444473e-42 | AV83: 1
AS84: 55 | AT84: 3.953680828e-43 | AV84: 1
AS85: 56 | AT85: 2.739336002e-44 | AV85: 1
AS86: 57 | AT86: 1.864670823e-45 | AV86: 1
B87: Example 3: | AS87: 58 | AT87: 1.247400481e-46 | AV87: 1
B88: ="From past data we know that the mean number of water line breaks is "&C95&" per 100 miles of pipe in Richmond, CA." -> From past data we know that the mean number of water line breaks is 25 per 100 miles of pipe in Richmond, CA. | AS88: 59 | AT88: 8.203243844e-48 | AV88: 1
B89: With this information we can make estimates of the probability that a certain number of water line breaks will occur over a 100 mile stretch in Richmond, CA. | AS89: 60 | AT89: 5.304764352e-49 | AV89: 1
B90: Assume: The probability of a water breaks is the same for all equal-size intervals | AS90: 61 | AT90: 3.374177981e-50 | AV90: 1
B91: Assume: The number of water breaks in any interval is independent of the number of water breaks in any other interval | AS91: 62 | AT91: 2.11158235e-51 | AV91: 1
B92: ="Goal: calculate the probability that "&C96&" or more breaks will occur over a 100 mile stretch of pipe." -> Goal: calculate the probability that 30 or more breaks will occur over a 100 mile stretch of pipe. | AS92: 63 | AT92: 1.30046659e-52 | AV92: 1
AS93: 64 | AT93: 7.884078702e-54 | AV93: 1
B94: Define Random Discrete Variable = x = | D94: x = Number of water breaks in 100 miles of pipe | AS94: 65 | AT94: 4.706188517e-55 | AV94: 1
B95: Expected Value = µ = | C95: 25 | D95: water breaks/100 miles | AS95: 66 | AT95: 2.766668401e-56 | AV95: =AV94+AT95 -> 1
B96: X | C96: 30 | G96: Last X | H96: 74 | O96: ="Mean number of water line breaks is "&C95&" per 100 miles of pipe in Richmond, CA." -> Mean number of water line breaks is 25 per 100 miles of pipe in Richmond, CA. | AS96: 67 | AT96: 1.602190059e-57 | AV96: 1
B97: ="P(x>="&$C$96&")" -> P(x>=30) | E97: =SUM(_xlfn.POISSON.DIST(_xlfn.SEQUENCE(H96-C96,,C96),C95,0)) -> 0.182103916 | AS97: 68 | AT97: 9.141907984e-59 | AV97: 1
B98: ="P(x>="&$C$96&")" -> P(x>=30) | E98: =SUMIFS(_xlfn.ANCHORARRAY(C105),B105:B179,">="&C96) -> 0.182103916 | AS98: 69 | AT98: 5.140667098e-60 | AV98: 1
AS99: 70 | AT99: 2.849398335e-61 | AV99: 1
B100: X | C100: 10 | AS100: 71 | AT100: 1.557135991e-62 | AV100: 1
B101: ="P(x<"&$C$100&")" -> P(x<10) | AS101: 72 | AT101: 8.391232842e-64 | AV101: 1
B102: ="P(x<"&$C$100&")" -> P(x<10) | AS102: 73 | AT102: 4.45999773e-65 | AV102: 1
AS103: 74 | AT103: 2.338485296e-66 | AV103: 1
B104: X | C104: P(x) | AS104: 75 | AT104: 1.209776393e-67 | AV104: 1
B105: =_xlfn.SEQUENCE(H96+1,,0) -> 0 | C105: =_xlfn.POISSON.DIST(B105:B179,C95,0) -> 1.388794386e-11 | AS105: 76 | AT105: 6.176226849e-69 | AV105: 1
B106: 1 | C106: 3.471985966e-10 | AS106: 77 | AT106: 3.112176646e-70 | AV106: 1
B107: 2 | C107: 4.339982458e-09 | AS107: 78 | AT107: 1.548108383e-71 | AV107: 1
B108: 3 | C108: 3.616652048e-08 | AS108: 79 | AT108: 7.603367754e-73 | AV108: 1
B109: 4 | C109: 2.26040753e-07 | AS109: 80 | AT109: 3.687633361e-74 | AV109: 1
B110: 5 | C110: 1.130203765e-06 | AS110: 81 | AT110: 1.766421906e-75 | AV110: 1
B111: 6 | C111: 4.709182354e-06 | AS111: 82 | AT111: 8.358191459e-77 | AV111: 1
B112: 7 | C112: 1.681850841e-05 | AS112: 83 | AT112: 3.907202754e-78 | AV112: 1
B113: 8 | C113: 5.255783878e-05 | AS113: 84 | AT113: 1.804755558e-79 | AV113: 1
B114: 9 | C114: 0.0001459939966 | AS114: 85 | AT114: 8.238178311e-81 | AV114: 1
B115: 10 | C115: 0.0003649849915 | AS115: 86 | AT115: 3.716759517e-82 | AV115: 1
B116: 11 | C116: 0.0008295113443 | AS116: 87 | AT116: 1.657589302e-83 | AV116: 1
B117: 12 | C117: 0.001728148634 | AS117: 88 | AT117: 7.308461922e-85 | AV117: 1
B118: 13 | C118: 0.003323362758 | AS118: 89 | AT118: 3.186160928e-86 | AV118: 1
B119: 14 | C119: 0.005934576353 | AS119: 90 | AT119: 1.373589378e-87 | AV119: 1
B120: 15 | C120: 0.009890960588 | AS120: 91 | AT120: 5.856622841e-89 | AV120: 1
B121: 16 | C121: 0.01545462592 | AS121: 92 | AT121: 2.469967024e-90 | AV121: 1
B122: 17 | C122: 0.02272739106 | AS122: 93 | AT122: 1.030480866e-91 | AV122: 1
B123: 18 | C123: 0.03156582091 | AS123: 94 | AT123: 4.253474213e-93 | AV123: 1
B124: 19 | C124: 0.04153397489 | AS124: 95 | AT124: 1.737208416e-94 | AV124: 1
B125: 20 | C125: 0.05191746861 | AS125: 96 | AT125: 7.021217346e-96 | AV125: 1
B126: 21 | C126: 0.06180651025 | AS126: 97 | AT126: 2.808486938e-97 | AV126: 1
B127: 22 | C127: 0.07023467074 | AS127: 98 | AT127: 1.111931563e-98 | AV127: 1
B128: 23 | C128: 0.07634203341 | AS128: 99 | AT128: 4.357873198e-100 | AV128: 1
B129: 24 | C129: 0.07952295147 | AS129: 100 | AT129: 1.690854801e-101 | AV129: 1
B130: 25 | C130: 0.07952295147 | AS130: 101 | AT130: 6.495561017e-103 | AV130: 1
B131: 26 | C131: 0.07646437641 | AS131: 102 | AT131: 2.470860465e-104 | AV131: 1
B132: 27 | C132: 0.07080034853 | AS132: 103 | AT132: 9.307707384e-106 | AV132: 1
B133: 28 | C133: 0.0632145969 | AS133: 104 | AT133: 3.472490832e-107 | AV133: 1
B134: 29 | C134: 0.05449534216 | AS134: 105 | AT134: 1.283168041e-108 | AV134: 1
B135: 30 | C135: 0.04541278513 | AS135: 106 | AT135: 4.696879243e-110 | AV135: 1
B136: 31 | C136: 0.03662321381 | AS136: 107 | AT136: 1.703167426e-111 | AV136: 1
B137: 32 | C137: 0.02861188579 | AS137: 108 | AT137: 6.11878668e-113 | AV137: 1
B138: 33 | C138: 0.02167567106 | AS138: 109 | AT138: 2.178063516e-114 | AV138: 1
B139: 34 | C139: 0.01593799342 | AS139: 110 | AT139: 7.682624037e-116 | AV139: 1
B140: 35 | C140: 0.01138428102 | AS140: 111 | AT140: 2.685457771e-117 | AV140: 1
B141: 36 | C141: 0.007905750706 | AS141: 112 | AT141: 9.303192994e-119 | AV141: 1
B142: 37 | C142: 0.00534172345 | AS142: 113 | AT142: 3.194370692e-120 | AV142: 1
B143: 38 | C143: 0.003514291743 | AS143: 114 | AT143: 1.087206867e-121 | AV143: 1
B144: 39 | C144: 0.002252751118 | AS144: 115 | AT144: 3.668141429e-123 | AV144: 1
B145: 40 | C145: 0.001407969448 | AS145: 116 | AT145: 1.226930064e-124 | AV145: 1
B146: 41 | C146: 0.0008585179564 | AS146: 117 | AT146: 4.068793718e-126 | AV146: 1
B147: 42 | C147: 0.0005110225931 | AS147: 118 | AT147: 1.337874544e-127 | AV147: 1
B148: 43 | C148: 0.0002971061588 | AS148: 119 | AT148: 4.362145573e-129 | AV148: 1
B149: 44 | C149: 0.0001688103175 | AS149: 120 | AT149: 1.410427069e-130 | AV149: 1
B150: 45 | C150: 9.378350971e-05 | AS150: 121 | AT150: 4.522691758e-132 | AV150: 1
B151: 46 | C151: 5.096929876e-05 | AS151: 122 | AT151: 1.438364264e-133 | AV151: 1
B152: 47 | C152: 2.711132913e-05 | AS152: 123 | AT152: 4.537279141e-135 | AV152: 1
B153: 48 | C153: 1.412048392e-05 | AS153: 124 | AT153: 1.41972928e-136 | AV153: 1
B154: 49 | C154: 7.20432853e-06 | AS154: 125 | AT154: 4.406839684e-138 | AV154: 1
B155: 50 | C155: 3.602164265e-06 | AS155: 126 | AT155: 1.357026823e-139 | AV155: 1
B156: 51 | C156: 1.765766797e-06 | AS156: 127 | AT156: 4.145877224e-141 | AV156: 1
B157: 52 | C157: 8.489263446e-07 | AS157: 128 | AT157: 1.256719034e-142 | AV157: 1
B158: 53 | C158: 4.00436955e-07 | AS158: 129 | AT158: 3.779899109e-144 | AV158: 1
B159: 54 | C159: 1.853874792e-07 | AS159: 130 | AT159: 1.128154503e-145 | AV159: =AV158+AT159 -> 1
B160: 55 | C160: 8.426703598e-08 | AS160: 131 | AT160: 3.341404178e-147 | AV160: 1
B161: 56 | C161: 3.761921249e-08 | AS161: 132 | AT161: 9.821703189e-149 | AV161: 1
B162: 57 | C162: 1.64996546e-08 | AS162: 133 | AT162: 2.865278825e-150 | AV162: 1
B163: 58 | C163: 7.111920087e-09 | AS163: 134 | AT163: 8.296478986e-152 | AV163: 1
B164: 59 | C164: 3.013525461e-09 | AS164: 135 | AT164: 2.384469516e-153 | AV164: 1
B165: 60 | C165: 1.255635609e-09 | AS165: 136 | AT165: 6.802751266e-155 | AV165: 1
B166: 61 | C166: 5.146047576e-10 | AS166: 137 | AT166: 1.926618607e-156 | AV166: 1
B167: 62 | C167: 2.075019184e-10 | AS167: 138 | AT167: 5.416869706e-158 | AV167: 1
B168: 63 | C168: 8.234203111e-11 | AS168: 139 | AT168: 1.512047083e-159 | AV168: 1
B169: 64 | C169: 3.21648559e-11 | AS169: 140 | AT169: 4.190530488e-161 | AV169: 1
B170: 65 | C170: 1.237109842e-11 | AS170: 141 | AT170: 1.153138886e-162 | AV170: 1
B171: 66 | C171: 4.68602213e-12 | AS171: 142 | AT171: 3.150830196e-164 | AV171: 1
B172: 67 | C172: 1.74851572e-12 | AS172: 143 | AT172: 8.549105706e-166 | AV172: 1
B173: 68 | C173: 6.428366618e-13 | AS173: 144 | AT173: 2.303509037e-167 | AV173: 1
B174: 69 | C174: 2.32911834e-13 | AS174: 145 | AT174: 6.163872459e-169 | AV174: 1
B175: 70 | C175: 8.318279786e-14 | AS175: 146 | AT175: 1.638070215e-170 | AV175: 1
B176: 71 | C176: 2.928971755e-14 | AS176: 147 | AT176: 4.323613901e-172 | AV176: 1
B177: 72 | C177: 1.017004082e-14 | AS177: 148 | AT177: 1.133487969e-173 | AV177: 1
B178: 73 | C178: 3.482890691e-15 | AS178: 149 | AT178: 2.9516331e-175 | AV178: 1
B179: 74 | C179: 1.17665226e-15 | AS179: 150 | AT179: 7.634890951e-177 | AV179: 1
B180: Total | C180: =SUM(_xlfn.ANCHORARRAY(C105)) -> 1 | AS180: 151 | AT180: 1.961813039e-178 | AV180: 1
AS181: 152 | AT181: 5.007785916e-180 | AV181: 1
AS182: 153 | AT182: 1.269948324e-181 | AV182: 1
AS183: 154 | AT183: 3.199610062e-183 | AV183: 1
AS184: 155 | AT184: 8.009346478e-185 | AV184: 1
AS185: 156 | AT185: 1.992068227e-186 | AV185: 1
AS186: 157 | AT186: 4.92307307e-188 | AV186: 1
AS187: 158 | AT187: 1.208957184e-189 | AV187: 1
AS188: 159 | AT188: 2.95015967e-191 | AV188: 1
AS189: 160 | AT189: 7.154137199e-193 | AV189: 1
AS190: 161 | AT190: 1.724102629e-194 | AV190: 1
AS191: 162 | AT191: 4.129332223e-196 | AV191: 1
AS192: 163 | AT192: 9.829330691e-198 | AV192: 1
AS193: 164 | AT193: 2.325475798e-199 | AV193: 1
AS194: 165 | AT194: 5.468391573e-201 | AV194: 1
AS195: 166 | AT195: 1.278154175e-202 | AV195: 1
AS196: 167 | AT196: 2.969603712e-204 | AV196: 1
AS197: 168 | AT197: 6.858370477e-206 | AV197: 1
AS198: 169 | AT198: 1.574584464e-207 | AV198: 1
AS199: 170 | AT199: 3.593757484e-209 | AV199: 1
AS200: 171 | AT200: 8.154256746e-211 | AV200: 1
AS201: 172 | AT201: 1.839448615e-212 | AV201: 1
... 327 more rows

Sheet POISSON.DIST (an)
B2: POISSON Discrete Probability Distribution
B3: Used to estimate the number of occurrences (successes) over specified interval of time or space
B4: Whereas Binomial Experiment counts number of successes over a specified number of trials,
B5: Poisson Experiment counts number of occurrences (successes) over specified interval of time or space | X5: Bell Normal Probability Distribution Curve Height Formula:
B6: Good for estimating the probabilities of:
B7: 1) Line waiting situations, where you know the mean number of arrivals over a certain time interval
B8: Example: From past data we know that the mean number of arrivals at the Dick's Hamburger Restaurant at Sat. Lunch is 3.88 people/minute.
B9: With this information we can make estimates of the probability that a certain number of people will show up over this interval
B10: 2) Distance of road or pipe intervals, where you know the mean number of repairs over a certain distance interval
B11: ="Example: From past data we know that the mean number of water line breaks is "&C95&" per 100 miles of pipe in Richmond, CA." -> Example: From past data we know that the mean number of water line breaks is 25 per 100 miles of pipe in Richmond, CA.
B12: With this information we can make estimates of the probability that a certain number of water line breaks will occur over a 100 mile stretch | X12: Continuous Compounding Formula in Finance:
B13: THE most amazing thing about this distribution is that the only number you need to make your probability calculations is the mean.
B14: Properties (Requirements) of a Poisson Experiment:
B15: 1) The probability of an occurrence (success) is the same for all equal-size intervals
B16: 2) The number of occurrences (successes) that occur in any interval is independent of the number of occurrences (successes) in any other interval
B17: 3) The probability of an occurrence (success) is proportional to the size of the interval (if interval doubles, mean doubles).
B18: 4) Mean = Variance (observed from calculations made off of source data)
B19: 5) As with all our distributions, actual Relative Frequency Pattern from past data must fit the pattern of the distribution you want to use, in our case the "Poisson Pattern"
B20: f(x) = P(x) = the probability of x occurrences in an interval = height of column when you plot column chart.
B21: Discrete Random Variable = X = Number of occurrences over a specified interval of time or space.
B22: No upper limit for X: 0,1,2,3… , but as x increases past the mean, the probability decreases and gets quite small.
B23: Mean = µ = Calculated from past data | AS23: Define Random Discrete Variable = x = | AU23: x = Number Arrivals during 1 minute
B24: e = constant = 2.71828 = =EXP(1) in Excel | Z24: e | AA24: =EXP(1) -> 2.718281828 | AC24: =_xlfn.IFNA(_xlfn.FORMULATEXT(AA24:AA25),"") -> =EXP(1) | AE24: Series | AG24: Number | AS24: Expected Value = µ = | AT24: 3.88 | AU24: people arriving/minute
B25: In Excel use: POISSON.DIST(x,mean,cumulative) | Z25: e | AA25: =SUM(1/FACT(_xlfn.SEQUENCE(AG25,,0))) -> 2.718281526 | AC25: =SUM(1/FACT(SEQUENCE(AG25,,0))) | AE25: =1/FACT(_xlfn.SEQUENCE(AG25,,0)) -> 1 | AG25: 10
B26: x = Number of occurrences over a specified interval of time or space = Discrete Random Variable | AE26: 1 | AS26: Last X | AT26: 500
B27: mean = µ = Calculated from past data | AE27: 0.5 | AX27: Self Spilling Report:
B28: cumulative = 0 for exactly x OR 1 for less than or equal to x | AE28: 0.1666666667 | AS28: X | AT28: P(X)
AE29: 0.04166666667 | AS29: =_xlfn.SEQUENCE(AT26,,0) -> 0 | AT29: =_xlfn.POISSON.DIST(_xlfn.ANCHORARRAY(AS29),AT24,0) -> 0.02065082518 | AV29: =AT29 -> 0.02065082518 | AX29: =_xlfn.LET( _xlpm.mean,AT24, _xlpm.seq,_xlfn.SEQUENCE(1000,,0), _xlpm.PP,_xlfn.POISSON.DIST(_xlpm.seq,_xlpm.mean,0), _xlpm.runPP,_xlfn.SCAN(0,_xlpm.PP,_xlfn.LAMBDA(_xlpm.a,_xlpm.r,_xlpm.a+_xlpm.r)), _xlpm.x,_xlfn.XLOOKUP(1,_xlpm.runPP,_xlpm.seq,,-1)+1, _xlpm.seqx,_xlfn.SEQUENCE(_xlpm.x,,0), _xlpm.PPx,_xlfn.POISSON.DIST(_xlpm.seqx,_xlpm.mean,0), _xlpm.r,_xlfn.VSTACK(_xlfn.HSTACK("X","P(X)"),_xlfn.HSTACK(_xlpm.seqx,_xlpm.PPx),_xlfn.HSTACK("Total",SUM(_xlpm.PPx))), _xlpm.r) -> X | AY29: P(X) | BA29: =_xlfn.DROP(_xlfn.DROP(_xlfn.ANCHORARRAY(AX29),-1,1),1) -> 0.02065082518 | BB29: =INDEX(_xlfn.ANCHORARRAY(AX29),_xlfn.SEQUENCE(ROWS(_xlfn.ANCHORARRAY(AX29))-2,,2),2) -> 0.02065082518 | BC29: =_xlfn.DROP(_xlfn.DROP(_xlfn.CHOOSECOLS(_xlfn.ANCHORARRAY(AX29),2),-1),1) -> 0.02065082518
B30: Example 1: | AE30: 0.008333333333 | AS30: 1 | AT30: 0.08012520171 | AV30: =AV29+AT30 -> 0.1007760269 | AX30: 0 | AY30: 0.02065082518 | BA30: 0.08012520171 | BB30: 0.08012520171 | BC30: 0.08012520171
B31: From past data we know that the mean number of arrivals at the Dick's Hamburger Restaurant at Sat. Lunch is 3.88 people/minute. | M31: Arrivals to Dick's Hamburgers at 45th Ave in Seattle at Saturday noon lunch during a 1-minute period. Mean = 3.88 | AE31: 0.001388888889 | AS31: 2 | AT31: 0.1554428913 | AV31: =AV30+AT31 -> 0.2562189182 | AX31: 1 | AY31: 0.08012520171 | BA31: 0.1554428913 | BB31: 0.1554428913 | BC31: 0.1554428913
B32: Assume: The probability of a person arriving is the same for all equal-size intervals | AE32: 0.0001984126984 | AS32: 3 | AT32: 0.2010394728 | AV32: 0.457258391 | AX32: 2 | AY32: 0.1554428913 | BA32: 0.2010394728 | BB32: 0.2010394728 | BC32: 0.2010394728
B33: Assume: The number of people arriving in any interval is independent of the number of people arriving in any other interval | AE33: 2.48015873e-05 | AS33: 4 | AT33: 0.1950082886 | AV33: 0.6522666795 | AX33: 3 | AY33: 0.2010394728 | BA33: 0.1950082886 | BB33: 0.1950082886 | BC33: 0.1950082886
B34: Goal: calculate the probability that 0 people will arrive in 1 minute. 3 to 5 people in 1 minute? | AE34: 2.755731922e-06 | AS34: 5 | AT34: 0.1513264319 | AV34: 0.8035931115 | AX34: 4 | AY34: 0.1950082886 | BA34: 0.1513264319 | BB34: 0.1513264319 | BC34: 0.1513264319
AS35: 6 | AT35: 0.09785775932 | AV35: 0.9014508708 | AX35: 5 | AY35: 0.1513264319 | BA35: 0.09785775932 | BB35: 0.09785775932 | BC35: 0.09785775932
B36: Define Random Discrete Variable = x = | D36: x = Number Arrivals during 1 minute | I36: Last X | J36: 30 | AS36: 7 | AT36: 0.05424115802 | AV36: 0.9556920288 | AX36: 6 | AY36: 0.09785775932 | BA36: 0.05424115802 | BB36: 0.05424115802 | BC36: 0.05424115802
B37: Expected Value = µ = | C37: 3.88 | D37: people arriving/minute | AS37: 8 | AT37: 0.02630696164 | AV37: 0.9819989904 | AX37: 7 | AY37: 0.05424115802 | BA37: 0.02630696164 | BB37: 0.02630696164 | BC37: 0.02630696164
B38: X | C38: 0 | I38: X | J38: P(x) | AS38: 9 | AT38: 0.01134122346 | AV38: 0.9933402139 | AX38: 8 | AY38: 0.02630696164 | BA38: 0.01134122346 | BB38: 0.01134122346 | BC38: 0.01134122346
B39: ="P("&C38&")" -> P(0) | C39: =_xlfn.POISSON.DIST(C38,C37,0) -> 0.02065082518 | E39: =C37^C38*EXP(1)^-C37/FACT(C38) -> 0.02065082518 | I39: =_xlfn.SEQUENCE(J36+1,,0) -> 0 | J39: =_xlfn.POISSON.DIST(I39:I69,C37,0) -> 0.02065082518 | AS39: 10 | AT39: 0.004400394704 | AV39: 0.9977406086 | AX39: 9 | AY39: 0.01134122346 | BA39: 0.004400394704 | BB39: 0.004400394704 | BC39: 0.004400394704
B40: X | C40: 3 | I40: 1 | J40: 0.08012520171 | AS40: 11 | AT40: 0.001552139223 | AV40: 0.9992927478 | AX40: 10 | AY40: 0.004400394704 | BA40: 0.001552139223 | BB40: 0.001552139223 | BC40: 0.001552139223
B41: X | C41: 5 | I41: 2 | J41: 0.1554428913 | AS41: 12 | AT41: 0.0005018583487 | AV41: 0.9997946062 | AX41: 11 | AY41: 0.001552139223 | BA41: 0.0005018583487 | BB41: 0.0005018583487 | BC41: 0.0005018583487
B42: ="P("&$C$40&"<= Arrivals in 1 minute <="&$C$41&")" -> P(3<= Arrivals in 1 minute <=5) | C42: =_xlfn.POISSON.DIST(C41,C37,1)-_xlfn.POISSON.DIST(C40-1,C37,1) -> 0.5473741933 | E42: =SUM(_xlfn.POISSON.DIST(_xlfn.SEQUENCE(C41-C40+1,,C40),C37,0)) -> 0.5473741933 | I42: 3 | J42: 0.2010394728 | AS42: 13 | AT42: 0.0001497854148 | AV42: 0.9999443916 | AX42: 12 | AY42: 0.0005018583487 | BA42: 0.0001497854148 | BB42: 0.0001497854148 | BC42: 0.0001497854148
B43: Expected Value = µ = | C43: =C37*D43 -> 1.94 | D43: 0.5 | E43: minutes | I43: 4 | J43: 0.1950082886 | AS43: 14 | AT43: 4.151195783e-05 | AV43: 0.9999859036 | AX43: 13 | AY43: 0.0001497854148 | BA43: 4.151195783e-05 | BB43: 4.151195783e-05 | BC43: 4.151195783e-05
B44: X | C44: 2 | I44: 5 | J44: 0.1513264319 | AS44: 15 | AT44: 1.073775976e-05 | AV44: 0.9999966413 | AX44: 14 | AY44: 4.151195783e-05 | BA44: 1.073775976e-05 | BB44: 1.073775976e-05 | BC44: 1.073775976e-05
B45: ="P("&C44&" Arrivals in "&TEXT(D43,"?/?")&" min)" -> P(2 Arrivals in 1/2 min) | C45: =_xlfn.POISSON.DIST(C44,C43,0) -> 0.2704220927 | E45: =C43^C44*EXP(1)^-C43/FACT(C44) -> 0.2704220927 | I45: 6 | J45: 0.09785775932 | AS45: 16 | AT45: 2.603906741e-06 | AV45: 0.9999992452 | AX45: 15 | AY45: 1.073775976e-05 | BA45: 2.603906741e-06 | BB45: 2.603906741e-06 | BC45: 2.603906741e-06
I46: 7 | J46: 0.05424115802 | AS46: 17 | AT46: 5.943034209e-07 | AV46: 0.9999998395 | AX46: 16 | AY46: 2.603906741e-06 | BA46: 5.943034209e-07 | BB46: 5.943034209e-07 | BC46: 5.943034209e-07
I47: 8 | J47: 0.02630696164 | AS47: 18 | AT47: 1.281054041e-07 | AV47: 0.9999999676 | AX47: 17 | AY47: 5.943034209e-07 | BA47: 1.281054041e-07 | BB47: 1.281054041e-07 | BC47: 1.281054041e-07
I48: 9 | J48: 0.01134122346 | AS48: 19 | AT48: 2.616047199e-08 | AV48: 0.9999999938 | AX48: 18 | AY48: 1.281054041e-07 | BA48: 2.616047199e-08 | BB48: 2.616047199e-08 | BC48: 2.616047199e-08
I49: 10 | J49: 0.004400394704 | AS49: 20 | AT49: 5.075131566e-09 | AV49: 0.9999999989 | AX49: 19 | AY49: 2.616047199e-08 | BA49: 5.075131566e-09 | BB49: 5.075131566e-09 | BC49: 5.075131566e-09
I50: 11 | J50: 0.001552139223 | AS50: 21 | AT50: 9.37690975e-10 | AV50: 0.9999999998 | AX50: 20 | AY50: 5.075131566e-09 | BA50: 9.37690975e-10 | BB50: 9.37690975e-10 | BC50: 9.37690975e-10
I51: 12 | J51: 0.0005018583487 | AS51: 22 | AT51: 1.653745901e-10 | AV51: 1 | AX51: 21 | AY51: 9.37690975e-10 | BA51: 1.653745901e-10 | BB51: 1.653745901e-10 | BC51: 1.653745901e-10
I52: 13 | J52: 0.0001497854148 | AS52: 23 | AT52: 2.789797434e-11 | AV52: 1 | AX52: 22 | AY52: 1.653745901e-10 | BA52: 2.789797434e-11 | BB52: 2.789797434e-11 | BC52: 2.789797434e-11
I53: 14 | J53: 4.151195783e-05 | AS53: 24 | AT53: 4.510172518e-12 | AV53: 1 | AX53: 23 | AY53: 2.789797434e-11 | BA53: 4.510172518e-12 | BB53: 4.510172518e-12 | BC53: 4.510172518e-12
I54: 15 | J54: 1.073775976e-05 | AS54: 25 | AT54: 6.999787748e-13 | AV54: 1 | AX54: 24 | AY54: 4.510172518e-12 | BA54: 6.999787748e-13 | BB54: 6.999787748e-13 | BC54: 6.999787748e-13
I55: 16 | J55: 2.603906741e-06 | AS55: 26 | AT55: 1.04458371e-13 | AV55: 1 | AX55: 25 | AY55: 6.999787748e-13 | BA55: 1.04458371e-13 | BB55: 1.04458371e-13 | BC55: 1.04458371e-13
I56: 17 | J56: 5.943034209e-07 | AS56: 27 | AT56: 1.50110548e-14 | AV56: 1 | AX56: 26 | AY56: 1.04458371e-13 | BA56: 1.50110548e-14 | BB56: 1.50110548e-14 | BC56: 1.50110548e-14
I57: 18 | J57: 1.281054041e-07 | AS57: 28 | AT57: 2.080103307e-15 | AV57: 1 | AX57: 27 | AY57: 1.50110548e-14 | BA57: 2.080103307e-15 | BB57: 2.080103307e-15 | BC57: 2.080103307e-15
I58: 19 | J58: 2.616047199e-08 | AS58: 29 | AT58: 2.78303477e-16 | AV58: 1 | AX58: 28 | AY58: 2.080103307e-15 | BA58: 2.78303477e-16 | BB58: 2.78303477e-16 | BC58: 2.78303477e-16
I59: 20 | J59: 5.075131566e-09 | AS59: 30 | AT59: 3.599391636e-17 | AV59: 1 | AX59: 29 | AY59: 2.78303477e-16
I60: 21 | J60: 9.37690975e-10 | AS60: 31 | AT60: 4.505045015e-18 | AV60: 1 | AX60: Total | AY60: 1
I61: 22 | J61: 1.653745901e-10 | AS61: 32 | AT61: 5.462367081e-19 | AV61: 1
I62: 23 | J62: 2.789797434e-11 | AS62: 33 | AT62: 6.422419477e-20 | AV62: 1
I63: 24 | J63: 4.510172518e-12 | AS63: 34 | AT63: 7.329113991e-21 | AV63: 1
I64: 25 | J64: 6.999787748e-13 | AS64: 35 | AT64: 8.124846367e-22 | AV64: 1
I65: 26 | J65: 1.04458371e-13 | AS65: 36 | AT65: 8.756778863e-23 | AV65: 1
I66: 27 | J66: 1.50110548e-14 | AS66: 37 | AT66: 9.182784321e-24 | AV66: 1
I67: 28 | J67: 2.080103307e-15 | AS67: 38 | AT67: 9.376106096e-25 | AV67: 1
I68: 29 | J68: 2.78303477e-16 | AS68: 39 | AT68: 9.328023501e-26 | AV68: 1
I69: 30 | J69: 3.599391636e-17 | AS69: 40 | AT69: 9.048182796e-27 | AV69: 1
J70: =SUM(J39:J69) -> 1 | AS70: 41 | AT70: 8.562670548e-28 | AV70: 1
AS71: 42 | AT71: 7.910276602e-29 | AV71: 1
B72: Example 2: | AS72: 43 | AT72: 7.137644934e-30 | AV72: 1
B73: From past data we know that the mean number of arrivals for accounting tutoring is 3 per hour during the morning shift | AS73: 44 | AT73: 6.294105078e-31 | AV73: 1
B74: Assume: The probability of a person arriving is the same for all equal-size intervals | AS74: 45 | AT74: 5.426917267e-32 | AV74: 1
B75: Assume: The number of people arriving in any interval is independent of the number of people arriving in any other interval | AS75: 46 | AT75: 4.577486738e-33 | AV75: 1
B76: Goal: calculate the probability that 5 people will arrive in 1 hour | AS76: 47 | AT76: 3.778861392e-34 | AV76: 1
AS77: 48 | AT77: 3.054579626e-35 | AV77: 1
B78: Define Random Discrete Variable = x = | D78: x = Number Arrivals during 1 hour | AS78: 49 | AT78: 2.418728357e-36 | AV78: 1
B79: Expected Value = µ = | C79: 3 | D79: people arriving/hour | AS79: 50 | AT79: 1.876933205e-37 | AV79: 1
B80: X | C80: 5 | AS80: 51 | AT80: 1.42794134e-38 | AV80: 1
B81: ="P("&C80&")" -> P(5) | C81: =_xlfn.POISSON.DIST(C80,C79,0) -> 0.1008188134 | E81: =(C79^C80*EXP(1)^-C79)/FACT(C80) -> 0.1008188134 | AS81: 52 | AT81: 1.065463923e-39 | AV81: 1
AS82: 53 | AT82: 7.80000004e-41 | AV82: 1
AS83: 54 | AT83: 5.604444473e-42 | AV83: 1
AS84: 55 | AT84: 3.953680828e-43 | AV84: 1
AS85: 56 | AT85: 2.739336002e-44 | AV85: 1
AS86: 57 | AT86: 1.864670823e-45 | AV86: 1
B87: Example 3: | AS87: 58 | AT87: 1.247400481e-46 | AV87: 1
B88: ="From past data we know that the mean number of water line breaks is "&C95&" per 100 miles of pipe in Richmond, CA." -> From past data we know that the mean number of water line breaks is 25 per 100 miles of pipe in Richmond, CA. | AS88: 59 | AT88: 8.203243844e-48 | AV88: 1
B89: With this information we can make estimates of the probability that a certain number of water line breaks will occur over a 100 mile stretch in Richmond, CA. | AS89: 60 | AT89: 5.304764352e-49 | AV89: 1
B90: Assume: The probability of a water breaks is the same for all equal-size intervals | AS90: 61 | AT90: 3.374177981e-50 | AV90: 1
B91: Assume: The number of water breaks in any interval is independent of the number of water breaks in any other interval | AS91: 62 | AT91: 2.11158235e-51 | AV91: 1
B92: ="Goal: calculate the probability that "&C96&" or more breaks will occur over a 100 mile stretch of pipe." -> Goal: calculate the probability that 30 or more breaks will occur over a 100 mile stretch of pipe. | AS92: 63 | AT92: 1.30046659e-52 | AV92: 1
AS93: 64 | AT93: 7.884078702e-54 | AV93: 1
B94: Define Random Discrete Variable = x = | D94: x = Number of water breaks in 100 miles of pipe | AS94: 65 | AT94: 4.706188517e-55 | AV94: 1
B95: Expected Value = µ = | C95: 25 | D95: water breaks/100 miles | AS95: 66 | AT95: 2.766668401e-56 | AV95: =AV94+AT95 -> 1
B96: X | C96: 30 | G96: Last X | H96: 74 | O96: ="Mean number of water line breaks is "&C95&" per 100 miles of pipe in Richmond, CA." -> Mean number of water line breaks is 25 per 100 miles of pipe in Richmond, CA. | AS96: 67 | AT96: 1.602190059e-57 | AV96: 1
B97: ="P(x>="&$C$96&")" -> P(x>=30) | C97: =1-_xlfn.POISSON.DIST(C96-1,C95,1) -> 0.182103916 | E97: =SUM(_xlfn.POISSON.DIST(_xlfn.SEQUENCE(H96-C96,,C96),C95,0)) -> 0.182103916 | AS97: 68 | AT97: 9.141907984e-59 | AV97: 1
B98: ="P(x>="&$C$96&")" -> P(x>=30) | C98: =SUM(C135:C179) -> 0.182103916 | E98: =SUMIFS(_xlfn.ANCHORARRAY(C105),B105:B179,">="&C96) -> 0.182103916 | AS98: 69 | AT98: 5.140667098e-60 | AV98: 1
AS99: 70 | AT99: 2.849398335e-61 | AV99: 1
B100: X | C100: 10 | AS100: 71 | AT100: 1.557135991e-62 | AV100: 1
B101: ="P(x<"&$C$100&")" -> P(x<10) | C101: =_xlfn.POISSON.DIST(C100-1,C95,1) -> 0.0002214766382 | AS101: 72 | AT101: 8.391232842e-64 | AV101: 1
B102: ="P(x<"&$C$100&")" -> P(x<10) | C102: =SUM(C105:C114) -> 0.0002214766382 | AS102: 73 | AT102: 4.45999773e-65 | AV102: 1
AS103: 74 | AT103: 2.338485296e-66 | AV103: 1
B104: X | C104: P(x) | AS104: 75 | AT104: 1.209776393e-67 | AV104: 1
B105: =_xlfn.SEQUENCE(H96+1,,0) -> 0 | C105: =_xlfn.POISSON.DIST(B105:B179,C95,0) -> 1.388794386e-11 | AS105: 76 | AT105: 6.176226849e-69 | AV105: 1
B106: 1 | C106: 3.471985966e-10 | AS106: 77 | AT106: 3.112176646e-70 | AV106: 1
B107: 2 | C107: 4.339982458e-09 | AS107: 78 | AT107: 1.548108383e-71 | AV107: 1
B108: 3 | C108: 3.616652048e-08 | AS108: 79 | AT108: 7.603367754e-73 | AV108: 1
B109: 4 | C109: 2.26040753e-07 | AS109: 80 | AT109: 3.687633361e-74 | AV109: 1
B110: 5 | C110: 1.130203765e-06 | AS110: 81 | AT110: 1.766421906e-75 | AV110: 1
B111: 6 | C111: 4.709182354e-06 | AS111: 82 | AT111: 8.358191459e-77 | AV111: 1
B112: 7 | C112: 1.681850841e-05 | AS112: 83 | AT112: 3.907202754e-78 | AV112: 1
B113: 8 | C113: 5.255783878e-05 | AS113: 84 | AT113: 1.804755558e-79 | AV113: 1
B114: 9 | C114: 0.0001459939966 | AS114: 85 | AT114: 8.238178311e-81 | AV114: 1
B115: 10 | C115: 0.0003649849915 | AS115: 86 | AT115: 3.716759517e-82 | AV115: 1
B116: 11 | C116: 0.0008295113443 | AS116: 87 | AT116: 1.657589302e-83 | AV116: 1
B117: 12 | C117: 0.001728148634 | AS117: 88 | AT117: 7.308461922e-85 | AV117: 1
B118: 13 | C118: 0.003323362758 | AS118: 89 | AT118: 3.186160928e-86 | AV118: 1
B119: 14 | C119: 0.005934576353 | AS119: 90 | AT119: 1.373589378e-87 | AV119: 1
B120: 15 | C120: 0.009890960588 | AS120: 91 | AT120: 5.856622841e-89 | AV120: 1
B121: 16 | C121: 0.01545462592 | AS121: 92 | AT121: 2.469967024e-90 | AV121: 1
B122: 17 | C122: 0.02272739106 | AS122: 93 | AT122: 1.030480866e-91 | AV122: 1
B123: 18 | C123: 0.03156582091 | AS123: 94 | AT123: 4.253474213e-93 | AV123: 1
B124: 19 | C124: 0.04153397489 | AS124: 95 | AT124: 1.737208416e-94 | AV124: 1
B125: 20 | C125: 0.05191746861 | AS125: 96 | AT125: 7.021217346e-96 | AV125: 1
B126: 21 | C126: 0.06180651025 | AS126: 97 | AT126: 2.808486938e-97 | AV126: 1
B127: 22 | C127: 0.07023467074 | AS127: 98 | AT127: 1.111931563e-98 | AV127: 1
B128: 23 | C128: 0.07634203341 | AS128: 99 | AT128: 4.357873198e-100 | AV128: 1
B129: 24 | C129: 0.07952295147 | AS129: 100 | AT129: 1.690854801e-101 | AV129: 1
B130: 25 | C130: 0.07952295147 | AS130: 101 | AT130: 6.495561017e-103 | AV130: 1
B131: 26 | C131: 0.07646437641 | AS131: 102 | AT131: 2.470860465e-104 | AV131: 1
B132: 27 | C132: 0.07080034853 | AS132: 103 | AT132: 9.307707384e-106 | AV132: 1
B133: 28 | C133: 0.0632145969 | AS133: 104 | AT133: 3.472490832e-107 | AV133: 1
B134: 29 | C134: 0.05449534216 | AS134: 105 | AT134: 1.283168041e-108 | AV134: 1
B135: 30 | C135: 0.04541278513 | AS135: 106 | AT135: 4.696879243e-110 | AV135: 1
B136: 31 | C136: 0.03662321381 | AS136: 107 | AT136: 1.703167426e-111 | AV136: 1
B137: 32 | C137: 0.02861188579 | AS137: 108 | AT137: 6.11878668e-113 | AV137: 1
B138: 33 | C138: 0.02167567106 | AS138: 109 | AT138: 2.178063516e-114 | AV138: 1
B139: 34 | C139: 0.01593799342 | AS139: 110 | AT139: 7.682624037e-116 | AV139: 1
B140: 35 | C140: 0.01138428102 | AS140: 111 | AT140: 2.685457771e-117 | AV140: 1
B141: 36 | C141: 0.007905750706 | AS141: 112 | AT141: 9.303192994e-119 | AV141: 1
B142: 37 | C142: 0.00534172345 | AS142: 113 | AT142: 3.194370692e-120 | AV142: 1
B143: 38 | C143: 0.003514291743 | AS143: 114 | AT143: 1.087206867e-121 | AV143: 1
B144: 39 | C144: 0.002252751118 | AS144: 115 | AT144: 3.668141429e-123 | AV144: 1
B145: 40 | C145: 0.001407969448 | AS145: 116 | AT145: 1.226930064e-124 | AV145: 1
B146: 41 | C146: 0.0008585179564 | AS146: 117 | AT146: 4.068793718e-126 | AV146: 1
B147: 42 | C147: 0.0005110225931 | AS147: 118 | AT147: 1.337874544e-127 | AV147: 1
B148: 43 | C148: 0.0002971061588 | AS148: 119 | AT148: 4.362145573e-129 | AV148: 1
B149: 44 | C149: 0.0001688103175 | AS149: 120 | AT149: 1.410427069e-130 | AV149: 1
B150: 45 | C150: 9.378350971e-05 | AS150: 121 | AT150: 4.522691758e-132 | AV150: 1
B151: 46 | C151: 5.096929876e-05 | AS151: 122 | AT151: 1.438364264e-133 | AV151: 1
B152: 47 | C152: 2.711132913e-05 | AS152: 123 | AT152: 4.537279141e-135 | AV152: 1
B153: 48 | C153: 1.412048392e-05 | AS153: 124 | AT153: 1.41972928e-136 | AV153: 1
B154: 49 | C154: 7.20432853e-06 | AS154: 125 | AT154: 4.406839684e-138 | AV154: 1
B155: 50 | C155: 3.602164265e-06 | AS155: 126 | AT155: 1.357026823e-139 | AV155: 1
B156: 51 | C156: 1.765766797e-06 | AS156: 127 | AT156: 4.145877224e-141 | AV156: 1
B157: 52 | C157: 8.489263446e-07 | AS157: 128 | AT157: 1.256719034e-142 | AV157: 1
B158: 53 | C158: 4.00436955e-07 | AS158: 129 | AT158: 3.779899109e-144 | AV158: 1
B159: 54 | C159: 1.853874792e-07 | AS159: 130 | AT159: 1.128154503e-145 | AV159: =AV158+AT159 -> 1
B160: 55 | C160: 8.426703598e-08 | AS160: 131 | AT160: 3.341404178e-147 | AV160: 1
B161: 56 | C161: 3.761921249e-08 | AS161: 132 | AT161: 9.821703189e-149 | AV161: 1
B162: 57 | C162: 1.64996546e-08 | AS162: 133 | AT162: 2.865278825e-150 | AV162: 1
B163: 58 | C163: 7.111920087e-09 | AS163: 134 | AT163: 8.296478986e-152 | AV163: 1
B164: 59 | C164: 3.013525461e-09 | AS164: 135 | AT164: 2.384469516e-153 | AV164: 1
B165: 60 | C165: 1.255635609e-09 | AS165: 136 | AT165: 6.802751266e-155 | AV165: 1
B166: 61 | C166: 5.146047576e-10 | AS166: 137 | AT166: 1.926618607e-156 | AV166: 1
B167: 62 | C167: 2.075019184e-10 | AS167: 138 | AT167: 5.416869706e-158 | AV167: 1
B168: 63 | C168: 8.234203111e-11 | AS168: 139 | AT168: 1.512047083e-159 | AV168: 1
B169: 64 | C169: 3.21648559e-11 | AS169: 140 | AT169: 4.190530488e-161 | AV169: 1
B170: 65 | C170: 1.237109842e-11 | AS170: 141 | AT170: 1.153138886e-162 | AV170: 1
B171: 66 | C171: 4.68602213e-12 | AS171: 142 | AT171: 3.150830196e-164 | AV171: 1
B172: 67 | C172: 1.74851572e-12 | AS172: 143 | AT172: 8.549105706e-166 | AV172: 1
B173: 68 | C173: 6.428366618e-13 | AS173: 144 | AT173: 2.303509037e-167 | AV173: 1
B174: 69 | C174: 2.32911834e-13 | AS174: 145 | AT174: 6.163872459e-169 | AV174: 1
B175: 70 | C175: 8.318279786e-14 | AS175: 146 | AT175: 1.638070215e-170 | AV175: 1
B176: 71 | C176: 2.928971755e-14 | AS176: 147 | AT176: 4.323613901e-172 | AV176: 1
B177: 72 | C177: 1.017004082e-14 | AS177: 148 | AT177: 1.133487969e-173 | AV177: 1
B178: 73 | C178: 3.482890691e-15 | AS178: 149 | AT178: 2.9516331e-175 | AV178: 1
B179: 74 | C179: 1.17665226e-15 | AS179: 150 | AT179: 7.634890951e-177 | AV179: 1
B180: Total | C180: =SUM(_xlfn.ANCHORARRAY(C105)) -> 1 | AS180: 151 | AT180: 1.961813039e-178 | AV180: 1
AS181: 152 | AT181: 5.007785916e-180 | AV181: 1
AS182: 153 | AT182: 1.269948324e-181 | AV182: 1
AS183: 154 | AT183: 3.199610062e-183 | AV183: 1
AS184: 155 | AT184: 8.009346478e-185 | AV184: 1
AS185: 156 | AT185: 1.992068227e-186 | AV185: 1
AS186: 157 | AT186: 4.92307307e-188 | AV186: 1
AS187: 158 | AT187: 1.208957184e-189 | AV187: 1
AS188: 159 | AT188: 2.95015967e-191 | AV188: 1
AS189: 160 | AT189: 7.154137199e-193 | AV189: 1
AS190: 161 | AT190: 1.724102629e-194 | AV190: 1
AS191: 162 | AT191: 4.129332223e-196 | AV191: 1
AS192: 163 | AT192: 9.829330691e-198 | AV192: 1
AS193: 164 | AT193: 2.325475798e-199 | AV193: 1
AS194: 165 | AT194: 5.468391573e-201 | AV194: 1
AS195: 166 | AT195: 1.278154175e-202 | AV195: 1
AS196: 167 | AT196: 2.969603712e-204 | AV196: 1
AS197: 168 | AT197: 6.858370477e-206 | AV197: 1
AS198: 169 | AT198: 1.574584464e-207 | AV198: 1
AS199: 170 | AT199: 3.593757484e-209 | AV199: 1
AS200: 171 | AT200: 8.154256746e-211 | AV200: 1
AS201: 172 | AT201: 1.839448615e-212 | AV201: 1
... 327 more rows

Sheet HYPGEOM.DIST
B2: Example 1:
B14: Goal: Calculate the probability that you can pull 2 straight Queens from a deck of cards (without replacement)?
B16: Experiment variables:
B17: Population size = # of cards in deck = number_pop = | M17: 52
B18: Successes in population = # of Queen cards in population = population_s = | M18: 4
B19: n = Fixed number of trials = sample size = # of cards pulled = number_sample = | M19: 2
B20: X = Random Discrete Variable that counts successes in sample = # of Queen cards selected in sample = sample_s = | M20: 2
B22: Goal: P(Pull 2 straight Queens from deck of cards without replacement) =
C24: This means the sample space will change and the events are not independent.
C25: We will have to use Conditional Probability and the probability of success is NOT the same for each trial.
C27: Because there is only one sample point, we can manually calculate it this way:
C29: Sample Points = | K29: =_xlfn.IFNA(_xlfn.FORMULATEXT(G29:G32),"") -> 
C30: P(Q2 AND Q1) = P(Q1)* P(Q2 | Q1) =
C31: P(Q2 AND Q1) = P(Q1)* P(Q2 | Q1) =
C32: P(Q2 AND Q1) =
B36: Hypergeometric Distribution
B37: Similar to Binomial Distribution except: 1) the trails are not independent AND 2) the probability of success changes from trial to trial.
B38: In Excel use: HYPGEOM.DIST(x,n,population_s,number_pop,cumulative)
B39: x = Number of Successes in Sample = Discrete Random Variable = sample_s
B40: n = Trials/Steps in Experiment = Sample Size = number_sample
B41: Number Successes in Pop. = population_s
B42: Population Size = number_pop
B43: cumulative = FALSE = 0 = probability mass function. Use to calculate exactly x
B44: OR
B45: cumulative = TRUE = 1 = probability mass function. Use to calculate <= x (everything from smallest up to and including x)
B48: Example 2:
B60: Goal: Calculate the probability that you can pull 2 Face Cards in 5 tries from a deck of cards (without replacement)?
B62: Experiment variables:
B63: Population size = # of cards in deck = number_pop = | M63: 52
B64: Successes in population = # of Queen cards in population = population_s = | M64: 12
B65: n = Fixed number of trials = sample size = # of cards pulled = number_sample = | M65: 5
B66: X = Random Discrete Variable that counts successes in sample = # of Queen cards selected in sample = sample_s = | M66: 2
B68: Goal: P(Pull 2 Face Cards in 5 tries from a deck of cards without replacement) =
C70: Sample space will change and the events are not independent.
C71: Must use Conditional Probability. The probability of success is NOT the same for each trial.
C73: But this event has many sample points:
C75: Sample Points = | G75: =COMBIN(M65,M66) -> 10 | K75: =_xlfn.IFNA(IF(M66="","",_xlfn.FORMULATEXT(G75:G77)),"") -> =COMBIN(M65,M66)
C76: P(2 Face Cards in 5 Tries) =
C77: P(2 Face Cards in 5 Tries) =
B79: Sample Point | C79: Step 1 | D79: Step 2 | E79: Step 3 | F79: Step 4 | G79: Step 5 | H79: Prob.
B80: =_xlfn.SEQUENCE(G75) -> 1 | C80: F | D80: F | E80: NF | F80: NF | G80: NF | H80: =12/52*11/51*(50-10)/50*(49-10)/49*(48-10)/48 -> 0.02509003601 | J80: =_xlfn.IFNA(_xlfn.FORMULATEXT(H80:H89),"") -> =12/52*11/51*(50-10)/50*(49-10)/49*(48-10)/48
B81: 2 | C81: F | D81: NF | E81: F | F81: NF | G81: NF | H81: =12/52*(51-11)/51*11/50*(49-10)/49*(48-10)/48 -> 0.02509003601 | J81: =12/52*(51-11)/51*11/50*(49-10)/49*(48-10)/48
B82: 3 | C82: F | D82: NF | E82: NF | F82: F | G82: NF | H82: =12/52*(51-11)/51*(50-11)/50*11/49*(48-10)/48 -> 0.02509003601 | J82: =12/52*(51-11)/51*(50-11)/50*11/49*(48-10)/48
B83: 4 | C83: F | D83: NF | E83: NF | F83: NF | G83: F | H83: =12/52*(51-11)/51*(50-11)/50*(49-11)/49*11/48 -> 0.02509003601 | J83: =12/52*(51-11)/51*(50-11)/50*(49-11)/49*11/48
B84: 5 | C84: NF | D84: F | E84: F | F84: NF | G84: NF | H84: =(52-12)/52*12/51*11/50*(49-10)/49*(48-10)/48 -> 0.02509003601 | J84: =(52-12)/52*12/51*11/50*(49-10)/49*(48-10)/48
B85: 6 | C85: NF | D85: F | E85: NF | F85: F | G85: NF | H85: =(52-12)/52*12/51*(50-11)/50*11/49*(48-10)/48 -> 0.02509003601 | J85: =(52-12)/52*12/51*(50-11)/50*11/49*(48-10)/48
B86: 7 | C86: NF | D86: F | E86: NF | F86: NF | G86: F | H86: =(52-12)/52*12/51*(50-11)/50*(49-11)/49*11/48 -> 0.02509003601 | J86: =(52-12)/52*12/51*(50-11)/50*(49-11)/49*11/48
B87: 8 | C87: NF | D87: NF | E87: F | F87: F | G87: NF | H87: =(52-12)/52*(51-12)/51*12/50*11/49*(48-10)/48 -> 0.02509003601 | J87: =(52-12)/52*(51-12)/51*12/50*11/49*(48-10)/48
B88: 9 | C88: NF | D88: NF | E88: F | F88: NF | G88: F | H88: =(52-12)/52*(51-12)/51*12/50*(49-11)/49*11/48 -> 0.02509003601 | J88: =(52-12)/52*(51-12)/51*12/50*(49-11)/49*11/48
B89: 10 | C89: NF | D89: NF | E89: NF | F89: F | G89: F | H89: =(52-12)/52*(51-12)/51*(50-12)/50*12/49*11/48 -> 0.02509003601 | J89: =(52-12)/52*(51-12)/51*(50-12)/50*12/49*11/48
B91: Example 3:
B92: For the experiment of pulling 5 cards from deck of cards without replacement, and the X Discrete Variable = # of Face Cards pulled, here are the probabilities for all possible X values:
B94: X = # Face Cards | C94: P(X) | E94: Experiment variables:
B95: =_xlfn.SEQUENCE(M65+1,,0) -> 0 | E95: Population size = number_pop = | J95: 52 | L95: =_xlfn.IFNA(_xlfn.FORMULATEXT(C95),"") -> 
B96: 1 | E96: Successes in population = population_s = | J96: 12
B97: 2 | E97: n = Fixed number of trials = number_sample = | J97: 5
B98: 3 | E98: X = counts successes in sample = sample_s = | J98: 2
B99: 4
B100: 5
B101: Total | L101: =_xlfn.IFNA(_xlfn.FORMULATEXT(C101),"") -> 
B103: Example 4:
B104: Calculate the probability of getting 0 Face cards OR 1 face card OR 2 face cards in 5 tries:
B105: X | C105: P(X) | D105: ="P(x<="&B106&")" -> P(x<=2)
B106: 2 | C106: ="P(x<="&B106&")" -> P(x<=2) | G106: =_xlfn.IFNA(_xlfn.FORMULATEXT(D106:D107),"") -> 
B107: 2 | C107: ="P(x<="&B107&")" -> P(x<=2)
B110: Example 5:
B111: During the financial crisis of 2008, of the ten biggest banks, only three increase lending after they were given TARP funds of about 2 Billion dollars.
B112: ="If you took at random sample of "&G121&" of the ten biggest banks at that time, what is the probability that 1 of them would have increased lending, 3?" -> If you took at random sample of 4 of the ten biggest banks at that time, what is the probability that 1 of them would have increased lending, 3?
B114: Experiment = Asking 4 banks out of 10 without replacement, if they increased lending
B115: Success = Bank increase lending
B116: Discrete Variable = X = # of banks that increased lending
B118: Experiment variables: | J118: X | K118: P(X)
B119: Population size = number_pop = | G119: 10 | J119: =_xlfn.SEQUENCE(G121+1,,0) -> 0 | M119: =_xlfn.IFNA(_xlfn.FORMULATEXT(K119),"") -> 
B120: Successes in population = population_s = | G120: 3 | J120: 1
B121: n = Fixed number of trials = number_sample = | G121: 4 | J121: 2
B122: X1 = counts successes in sample = sample_s = | G122: 1 | J122: 3
B123: X2 = counts successes in sample = sample_s = | G123: 3 | J123: 4
K124: =SUM(_xlfn.ANCHORARRAY(K119)) -> 
B125: Goals:
C126: Sample Points for 1 in 4 = | I126: =_xlfn.IFNA(_xlfn.FORMULATEXT(G126:G130),"") -> 
C127: P(1 of 4 banks increased lending)
C128: P(1 of 4 banks increased lending) | G128: =3/10*(9-2)/9*(8-2)/8*(7-2)/7*G126 -> 0 | I128: =3/10*(9-2)/9*(8-2)/8*(7-2)/7*G126
C129: P(1 of 4 banks increased lending)
C130: P(3 of 4 banks increased lending)
B132: Sample Point | C132: Step 1 | D132: Step 2 | E132: Step 3 | F132: Step 4 | G132: Prob.
B133: 1 | C133: Lend | D133: Not Lend | E133: Not Lend | F133: Not Lend | G133: =3/10*(9-2)/9*(8-2)/8*(7-2)/7 -> 0.125 | I133: =_xlfn.IFNA(_xlfn.FORMULATEXT(G133:G136),"") -> =3/10*(9-2)/9*(8-2)/8*(7-2)/7
B134: 2 | C134: Not Lend | D134: Lend | E134: Not Lend | F134: Not Lend | G134: =7/10*3/9*(8-2)/8*(7-2)/7 -> 0.125 | I134: =7/10*3/9*(8-2)/8*(7-2)/7
B135: 3 | C135: Not Lend | D135: Not Lend | E135: Lend | F135: Not Lend | G135: =7/10*(7-1)/9*3/8*(7-2)/7 -> 0.125 | I135: =7/10*(7-1)/9*3/8*(7-2)/7
B136: 4 | C136: Not Lend | D136: Not Lend | E136: Not Lend | F136: Lend | G136: =7/10*(7-1)/9*(7-2)/8*3/7 -> 0.125 | I136: =7/10*(7-1)/9*(7-2)/8*3/7

Sheet HYPGEOM.DIST (an)
B2: Example 1:
B14: Goal: Calculate the probability that you can pull 2 straight Queens from a deck of cards (without replacement)?
B16: Experiment variables:
B17: Population size = # of cards in deck = number_pop = | M17: 52
B18: Successes in population = # of Queen cards in population = population_s = | M18: 4
B19: n = Fixed number of trials = sample size = # of cards pulled = number_sample = | M19: 2
B20: X = Random Discrete Variable that counts successes in sample = # of Queen cards selected in sample = sample_s = | M20: 2
B22: Goal: P(Pull 2 straight Queens from deck of cards without replacement) =
C24: This means the sample space will change and the events are not independent.
C25: We will have to use Conditional Probability and the probability of success is NOT the same for each trial.
C27: Because there is only one sample point, we can manually calculate it this way:
C29: Sample Points = | G29: =COMBIN(M19,M20) -> 1 | K29: =_xlfn.IFNA(_xlfn.FORMULATEXT(G29:G32),"") -> =COMBIN(M19,M20)
C30: P(Q2 AND Q1) = P(Q1)* P(Q2 | Q1) = | G30: =4/52*(4-1)/(52-1) -> 0.004524886878 | K30: =4/52*(4-1)/(52-1)
C31: P(Q2 AND Q1) = P(Q1)* P(Q2 | Q1) = | G31: =M18/M17*(M18-1)/(M17-1) -> 0.004524886878 | K31: =M18/M17*(M18-1)/(M17-1)
C32: P(Q2 AND Q1) = | G32: =_xlfn.HYPGEOM.DIST(M20,M19,M18,M17,0) -> 0.004524886878 | K32: =HYPGEOM.DIST(M20,M19,M18,M17,0)
B36: Hypergeometric Distribution
B37: Similar to Binomial Distribution except: 1) the trails are not independent AND 2) the probability of success changes from trial to trial.
B38: In Excel use: HYPGEOM.DIST(x,n,population_s,number_pop,cumulative)
B39: x = Number of Successes in Sample = Discrete Random Variable = sample_s
B40: n = Trials/Steps in Experiment = Sample Size = number_sample
B41: Number Successes in Pop. = population_s
B42: Population Size = number_pop
B43: cumulative = FALSE = 0 = probability mass function. Use to calculate exactly x
B44: OR
B45: cumulative = TRUE = 1 = probability mass function. Use to calculate <= x (everything from smallest up to and including x)
B48: Example 2:
B60: Goal: Calculate the probability that you can pull 2 Face Cards in 5 tries from a deck of cards (without replacement)?
B62: Experiment variables:
B63: Population size = # of cards in deck = number_pop = | M63: 52
B64: Successes in population = # of Queen cards in population = population_s = | M64: 12
B65: n = Fixed number of trials = sample size = # of cards pulled = number_sample = | M65: 5
B66: X = Random Discrete Variable that counts successes in sample = # of Queen cards selected in sample = sample_s = | M66: 2
B68: Goal: P(Pull 2 Face Cards in 5 tries from a deck of cards without replacement) =
C70: Sample space will change and the events are not independent.
C71: Must use Conditional Probability. The probability of success is NOT the same for each trial.
C73: But this event has many sample points:
C75: Sample Points = | G75: =COMBIN(M65,M66) -> 10 | K75: =_xlfn.IFNA(IF(M66="","",_xlfn.FORMULATEXT(G75:G77)),"") -> =COMBIN(M65,M66)
C76: P(2 Face Cards in 5 Tries) = | G76: =SUM(H80:H89) -> 0.2509003601 | K76: =SUM(H80:H89)
C77: P(2 Face Cards in 5 Tries) = | G77: =_xlfn.HYPGEOM.DIST(M66,M65,M64,M63,0) -> 0.2509003601 | K77: =HYPGEOM.DIST(M66,M65,M64,M63,0)
B79: Sample Point | C79: Step 1 | D79: Step 2 | E79: Step 3 | F79: Step 4 | G79: Step 5 | H79: Prob.
B80: =_xlfn.SEQUENCE(G75) -> 1 | C80: F | D80: F | E80: NF | F80: NF | G80: NF | H80: =12/52*11/51*(50-10)/50*(49-10)/49*(48-10)/48 -> 0.02509003601 | J80: =_xlfn.IFNA(_xlfn.FORMULATEXT(H80:H89),"") -> =12/52*11/51*(50-10)/50*(49-10)/49*(48-10)/48
B81: 2 | C81: F | D81: NF | E81: F | F81: NF | G81: NF | H81: =12/52*(51-11)/51*11/50*(49-10)/49*(48-10)/48 -> 0.02509003601 | J81: =12/52*(51-11)/51*11/50*(49-10)/49*(48-10)/48
B82: 3 | C82: F | D82: NF | E82: NF | F82: F | G82: NF | H82: =12/52*(51-11)/51*(50-11)/50*11/49*(48-10)/48 -> 0.02509003601 | J82: =12/52*(51-11)/51*(50-11)/50*11/49*(48-10)/48
B83: 4 | C83: F | D83: NF | E83: NF | F83: NF | G83: F | H83: =12/52*(51-11)/51*(50-11)/50*(49-11)/49*11/48 -> 0.02509003601 | J83: =12/52*(51-11)/51*(50-11)/50*(49-11)/49*11/48
B84: 5 | C84: NF | D84: F | E84: F | F84: NF | G84: NF | H84: =(52-12)/52*12/51*11/50*(49-10)/49*(48-10)/48 -> 0.02509003601 | J84: =(52-12)/52*12/51*11/50*(49-10)/49*(48-10)/48
B85: 6 | C85: NF | D85: F | E85: NF | F85: F | G85: NF | H85: =(52-12)/52*12/51*(50-11)/50*11/49*(48-10)/48 -> 0.02509003601 | J85: =(52-12)/52*12/51*(50-11)/50*11/49*(48-10)/48
B86: 7 | C86: NF | D86: F | E86: NF | F86: NF | G86: F | H86: =(52-12)/52*12/51*(50-11)/50*(49-11)/49*11/48 -> 0.02509003601 | J86: =(52-12)/52*12/51*(50-11)/50*(49-11)/49*11/48
B87: 8 | C87: NF | D87: NF | E87: F | F87: F | G87: NF | H87: =(52-12)/52*(51-12)/51*12/50*11/49*(48-10)/48 -> 0.02509003601 | J87: =(52-12)/52*(51-12)/51*12/50*11/49*(48-10)/48
B88: 9 | C88: NF | D88: NF | E88: F | F88: NF | G88: F | H88: =(52-12)/52*(51-12)/51*12/50*(49-11)/49*11/48 -> 0.02509003601 | J88: =(52-12)/52*(51-12)/51*12/50*(49-11)/49*11/48
B89: 10 | C89: NF | D89: NF | E89: NF | F89: F | G89: F | H89: =(52-12)/52*(51-12)/51*(50-12)/50*12/49*11/48 -> 0.02509003601 | J89: =(52-12)/52*(51-12)/51*(50-12)/50*12/49*11/48
B91: Example 3:
B92: For the experiment of pulling 5 cards from deck of cards without replacement, and the X Discrete Variable = # of Face Cards pulled, here are the probabilities for all possible X values:
B94: X = # Face Cards | C94: P(X) | E94: Experiment variables:
B95: =_xlfn.SEQUENCE(M65+1,,0) -> 0 | C95: =_xlfn.HYPGEOM.DIST(_xlfn.ANCHORARRAY(B95),J97,J96,J95,0) -> 0.2531812725 | E95: Population size = number_pop = | J95: 52 | L95: =_xlfn.IFNA(_xlfn.FORMULATEXT(C95),"") -> =HYPGEOM.DIST(B95#,J97,J96,J95,0)
B96: 1 | C96: 0.4219687875 | E96: Successes in population = population_s = | J96: 12
B97: 2 | C97: 0.2509003601 | E97: n = Fixed number of trials = number_sample = | J97: 5
B98: 3 | C98: 0.06602641056 | E98: X = counts successes in sample = sample_s = | J98: 2
B99: 4 | C99: 0.007618431988
B100: 5 | C100: 0.0003047372795
B101: Total | C101: =SUM(_xlfn.ANCHORARRAY(C95)) -> 1 | L101: =_xlfn.IFNA(_xlfn.FORMULATEXT(C101),"") -> =SUM(C95#)
B103: Example 4:
B104: Calculate the probability of getting 0 Face cards OR 1 face card OR 2 face cards in 5 tries:
B105: X | C105: P(X) | D105: ="P(x<="&B106&")" -> P(x<=2)
B106: 2 | C106: ="P(x<="&B106&")" -> P(x<=2) | D106: =SUM(C95:C97) -> 0.9260504202 | G106: =_xlfn.IFNA(_xlfn.FORMULATEXT(D106:D107),"") -> =SUM(C95:C97)
B107: 2 | C107: ="P(x<="&B107&")" -> P(x<=2) | D107: =_xlfn.HYPGEOM.DIST(B107,J97,J96,J95,1) -> 0.9260504202 | G107: =HYPGEOM.DIST(B107,J97,J96,J95,1)
B110: Example 5:
B111: During the financial crisis of 2008, of the ten biggest banks, only three increase lending after they were given TARP funds of about 2 Billion dollars.
B112: ="If you took at random sample of "&G121&" of the ten biggest banks at that time, what is the probability that 1 of them would have increased lending, 3?" -> If you took at random sample of 4 of the ten biggest banks at that time, what is the probability that 1 of them would have increased lending, 3?
B114: Experiment = Asking 4 banks out of 10 without replacement, if they increased lending
B115: Success = Bank increase lending
B116: Discrete Variable = X = # of banks that increased lending
B118: Experiment variables: | J118: X | K118: P(X)
B119: Population size = number_pop = | G119: 10 | J119: =_xlfn.SEQUENCE(G121+1,,0) -> 0 | K119: =_xlfn.HYPGEOM.DIST(_xlfn.ANCHORARRAY(J119),G121,G120,G119,0) -> 0.1666666667 | M119: =_xlfn.IFNA(_xlfn.FORMULATEXT(K119),"") -> =HYPGEOM.DIST(J119#,G121,G120,G119,0)
B120: Successes in population = population_s = | G120: 3 | J120: 1 | K120: 0.5
B121: n = Fixed number of trials = number_sample = | G121: 4 | J121: 2 | K121: 0.3
B122: X1 = counts successes in sample = sample_s = | G122: 1 | J122: 3 | K122: 0.03333333333
B123: X2 = counts successes in sample = sample_s = | G123: 3 | J123: 4 | K123: 0
K124: =SUM(_xlfn.ANCHORARRAY(K119)) -> 1
B125: Goals:
C126: Sample Points for 1 in 4 = | G126: =COMBIN(G121,G122) -> 4 | I126: =_xlfn.IFNA(_xlfn.FORMULATEXT(G126:G130),"") -> =COMBIN(G121,G122)
C127: P(1 of 4 banks increased lending) | G127: =SUM(G133:G136) -> 0.5 | I127: =SUM(G133:G136)
C128: P(1 of 4 banks increased lending) | G128: =3/10*(9-2)/9*(8-2)/8*(7-2)/7*G126 -> 0.5 | I128: =3/10*(9-2)/9*(8-2)/8*(7-2)/7*G126
C129: P(1 of 4 banks increased lending) | G129: =_xlfn.HYPGEOM.DIST(G122,G121,G120,G119,0) -> 0.5 | I129: =HYPGEOM.DIST(G122,G121,G120,G119,0)
C130: P(3 of 4 banks increased lending) | G130: =_xlfn.HYPGEOM.DIST(G123,G121,G120,G119,0) -> 0.03333333333 | I130: =HYPGEOM.DIST(G123,G121,G120,G119,0)
B132: Sample Point | C132: Step 1 | D132: Step 2 | E132: Step 3 | F132: Step 4 | G132: Prob.
B133: 1 | C133: Lend | D133: Not Lend | E133: Not Lend | F133: Not Lend | G133: =3/10*(9-2)/9*(8-2)/8*(7-2)/7 -> 0.125 | I133: =_xlfn.IFNA(_xlfn.FORMULATEXT(G133:G136),"") -> =3/10*(9-2)/9*(8-2)/8*(7-2)/7
B134: 2 | C134: Not Lend | D134: Lend | E134: Not Lend | F134: Not Lend | G134: =7/10*3/9*(8-2)/8*(7-2)/7 -> 0.125 | I134: =7/10*3/9*(8-2)/8*(7-2)/7
B135: 3 | C135: Not Lend | D135: Not Lend | E135: Lend | F135: Not Lend | G135: =7/10*(7-1)/9*3/8*(7-2)/7 -> 0.125 | I135: =7/10*(7-1)/9*3/8*(7-2)/7
B136: 4 | C136: Not Lend | D136: Not Lend | E136: Not Lend | F136: Lend | G136: =7/10*(7-1)/9*(7-2)/8*3/7 -> 0.125 | I136: =7/10*(7-1)/9*(7-2)/8*3/7
